Workbook

Sheet Instructions
B2: =CONCATENATE(dms_Sector," ",dms_Segment," ", "Network Service Provider") -> Electricity Distribution Network Service Provider
B3: =INDEX(dms_Worksheet_List,MATCH(dms_Model,dms_Model_List)) -> RECAST HISTORICAL CATEGORY ANALYSIS
B4: =CONCATENATE("This template is to be used by ",dms_TradingNameFull," to fulfil its reporting obligations to the AER.") -> This template is to be used by Power and Water Corporation to fulfil its reporting obligations to the AER.
B5: INSTRUCTIONS
B6: GENERAL | C6: Complete the Business & other details worksheet before entering data or values in any other worksheets. The Business & other details worksheet is linked to other worksheets within the workbook and automatically generates certain column headings and conditional formatting.
B8: CONFIDENTIAL INFORMATION | C8: Please use the macro at the top of each worksheet to identify confidential information in the confidential workbook.
C9: -Do this by selecting the cell or cells that contain confidential information and then run the Mark selection as CONFIDENTIAL macro. This will format the cells a specific colour that is identified by the AER's database which in turn marks that information as confidential. -To reverse this, select the cell or cells and run the Return selection to NON-CONFIDENTIAL macro.
B11: RESPONSES | C11: Please return two (2) files to the AER: 1. A confidential version which must contain a complete set of all responses with confidential information marked using the Mark selection CONFIDENTIAL macro and which has been completed using the locked template file provided by the AER. 2. A public version with confidential information either removed completely or aggregated in some form together with writtten consent to disclose the public version of the response. Use the drop down box on the Business and other details worksheet to identify the file as either confidential ('consolidated') or public.
B13: AMENDMENTS | C13: If an NSP wishes to correct data previously submitted to the AER it should resubmit that data using the original completed submission as the starting point. Please make any necessary changes to the data. Data that is not being amended should be left unchanged. NSPs must identify the reason for the amendments in the Amendment Reason box on the Business and other details worksheet. NSPs may provide further details regarding any amendments in the Amendments worksheet. .
C14: NSP may use Amended Data macro to highlight cells that contain amended data. NB: if data is also CONFIDENTIAL, re-apply the Confidentiality macro after applying the Amended macro
C15: Please resubmit two (2) files - a confidential version and a public version of the amended submission to the AER
B17: UNITS OF MEASURE | C17: All amounts are to be unrounded and reported on a one for one basis: that is 1000 is to be entered as '1000'. Applicable units of measure may be identified in the table column headings or row descriptors.
B19: INPUT / NON-INPUT CELLS
D20: Yellow = Input cell (mandatory)
D21: Darker yellow = input cell (mandatory)
D22: Orange = input cell (if data available)
D23: Grey = Not applicable/No inputs required
D24: PLEASE DO NOT ENTER TEXT into cells that are to contain numbers (including 'numbers stored as text')
B27: NAVIGATION | C27: Many tables in the worksheets have been "grouped" to allow for easy navigation. To ungroup or group data use the outline symbols in the left margin (for Row groupings) or above the columns (for column groupings).

Sheet CONTENTS
D1: =INDEX(dms_Worksheet_List,MATCH(dms_Model,dms_Model_List)) -> RECAST HISTORICAL CATEGORY ANALYSIS
D2: =INDEX(dms_TradingNameFull_List,MATCH(dms_TradingName,dms_TradingName_List)) -> Power and Water Corporation
D3: =CONCATENATE("REGULATORY PERIOD FROM ", FRCP_y1, " TO ", FRCP_y5) -> REGULATORY PERIOD FROM 2024-25 TO 2028-29
E6: CONTENTS
E8: TEMPLATE | F8: FINAL RIN OCTOBER 2022
E10: SUBMISSION | F10: Business & other details
E12: EXPENDITURE | F12: 2.1 Expenditure summary
F13: 2.2 Repex
F14: 2.3(b) Augex
F15: 2.5 Connections
F16: 2.6 Non-network
F17: 2.7 Vegetation management
F18: 2.8 Maintenance
F19: 2.9 Emergency Response
F20: 2.11 Labour
F21: 2.12 Input tables
E23: ALTERNATIVE CONTROL | F23: 4.2 Metering
F24: 4.3 Fee-based services
F25: 4.4 Quoted services

Sheet Business & other details
V1: =INDEX(dms_Worksheet_List,MATCH(dms_Model,dms_Model_List)) -> RECAST HISTORICAL CATEGORY ANALYSIS
V2: =INDEX(dms_TradingNameFull_List,MATCH(dms_TradingName,dms_TradingName_List)) -> Power and Water Corporation
V3: =CONCATENATE("REGULATORY PERIOD FROM ", FRCP_y1, " TO ", FRCP_y5) -> REGULATORY PERIOD FROM 2024-25 TO 2028-29
V4: BUSINESS & OTHER DETAILS
V6: INSTRUCTIONS
V7: Complete the following business details regulatory template before entering data or values in any other regulatory template. This regulatory template is linked to other cells within the spreadsheet and automatically generates column headings and conditional formatting to distinguish business specific input and non-input cells.
Q9: SUBMISSION PARTICULARS INPUT SHEET
V12: ENTITY DETAILS
V14: Business Name
V16: Short name | AL16: Power and Water
V17: ACN/ABN | AL17: =INDEX(dms_ABN_List,MATCH(dms_TradingName,dms_TradingName_List)) -> 15947352360
V21: Business Address | BQ21: Postal Address
V23: Address 1 | AL23: =INDEX(dms_Addr1_List,MATCH(dms_TradingName,dms_TradingName_List)) -> GPO Box 1921 | BI23: Address 1 | BQ23: =INDEX(dms_PAddr1_List,MATCH(dms_TradingName,dms_TradingName_List)) -> GPO Box 1921
V24: Address 2 | AL24: =IF(ISBLANK(INDEX(dms_Addr2_List,MATCH(dms_TradingName,dms_TradingName_List))),"",(INDEX(dms_Addr2_List,MATCH(dms_TradingName,dms_TradingName_List)))) ->  | BI24: Address 2 | BQ24: =IF(ISBLANK(INDEX(dms_PAddr2_List,MATCH(dms_TradingName,dms_TradingName_List))),"",(INDEX(dms_PAddr2_List,MATCH(dms_TradingName,dms_TradingName_List)))) -> 
V25: Suburb | AL25: =INDEX(dms_Suburb_List,MATCH(dms_TradingName,dms_TradingName_List)) -> DARWIN | BI25: Suburb | BQ25: =INDEX(dms_PSuburb_List,MATCH(dms_TradingName,dms_TradingName_List)) -> DARWIN
V26: State | AL26: =INDEX(dms_State_List,MATCH(dms_TradingName,dms_TradingName_List)) -> NT | AV26: Post code | BI26: State | BQ26: =INDEX(dms_PState_List,MATCH(dms_TradingName,dms_TradingName_List)) -> NT | CA26: Post code
BA28: `
V30: Contact Names
V32: Name | BI32: Name
V33: Phone | BI33: Phone
V34: Email | BI34: Email
Q39: REGULATORY CONTROL PERIODS
Z42: Forthcoming period | AL42: 2024-25 | AU42: =FRCP_y2 -> 2025-26 | BD42: =FRCP_y3 -> 2026-27 | BM42: =FRCP_y4 -> 2027-28 | BV42: =FRCP_y5 -> 2028-29
AL43: =FRCP_y6 -> 2029-30 | AU43: =FRCP_y7 -> 2030-31 | BD43: =FRCP_y8 -> 2031-32 | BM43: =FRCP_y9 -> 2032-33 | BV43: =FRCP_y10 -> 2033-34
AL44: =FRCP_y11 -> 2034-35 | AU44: =FRCP_y12 -> 2035-36 | BD44: =FRCP_y13 -> 2036-37 | BM44: =FRCP_y14 -> 2037-38 | BV44: =FRCP_y15 -> 2038-39
X46: RESETS | Z46: Current period | AL46: =CRCP_y1 -> 2019-20 | AU46: =CRCP_y2 -> 2020-21 | BD46: =CRCP_y3 -> 2021-22 | BM46: =CRCP_y4 -> 2022-23 | BV46: =CRCP_y5 -> 2023-24
AL47: =CRCP_y6 -> 2024-25 | AU47: =CRCP_y7 -> 2025-26 | BD47: =CRCP_y8 -> 2026-27 | BM47: =CRCP_y9 -> 2027-28 | BV47: =CRCP_y10 -> 2028-29
AL48: =CRCP_y11 -> 2029-30 | AU48: =CRCP_y12 -> 2030-31 | BD48: =CRCP_y13 -> 2031-32 | BM48: =CRCP_y14 -> 2032-33 | BV48: =CRCP_y15 -> 2033-34
Z50: Previous period | AL50: =PRCP_y1 -> 2014-15 | AU50: =PRCP_y2 -> 2015-16 | BD50: =PRCP_y3 -> 2016-17 | BM50: =PRCP_y4 -> 2017-18 | BV50: =PRCP_y5 -> 2018-19
AL51: =PRCP_y6 -> 2019-20 | AU51: =PRCP_y7 -> 2020-21 | BD51: =PRCP_y8 -> 2021-22 | BM51: =PRCP_y9 -> 2022-23 | BV51: =PRCP_y10 -> 2023-24
AL52: =PRCP_y11 -> 2024-25 | AU52: =PRCP_y12 -> 2025-26 | BD52: =PRCP_y13 -> 2026-27 | BM52: =PRCP_y14 -> 2027-28 | BV52: =PRCP_y15 -> 2028-29
Z54: Commencing year | AL54: 2008-09
X55: ANNUAL RINS
Z56: Final year | AL56: 2021-22
Q60: SUBMISSION DETAILS
Z62: RIN type | AL62: =INDIRECT(dms_Model) -> Category Analysis
Z64: Source | AL64: Reporting
X66: THIS FILE | Z66: Data Quality | AL66: Consolidated
Z68: Confidentiality Status | AL68: Public
Z70: Amended RIN Amendment Reason | AL70: .
Z74: Submission Date | AL74: dd/mm/yy | BD74: Please enter date this file submitted to AER

Sheet 2.1 Expenditure summary
B1: =INDEX(dms_Worksheet_List,MATCH(dms_Model,dms_Model_List)) -> RECAST HISTORICAL CATEGORY ANALYSIS
B2: =INDEX(dms_TradingNameFull_List,MATCH(dms_TradingName,dms_TradingName_List)) -> Power and Water Corporation
B3: =CONCATENATE("REGULATORY PERIOD FROM ", FRCP_y1, " TO ", FRCP_y5) -> REGULATORY PERIOD FROM 2024-25 TO 2028-29
B4: 2.1 EXPENDITURE SUMMARY & RECONCILIATION
B6: There are EIGHT tables on this worksheet - see the Instructions sheet on how to group or ungroup tables.
B8: 2.1.1 - STANDARD CONTROL SERVICES CAPEX
C9: EXPENDITURE ($0's)
C10: =dms_y1 -> 2008-09 | D10: =dms_y2 -> 2009-10 | E10: =dms_y3 -> 2010-11 | F10: =dms_y4 -> 2011-12 | G10: =dms_y5 -> 2012-13 | H10: =dms_y6 -> 2013-14 | I10: =dms_y7 -> 2014-15 | J10: =dms_y8 -> 2015-16 | K10: =dms_y9 -> 2016-17 | L10: =dms_y10 -> 2017-18 | M10: =dms_y11 -> 2018-19 | N10: =dms_y12 -> 2019-20 | O10: =dms_y13 -> 2020-21 | P10: =dms_y14 -> 2021-22
B11: Replacement expenditure | I11: ='[2]2.1 Exp summary (recast)'!I11 -> 44435374.8 | J11: ='[2]2.1 Exp summary (recast)'!J11 -> 42463704.35 | K11: ='[2]2.1 Exp summary (recast)'!K11 -> 28254530.8 | L11: ='[2]2.1 Exp summary (recast)'!L11 -> 18664841.67 | M11: ='[2]2.1 Exp summary (recast)'!M11 -> 16296868.77 | N11: ='[2]2.1 Exp summary (recast)'!N11 -> 16417665.96 | O11: ='[2]2.1 Exp summary (recast)'!O11 -> 17870509.64 | P11: ='[2]2.1 Exp summary (recast)'!P11 -> 19499416.51
B12: Connections | I12: ='[2]2.1 Exp summary (recast)'!I12 -> 5262620.163 | J12: ='[2]2.1 Exp summary (recast)'!J12 -> 2957396.785 | K12: ='[2]2.1 Exp summary (recast)'!K12 -> 1446395.868 | L12: ='[2]2.1 Exp summary (recast)'!L12 -> 746457.9158 | M12: ='[2]2.1 Exp summary (recast)'!M12 -> 618338.229 | N12: ='[2]2.1 Exp summary (recast)'!N12 -> 690873.6362 | O12: ='[2]2.1 Exp summary (recast)'!O12 -> 968515.9646 | P12: ='[2]2.1 Exp summary (recast)'!P12 -> 1393812.18
B13: Augmentation Expenditure | I13: ='[2]2.1 Exp summary (recast)'!I13 -> 23668510.7 | J13: ='[2]2.1 Exp summary (recast)'!J13 -> 17562837.16 | K13: ='[2]2.1 Exp summary (recast)'!K13 -> 12834467.99 | L13: ='[2]2.1 Exp summary (recast)'!L13 -> 17626041.73 | M13: ='[2]2.1 Exp summary (recast)'!M13 -> 8433762.202 | N13: ='[2]2.1 Exp summary (recast)'!N13 -> 14824491.53 | O13: ='[2]2.1 Exp summary (recast)'!O13 -> 11259719.33 | P13: ='[2]2.1 Exp summary (recast)'!P13 -> 9924820.746
B14: Non-network | I14: ='[2]2.1 Exp summary (recast)'!I14 -> 1100488.339 | J14: ='[2]2.1 Exp summary (recast)'!J14 -> 1258041.046 | K14: ='[2]2.1 Exp summary (recast)'!K14 -> 3226421.873 | L14: ='[2]2.1 Exp summary (recast)'!L14 -> 4098855.928 | M14: ='[2]2.1 Exp summary (recast)'!M14 -> 2569779.934 | N14: ='[2]2.1 Exp summary (recast)'!N14 -> 21255745.08 | O14: ='[2]2.1 Exp summary (recast)'!O14 -> 7967391.358 | P14: ='[2]2.1 Exp summary (recast)'!P14 -> 15343160.66
B15: capitalised network overheads | I15: ='[2]2.1 Exp summary (recast)'!I15 -> 191869.3673 | J15: ='[2]2.1 Exp summary (recast)'!J15 -> 134830.0425 | K15: ='[2]2.1 Exp summary (recast)'!K15 -> 7668305.277 | L15: ='[2]2.1 Exp summary (recast)'!L15 -> 7826659.247 | M15: ='[2]2.1 Exp summary (recast)'!M15 -> 7009581.921 | N15: ='[2]2.1 Exp summary (recast)'!N15 -> 9249174.335 | O15: ='[2]2.1 Exp summary (recast)'!O15 -> 660672.6494 | P15: ='[2]2.1 Exp summary (recast)'!P15 -> 11334027.9
B16: capitalised corporate overheads | I16: ='[2]2.1 Exp summary (recast)'!I16 -> 0 | J16: ='[2]2.1 Exp summary (recast)'!J16 -> 0 | K16: ='[2]2.1 Exp summary (recast)'!K16 -> 3154804.868 | L16: ='[2]2.1 Exp summary (recast)'!L16 -> 2915695.477 | M16: ='[2]2.1 Exp summary (recast)'!M16 -> 2663124.455 | N16: ='[2]2.1 Exp summary (recast)'!N16 -> 2661024.091 | O16: ='[2]2.1 Exp summary (recast)'!O16 -> 2752127.574 | P16: ='[2]2.1 Exp summary (recast)'!P16 -> 8762222.537
B17: Metering | I17: ='[2]2.1 Exp summary (recast)'!I17 -> 0 | J17: ='[2]2.1 Exp summary (recast)'!J17 -> 0 | K17: ='[2]2.1 Exp summary (recast)'!K17 -> 0 | L17: ='[2]2.1 Exp summary (recast)'!L17 -> 0 | M17: ='[2]2.1 Exp summary (recast)'!M17 -> 0 | N17: ='[2]2.1 Exp summary (recast)'!N17 -> 0 | O17: ='[2]2.1 Exp summary (recast)'!O17 -> 0 | P17: ='[2]2.1 Exp summary (recast)'!P17 -> 0
B18: Public Lighting | I18: ='[2]2.1 Exp summary (recast)'!I18 -> 0 | J18: ='[2]2.1 Exp summary (recast)'!J18 -> 0 | K18: ='[2]2.1 Exp summary (recast)'!K18 -> 0 | L18: ='[2]2.1 Exp summary (recast)'!L18 -> 0 | M18: ='[2]2.1 Exp summary (recast)'!M18 -> 0 | N18: ='[2]2.1 Exp summary (recast)'!N18 -> 0 | O18: ='[2]2.1 Exp summary (recast)'!O18 -> 0 | P18: ='[2]2.1 Exp summary (recast)'!P18 -> 0
I19: ='[2]2.1 Exp summary (recast)'!I19 -> 0 | J19: ='[2]2.1 Exp summary (recast)'!J19 -> 0 | K19: ='[2]2.1 Exp summary (recast)'!K19 -> 0 | L19: ='[2]2.1 Exp summary (recast)'!L19 -> 0 | M19: ='[2]2.1 Exp summary (recast)'!M19 -> 0 | N19: ='[2]2.1 Exp summary (recast)'!N19 -> 0 | O19: ='[2]2.1 Exp summary (recast)'!O19 -> 0 | P19: ='[2]2.1 Exp summary (recast)'!P19 -> 0
I20: ='[2]2.1 Exp summary (recast)'!I20 -> 0 | J20: ='[2]2.1 Exp summary (recast)'!J20 -> 0 | K20: ='[2]2.1 Exp summary (recast)'!K20 -> 0 | L20: ='[2]2.1 Exp summary (recast)'!L20 -> 0 | M20: ='[2]2.1 Exp summary (recast)'!M20 -> 0 | N20: ='[2]2.1 Exp summary (recast)'!N20 -> 0 | O20: ='[2]2.1 Exp summary (recast)'!O20 -> 0 | P20: ='[2]2.1 Exp summary (recast)'!P20 -> 0
I21: ='[2]2.1 Exp summary (recast)'!I21 -> 0 | J21: ='[2]2.1 Exp summary (recast)'!J21 -> 0 | K21: ='[2]2.1 Exp summary (recast)'!K21 -> 0 | L21: ='[2]2.1 Exp summary (recast)'!L21 -> 0 | M21: ='[2]2.1 Exp summary (recast)'!M21 -> 0 | N21: ='[2]2.1 Exp summary (recast)'!N21 -> 0 | O21: ='[2]2.1 Exp summary (recast)'!O21 -> 0 | P21: ='[2]2.1 Exp summary (recast)'!P21 -> 0
I22: ='[2]2.1 Exp summary (recast)'!I22 -> 0 | J22: ='[2]2.1 Exp summary (recast)'!J22 -> 0 | K22: ='[2]2.1 Exp summary (recast)'!K22 -> 0 | L22: ='[2]2.1 Exp summary (recast)'!L22 -> 0 | M22: ='[2]2.1 Exp summary (recast)'!M22 -> 0 | N22: ='[2]2.1 Exp summary (recast)'!N22 -> 0 | O22: ='[2]2.1 Exp summary (recast)'!O22 -> 0 | P22: ='[2]2.1 Exp summary (recast)'!P22 -> 0
I23: ='[2]2.1 Exp summary (recast)'!I23 -> 0 | J23: ='[2]2.1 Exp summary (recast)'!J23 -> 0 | K23: ='[2]2.1 Exp summary (recast)'!K23 -> 0 | L23: ='[2]2.1 Exp summary (recast)'!L23 -> 0 | M23: ='[2]2.1 Exp summary (recast)'!M23 -> 0 | N23: ='[2]2.1 Exp summary (recast)'!N23 -> 0 | O23: ='[2]2.1 Exp summary (recast)'!O23 -> 0 | P23: ='[2]2.1 Exp summary (recast)'!P23 -> 0
I24: ='[2]2.1 Exp summary (recast)'!I24 -> 0 | J24: ='[2]2.1 Exp summary (recast)'!J24 -> 0 | K24: ='[2]2.1 Exp summary (recast)'!K24 -> 0 | L24: ='[2]2.1 Exp summary (recast)'!L24 -> 0 | M24: ='[2]2.1 Exp summary (recast)'!M24 -> 0 | N24: ='[2]2.1 Exp summary (recast)'!N24 -> 0 | O24: ='[2]2.1 Exp summary (recast)'!O24 -> 0 | P24: ='[2]2.1 Exp summary (recast)'!P24 -> 0
B25: balancing item | I25: ='[2]2.1 Exp summary (recast)'!I25 -> -46853.07 | J25: ='[2]2.1 Exp summary (recast)'!J25 -> -132401.44 | K25: ='[2]2.1 Exp summary (recast)'!K25 -> 716751.21 | L25: ='[2]2.1 Exp summary (recast)'!L25 -> 47061.58 | M25: ='[2]2.1 Exp summary (recast)'!M25 -> 402541.47 | N25: ='[2]2.1 Exp summary (recast)'!N25 -> -1720790.12 | O25: ='[2]2.1 Exp summary (recast)'!O25 -> 329566.16 | P25: ='[2]2.1 Exp summary (recast)'!P25 -> -199353.4395
B26: capcons (included in the above items) | I26: ='[2]2.1 Exp summary (recast)'!I26 -> 1250556.121 | J26: ='[2]2.1 Exp summary (recast)'!J26 -> 3165595.972 | K26: ='[2]2.1 Exp summary (recast)'!K26 -> 524443.2411 | L26: ='[2]2.1 Exp summary (recast)'!L26 -> 3706408.536 | M26: ='[2]2.1 Exp summary (recast)'!M26 -> 295703.1606 | N26: ='[2]2.1 Exp summary (recast)'!N26 -> 1058785.515 | O26: ='[2]2.1 Exp summary (recast)'!O26 -> 2230628.526 | P26: ='[2]2.1 Exp summary (recast)'!P26 -> 1047785.203
B27: TOTAL GROSS CAPEX (includes capcons) | C27: =+SUM(C11:C25) -> 0 | D27: =+SUM(D11:D25) -> 0 | E27: 0 | F27: 0 | G27: 0 | H27: 0 | I27: 74612010.3 | J27: 64244407.95 | K27: 57301677.89 | L27: 51925613.55 | M27: 37993996.98 | N27: 63378184.51 | O27: 41808502.68 | P27: 66058107.1
B29: 2.1.2 - STANDARD CONTROL SERVICES OPEX
C30: EXPENDITURE ($0's)
C31: =dms_y1 -> 2008-09 | D31: =dms_y2 -> 2009-10 | E31: =dms_y3 -> 2010-11 | F31: =dms_y4 -> 2011-12 | G31: =dms_y5 -> 2012-13 | H31: =dms_y6 -> 2013-14 | I31: =dms_y7 -> 2014-15 | J31: =dms_y8 -> 2015-16 | K31: =dms_y9 -> 2016-17 | L31: =dms_y10 -> 2017-18 | M31: =dms_y11 -> 2018-19 | N31: =dms_y12 -> 2019-20 | O31: =dms_y13 -> 2020-21 | P31: =dms_y14 -> 2021-22
B32: Vegetation management
B33: Maintenance
B34: Emergency response
B35: Non-network
B36: network overheads
B37: corporate overheads
B38: Metering
B39: Public Lighting
B46: balancing tem
B47: TOTAL OPEX | C47: =+SUM(C32:C46) -> 0 | D47: 0 | E47: 0 | F47: 0 | G47: 0 | H47: 0 | I47: 0 | J47: 0 | P47: 0
B49: 2.1.3 - ALTERNATIVE CONTROL SERVICES CAPEX
C50: EXPENDITURE ($0's)
C51: =dms_y1 -> 2008-09 | D51: =dms_y2 -> 2009-10 | E51: =dms_y3 -> 2010-11 | F51: =dms_y4 -> 2011-12 | G51: =dms_y5 -> 2012-13 | H51: =dms_y6 -> 2013-14 | I51: =dms_y7 -> 2014-15 | J51: =dms_y8 -> 2015-16 | K51: =dms_y9 -> 2016-17 | L51: =dms_y10 -> 2017-18 | M51: =dms_y11 -> 2018-19 | N51: =dms_y12 -> 2019-20 | O51: =dms_y13 -> 2020-21 | P51: =dms_y14 -> 2021-22
B52: Connections | I52: ='[2]2.1 Exp summary (recast)'!I52 -> 2675735.41 | J52: ='[2]2.1 Exp summary (recast)'!J52 -> 3035632.748 | K52: ='[2]2.1 Exp summary (recast)'!K52 -> 1866252.592 | L52: ='[2]2.1 Exp summary (recast)'!L52 -> 1877504.01 | M52: ='[2]2.1 Exp summary (recast)'!M52 -> 2081732.929 | N52: ='[2]2.1 Exp summary (recast)'!N52 -> 1149467.67 | O52: ='[2]2.1 Exp summary (recast)'!O52 -> 2713105.367 | P52: ='[2]2.1 Exp summary (recast)'!P52 -> 1986512.52
B53: capitalised network overheads | I53: ='[2]2.1 Exp summary (recast)'!I53 -> 11238.70159 | J53: ='[2]2.1 Exp summary (recast)'!J53 -> 7897.636992 | K53: ='[2]2.1 Exp summary (recast)'!K53 -> 361462.1021 | L53: ='[2]2.1 Exp summary (recast)'!L53 -> 660830.1292 | M53: ='[2]2.1 Exp summary (recast)'!M53 -> 967254.9085 | N53: ='[2]2.1 Exp summary (recast)'!N53 -> 1057871.191 | O53: ='[2]2.1 Exp summary (recast)'!O53 -> 218955.7373 | P53: ='[2]2.1 Exp summary (recast)'!P53 -> 2465484.926
B54: capitalised corporate overheads | I54: ='[2]2.1 Exp summary (recast)'!I54 -> 0 | J54: ='[2]2.1 Exp summary (recast)'!J54 -> 0 | K54: ='[2]2.1 Exp summary (recast)'!K54 -> 375698.9118 | L54: ='[2]2.1 Exp summary (recast)'!L54 -> 513102.3182 | M54: ='[2]2.1 Exp summary (recast)'!M54 -> 617452.9208 | N54: ='[2]2.1 Exp summary (recast)'!N54 -> 518047.8666 | O54: ='[2]2.1 Exp summary (recast)'!O54 -> 912091.8243 | P54: ='[2]2.1 Exp summary (recast)'!P54 -> 1906424.243
B55: Metering | I55: ='[2]2.1 Exp summary (recast)'!I55 -> 1958515.736 | J55: ='[2]2.1 Exp summary (recast)'!J55 -> 3117842.879 | K55: ='[2]2.1 Exp summary (recast)'!K55 -> 2894353.609 | L55: ='[2]2.1 Exp summary (recast)'!L55 -> 3447199.514 | M55: ='[2]2.1 Exp summary (recast)'!M55 -> 3267136.981 | N55: ='[2]2.1 Exp summary (recast)'!N55 -> 1333585.064 | O55: ='[2]2.1 Exp summary (recast)'!O55 -> 1377563.065 | P55: ='[2]2.1 Exp summary (recast)'!P55 -> 1522177.43
B56: Public lighting | I56: ='[2]2.1 Exp summary (recast)'!I56 -> 0 | J56: ='[2]2.1 Exp summary (recast)'!J56 -> 0 | K56: ='[2]2.1 Exp summary (recast)'!K56 -> 0 | L56: ='[2]2.1 Exp summary (recast)'!L56 -> 0 | M56: ='[2]2.1 Exp summary (recast)'!M56 -> 0 | N56: ='[2]2.1 Exp summary (recast)'!N56 -> 0 | O56: ='[2]2.1 Exp summary (recast)'!O56 -> 0 | P56: ='[2]2.1 Exp summary (recast)'!P56 -> 0
B57: Fee and quoted | I57: ='[2]2.1 Exp summary (recast)'!I57 -> 214641.82 | J57: ='[2]2.1 Exp summary (recast)'!J57 -> 1362618.25 | K57: ='[2]2.1 Exp summary (recast)'!K57 -> 257749.08 | L57: ='[2]2.1 Exp summary (recast)'!L57 -> 27607.9 | M57: ='[2]2.1 Exp summary (recast)'!M57 -> 443660.95 | N57: ='[2]2.1 Exp summary (recast)'!N57 -> 328519.56 | O57: ='[2]2.1 Exp summary (recast)'!O57 -> 470116.6333 | P57: ='[2]2.1 Exp summary (recast)'!P57 -> 1498266.6
I58: ='[2]2.1 Exp summary (recast)'!I58 -> 64460.83719 | J58: ='[2]2.1 Exp summary (recast)'!J58 -> 73689.44873 | K58: ='[2]2.1 Exp summary (recast)'!K58 -> 188986.8776 | L58: ='[2]2.1 Exp summary (recast)'!L58 -> 366118.3222 | M58: ='[2]2.1 Exp summary (recast)'!M58 -> 345873.6478 | N58: ='[2]2.1 Exp summary (recast)'!N58 -> 1089770.982 | O58: ='[2]2.1 Exp summary (recast)'!O58 -> 572942.8726 | P58: ='[2]2.1 Exp summary (recast)'!P58 -> 1290427.836
I59: ='[2]2.1 Exp summary (recast)'!I59 -> 0 | J59: ='[2]2.1 Exp summary (recast)'!J59 -> 0 | K59: ='[2]2.1 Exp summary (recast)'!K59 -> 0 | L59: ='[2]2.1 Exp summary (recast)'!L59 -> 0 | M59: ='[2]2.1 Exp summary (recast)'!M59 -> 0 | N59: ='[2]2.1 Exp summary (recast)'!N59 -> 0 | O59: ='[2]2.1 Exp summary (recast)'!O59 -> 0 | P59: ='[2]2.1 Exp summary (recast)'!P59 -> 0
I60: ='[2]2.1 Exp summary (recast)'!I60 -> 0 | J60: ='[2]2.1 Exp summary (recast)'!J60 -> 0 | K60: ='[2]2.1 Exp summary (recast)'!K60 -> 0 | L60: ='[2]2.1 Exp summary (recast)'!L60 -> 0 | M60: ='[2]2.1 Exp summary (recast)'!M60 -> 0 | N60: ='[2]2.1 Exp summary (recast)'!N60 -> 0 | O60: ='[2]2.1 Exp summary (recast)'!O60 -> 0 | P60: ='[2]2.1 Exp summary (recast)'!P60 -> 0
I61: ='[2]2.1 Exp summary (recast)'!I61 -> 0 | J61: ='[2]2.1 Exp summary (recast)'!J61 -> 0 | K61: ='[2]2.1 Exp summary (recast)'!K61 -> 0 | L61: ='[2]2.1 Exp summary (recast)'!L61 -> 0 | M61: ='[2]2.1 Exp summary (recast)'!M61 -> 0 | N61: ='[2]2.1 Exp summary (recast)'!N61 -> 0 | O61: ='[2]2.1 Exp summary (recast)'!O61 -> 0 | P61: ='[2]2.1 Exp summary (recast)'!P61 -> 0
I62: ='[2]2.1 Exp summary (recast)'!I62 -> 0 | J62: ='[2]2.1 Exp summary (recast)'!J62 -> 0 | K62: ='[2]2.1 Exp summary (recast)'!K62 -> 0 | L62: ='[2]2.1 Exp summary (recast)'!L62 -> 0 | M62: ='[2]2.1 Exp summary (recast)'!M62 -> 0 | N62: ='[2]2.1 Exp summary (recast)'!N62 -> 0 | O62: ='[2]2.1 Exp summary (recast)'!O62 -> 0 | P62: ='[2]2.1 Exp summary (recast)'!P62 -> 0
I63: ='[2]2.1 Exp summary (recast)'!I63 -> 0 | J63: ='[2]2.1 Exp summary (recast)'!J63 -> 0 | K63: ='[2]2.1 Exp summary (recast)'!K63 -> 0 | L63: ='[2]2.1 Exp summary (recast)'!L63 -> 0 | M63: ='[2]2.1 Exp summary (recast)'!M63 -> 0 | N63: ='[2]2.1 Exp summary (recast)'!N63 -> 0 | O63: ='[2]2.1 Exp summary (recast)'!O63 -> 0 | P63: ='[2]2.1 Exp summary (recast)'!P63 -> 0
I64: ='[2]2.1 Exp summary (recast)'!I64 -> 0 | J64: ='[2]2.1 Exp summary (recast)'!J64 -> 0 | K64: ='[2]2.1 Exp summary (recast)'!K64 -> 0 | L64: ='[2]2.1 Exp summary (recast)'!L64 -> 0 | M64: ='[2]2.1 Exp summary (recast)'!M64 -> 0 | N64: ='[2]2.1 Exp summary (recast)'!N64 -> 0 | O64: ='[2]2.1 Exp summary (recast)'!O64 -> 0 | P64: ='[2]2.1 Exp summary (recast)'!P64 -> 0
B65: TOTAL CAPEX | C65: =+SUM(C52:C64) -> 0 | D65: 0 | E65: 0 | F65: 0 | G65: 0 | H65: 0 | I65: 4924592.505 | J65: 7597680.963 | K65: 5944503.173 | L65: 6892362.194 | M65: 7723112.337 | N65: 5477262.333 | O65: 6264775.5 | P65: 10669293.56
B67: 2.1.4 - ALTERNATIVE CONTROL SERVICES OPEX
C68: EXPENDITURE ($0's)
C69: =dms_y1 -> 2008-09 | D69: =dms_y2 -> 2009-10 | E69: =dms_y3 -> 2010-11 | F69: =dms_y4 -> 2011-12 | G69: =dms_y5 -> 2012-13 | H69: =dms_y6 -> 2013-14 | I69: =dms_y7 -> 2014-15 | J69: =dms_y8 -> 2015-16 | K69: =dms_y9 -> 2016-17 | L69: =dms_y10 -> 2017-18 | M69: =dms_y11 -> 2018-19 | N69: =dms_y12 -> 2019-20 | O69: =dms_y13 -> 2020-21 | P69: =dms_y14 -> 2021-22
B70: Connections
B71: network overheads
B72: corporate overheads
B73: Metering
B74: Public lighting
B75: Fee and quoted
B83: TOTAL OPEX | C83: =+SUM(C70:C82) -> 0 | D83: 0 | E83: 0 | F83: 0 | G83: 0 | H83: 0 | I83: 0 | J83: 0 | P83: 0
B85: 2.1.5 - DUAL FUNCTION ASSETS CAPEX
C86: EXPENDITURE ($0's)
C87: =dms_y1 -> 2008-09 | D87: =dms_y2 -> 2009-10 | E87: =dms_y3 -> 2010-11 | F87: =dms_y4 -> 2011-12 | G87: =dms_y5 -> 2012-13 | H87: =dms_y6 -> 2013-14 | I87: =dms_y7 -> 2014-15 | J87: =dms_y8 -> 2015-16 | K87: =dms_y9 -> 2016-17 | L87: =dms_y10 -> 2017-18 | M87: =dms_y11 -> 2018-19 | N87: =dms_y12 -> 2019-20 | O87: =dms_y13 -> 2020-21 | P87: =dms_y14 -> 2021-22
B88: Replacement expenditure
B89: Connections
B90: Augmentation Expenditure
B91: Non-network
B92: Capitalised network overheads
B93: Capitalised corporate overheads
B101: capcons (included in the above items)
B102: TOTAL GROSS CAPEX (includes capcons) | C102: =SUM(C88:C100)-C101 -> 0 | D102: =SUM(D88:D100)-D101 -> 0 | E102: 0 | F102: 0 | G102: 0 | H102: 0 | I102: 0 | J102: 0 | P102: 0
B104: 2.1.6 - DUAL FUNCTION ASSETS OPEX
C105: EXPENDITURE ($0's)
C106: =dms_y1 -> 2008-09 | D106: =dms_y2 -> 2009-10 | E106: =dms_y3 -> 2010-11 | F106: =dms_y4 -> 2011-12 | G106: =dms_y5 -> 2012-13 | H106: =dms_y6 -> 2013-14 | I106: =dms_y7 -> 2014-15 | J106: =dms_y8 -> 2015-16 | K106: =dms_y9 -> 2016-17 | L106: =dms_y10 -> 2017-18 | M106: =dms_y11 -> 2018-19 | N106: =dms_y12 -> 2019-20 | O106: =dms_y13 -> 2020-21 | P106: =dms_y14 -> 2021-22
B107: Vegetation management
B108: Maintenance
B109: Emergency response
B110: Non-network
B111: network overheads
B112: corporate overheads
B113: Metering
B120: TOTAL OPEX | C120: =SUM(C107:C119) -> 0 | D120: 0 | E120: 0 | F120: 0 | G120: 0 | H120: 0 | I120: 0 | J120: 0 | P120: 0
B122: 2.1.7 - STANDARD CONTROL SERVICES CAPCONS
C123: EXPENDITURE ($0's)
C124: =dms_y1 -> 2008-09 | D124: =dms_y2 -> 2009-10 | E124: =dms_y3 -> 2010-11 | F124: =dms_y4 -> 2011-12 | G124: =dms_y5 -> 2012-13 | H124: =dms_y6 -> 2013-14 | I124: =dms_y7 -> 2014-15 | J124: =dms_y8 -> 2015-16 | K124: =dms_y9 -> 2016-17 | L124: =dms_y10 -> 2017-18 | M124: =dms_y11 -> 2018-19 | N124: =dms_y12 -> 2019-20 | O124: =dms_y13 -> 2020-21 | P124: =dms_y14 -> 2021-22
B125: Replacement expenditure | I125: ='[3]2.1'!H5 -> 0 | J125: ='[3]2.1'!I5 -> 0 | K125: ='[3]2.1'!J5 -> 0 | L125: ='[4]2.1'!$B133 -> 0 | M125: ='[5]2.1'!$B133 -> 4598.05 | N125: ='[6]2.1'!B133 -> 0 | O125: ='[7]2.1'!B133 -> 0 | P125: ='[8]2.1'!$B133 -> 0
B126: Connections | I126: ='[9]2.1'!H135 -> 1197066.121 | J126: ='[9]2.1'!I135 -> 2489550.522 | K126: ='[9]2.1'!J135 -> 515215.9211 | L126: ='[4]2.1'!$B134 -> 608105.3864 | M126: ='[5]2.1'!$B134 -> 189408.2606 | N126: ='[6]2.1'!B134 -> 77419.13511 | O126: ='[7]2.1'!B134 -> 955124.0596 | P126: ='[8]2.1'!$B134 -> 426678.4228
B127: Augmentation Expenditure | I127: ='[9]2.1'!H136 -> 53490 | J127: ='[9]2.1'!I136 -> 676045.45 | K127: ='[9]2.1'!J136 -> 9227.32 | L127: ='[4]2.1'!$B135 -> 3098303.15 | M127: ='[5]2.1'!$B135 -> 101696.85 | N127: ='[6]2.1'!B135 -> 981366.38 | O127: ='[7]2.1'!B135 -> 1275504.467 | P127: ='[8]2.1'!$B135 -> 619111.75
B128: Non-network | I128: ='[10]2.1'!H137 -> 0 | J128: ='[10]2.1'!I137 -> 0 | K128: ='[10]2.1'!J137 -> 0 | L128: ='[4]2.1'!$B136 -> 0 | M128: ='[5]2.1'!$B136 -> 0 | N128: ='[6]2.1'!B136 -> 0 | O128: ='[7]2.1'!B136 -> 0 | P128: ='[8]2.1'!$B136 -> 1995.029894
B129: capitalised network overheads | I129: ='[10]2.1'!H138 -> 0 | J129: ='[10]2.1'!I138 -> 0 | K129: ='[10]2.1'!J138 -> 0 | L129: ='[4]2.1'!$B137 -> 0 | M129: ='[5]2.1'!$B137 -> 0 | N129: ='[6]2.1'!B137 -> 0 | O129: ='[7]2.1'!B137 -> 0 | P129: ='[8]2.1'!$B137 -> 0
B130: capitalised corporate overheads | I130: ='[10]2.1'!H139 -> 0 | J130: ='[10]2.1'!I139 -> 0 | K130: ='[10]2.1'!J139 -> 0 | L130: ='[4]2.1'!$B138 -> 0 | M130: ='[5]2.1'!$B138 -> 0 | N130: ='[6]2.1'!B138 -> 0 | O130: ='[7]2.1'!B138 -> 0 | P130: ='[8]2.1'!$B138 -> 0
B131: Metering | I131: ='[10]2.1'!H140 -> 0 | J131: ='[10]2.1'!I140 -> 0 | K131: ='[10]2.1'!J140 -> 0 | L131: ='[4]2.1'!$B139 -> 0 | M131: ='[5]2.1'!$B139 -> 0 | N131: ='[6]2.1'!B139 -> 0 | O131: ='[7]2.1'!B139 -> 0 | P131: ='[8]2.1'!$B139 -> 0
B132: Public Lighting | I132: ='[10]2.1'!H141 -> 0 | J132: ='[10]2.1'!I141 -> 0 | K132: ='[10]2.1'!J141 -> 0 | L132: ='[4]2.1'!$B140 -> 0 | M132: ='[5]2.1'!$B140 -> 0 | N132: ='[6]2.1'!B140 -> 0 | O132: ='[7]2.1'!B140 -> 0 | P132: ='[8]2.1'!$B140 -> 0
I133: ='[10]2.1'!H142 -> 0 | J133: ='[10]2.1'!I142 -> 0 | K133: ='[10]2.1'!J142 -> 0 | L133: ='[4]2.1'!$B141 -> 0 | M133: ='[5]2.1'!$B141 -> 0 | N133: ='[6]2.1'!B141 -> 0 | O133: ='[7]2.1'!B141 -> 0 | P133: ='[8]2.1'!$B141 -> 0
I134: ='[10]2.1'!H143 -> 0 | J134: ='[10]2.1'!I143 -> 0 | K134: ='[10]2.1'!J143 -> 0 | L134: ='[4]2.1'!$B142 -> 0 | M134: ='[5]2.1'!$B142 -> 0 | N134: ='[6]2.1'!B142 -> 0 | O134: ='[7]2.1'!B142 -> 0 | P134: ='[8]2.1'!$B142 -> 0
I135: ='[10]2.1'!H144 -> 0 | J135: ='[10]2.1'!I144 -> 0 | K135: ='[10]2.1'!J144 -> 0 | L135: ='[4]2.1'!$B143 -> 0 | M135: ='[5]2.1'!$B143 -> 0 | N135: ='[6]2.1'!B143 -> 0 | O135: ='[7]2.1'!B143 -> 0 | P135: ='[8]2.1'!$B143 -> 0
I136: ='[10]2.1'!H145 -> 0 | J136: ='[10]2.1'!I145 -> 0 | K136: ='[10]2.1'!J145 -> 0 | L136: ='[4]2.1'!$B144 -> 0 | M136: ='[5]2.1'!$B144 -> 0 | N136: ='[6]2.1'!B144 -> 0 | O136: ='[7]2.1'!B144 -> 0 | P136: ='[8]2.1'!$B144 -> 0
I137: ='[10]2.1'!H146 -> 0 | J137: ='[10]2.1'!I146 -> 0 | K137: ='[10]2.1'!J146 -> 0 | L137: ='[4]2.1'!$B145 -> 0 | M137: ='[5]2.1'!$B145 -> 0 | N137: ='[6]2.1'!B145 -> 0 | O137: ='[7]2.1'!B145 -> 0 | P137: ='[8]2.1'!$B145 -> 0
I138: ='[10]2.1'!H147 -> 0 | J138: ='[10]2.1'!I147 -> 0 | K138: ='[10]2.1'!J147 -> 0 | L138: ='[4]2.1'!$B146 -> 0 | M138: ='[5]2.1'!$B146 -> 0 | N138: ='[6]2.1'!B146 -> 0 | O138: ='[7]2.1'!B146 -> 0 | P138: ='[8]2.1'!$B146 -> 0
I139: ='[10]2.1'!H148 -> 0 | J139: ='[10]2.1'!I148 -> 0 | K139: ='[10]2.1'!J148 -> 0 | L139: ='[4]2.1'!$B147 -> 0 | M139: ='[5]2.1'!$B147 -> 0 | N139: ='[6]2.1'!B147 -> 0 | O139: ='[7]2.1'!B147 -> 0 | P139: ='[8]2.1'!$B147 -> 0
B140: TOTAL CAPCONS | C140: =+SUM(C125:C139) -> 0 | D140: 0 | E140: 0 | F140: 0 | G140: =+SUM(G125:G139) -> 0 | H140: 0 | I140: =SUM(I125:I139) -> 1250556.121 | J140: =SUM(J125:J139) -> 3165595.972 | K140: 524443.2411 | L140: 3706408.536 | M140: 295703.1606 | N140: 1058785.515 | O140: 2230628.526 | P140: 1047785.203
B142: 2.1.8 - STANDARD CONTROL SERVICES CAPITALISED OVERHEADS
C143: EXPENDITURE ($0's)
C144: =dms_y1 -> 2008-09 | D144: =dms_y2 -> 2009-10 | E144: =dms_y3 -> 2010-11 | F144: =dms_y4 -> 2011-12 | G144: =dms_y5 -> 2012-13 | H144: =dms_y6 -> 2013-14 | I144: =dms_y7 -> 2014-15 | J144: =dms_y8 -> 2015-16 | K144: =dms_y9 -> 2016-17 | L144: =dms_y10 -> 2017-18 | M144: =dms_y11 -> 2018-19 | N144: =dms_y12 -> 2019-20 | O144: =dms_y13 -> 2020-21 | P144: =dms_y14 -> 2021-22
B145: Vegetation management
B146: Maintenance
B147: Emergency response
B148: Non-network
B149: Metering
B150: Public Lighting
B157: capcons (included in the above items)
B158: TOTAL CAPITALISED OVERHEADS | C158: =+SUM(C145:C156)-C157 -> 0 | D158: =+SUM(D145:D156)-D157 -> 0 | E158: 0 | F158: 0 | G158: 0 | H158: 0 | I158: 0 | J158: 0 | K158: 0 | L158: 0 | M158: 0 | N158: 0 | O158: 0 | P158: 0

Sheet 2.11 Labour
B1: =INDEX(dms_Worksheet_List,MATCH(dms_Model,dms_Model_List)) -> RECAST HISTORICAL CATEGORY ANALYSIS
B2: =INDEX(dms_TradingNameFull_List,MATCH(dms_TradingName,dms_TradingName_List)) -> Power and Water Corporation
B3: =CONCATENATE("REGULATORY PERIOD FROM ", FRCP_y1, " TO ", FRCP_y5) -> REGULATORY PERIOD FROM 2024-25 TO 2028-29
B4: 2.11 LABOUR
B6: There are TWO tables on this worksheet. Each table has been 'grouped' (and sub-grouped) for easy navigation. See the Instructions sheet on how to group or ungroup data.
B8: 2.11.1 - COST METRICS PER ANNUM
B9: TOTAL LABOUR EXPENDITURE
D10: EXPENDITURE ($0's)
B11: INTERNAL LABOUR | D11: =dms_y1 -> 2008-09 | E11: =dms_y2 -> 2009-10 | F11: =dms_y3 -> 2010-11 | G11: =dms_y4 -> 2011-12 | H11: =dms_y5 -> 2012-13 | I11: =dms_y6 -> 2013-14 | J11: =dms_y7 -> 2014-15 | K11: =dms_y8 -> 2015-16 | L11: =dms_y9 -> 2016-17 | M11: =dms_y10 -> 2017-18 | N11: =dms_y11 -> 2018-19 | O11: =dms_y12 -> 2019-20 | P11: =dms_y13 -> 2020-21 | Q11: =dms_y14 -> 2021-22
B12: CORPORATE OVERHEADS | C12: Executive manager
C13: Senior manager
C14: Manager
C15: Professional
C16: Semi professional
C17: Support staff
C18: Intern, junior staff, apprentice
B19: NETWORK OVERHEADS | C19: Executive manager
C20: Senior manager
C21: Manager
C22: Professional
C23: Semi professional
C24: Support staff
C25: Intern, junior staff, apprentice
B26: TOTAL DIRECT NETWORK LABOUR | C26: Skilled electrical worker
C27: Skilled non electical worker
C28: Apprentice
C29: Unskilled worker
B33: 2.11.3 - LABOUR / NON-LABOUR EXPENDITURE SPLIT - STANDARD CONTROL SERVICES
D34: EXPENDITURE ($0's)
B35: INTERNAL LABOUR | D35: =dms_y1 -> 2008-09 | E35: =dms_y2 -> 2009-10 | F35: =dms_y3 -> 2010-11 | G35: =dms_y4 -> 2011-12 | H35: =dms_y5 -> 2012-13 | I35: =dms_y6 -> 2013-14 | J35: =dms_y7 -> 2014-15 | K35: =dms_y8 -> 2015-16 | L35: =dms_y9 -> 2016-17 | M35: =dms_y10 -> 2017-18 | N35: =dms_y11 -> 2018-19 | O35: =dms_y12 -> 2019-20 | P35: =dms_y13 -> 2020-21 | Q35: =dms_y14 -> 2021-22
B36: OPEX
B37: In-house labour expenditure | J37: ='[2]2.11 Labour (FINAL)'!J37 -> 51505043.1 | K37: ='[2]2.11 Labour (FINAL)'!K37 -> 57991983.7 | L37: ='[2]2.11 Labour (FINAL)'!L37 -> 49506428.08 | M37: ='[2]2.11 Labour (FINAL)'!M37 -> 50360646.88 | N37: ='[2]2.11 Labour (FINAL)'!N37 -> 55148378.21 | O37: ='[2]2.11 Labour (FINAL)'!O37 -> 53579754 | P37: ='[2]2.11 Labour (FINAL)'!P37 -> 52676417 | Q37: ='[2]2.11 Labour (FINAL)'!Q37 -> 34190917
B38: Labour expenditure outsourced to related parties | J38: ='[2]2.11 Labour (FINAL)'!J38 -> 0 | K38: ='[2]2.11 Labour (FINAL)'!K38 -> 0 | L38: ='[2]2.11 Labour (FINAL)'!L38 -> 0 | M38: ='[2]2.11 Labour (FINAL)'!M38 -> 0 | N38: ='[2]2.11 Labour (FINAL)'!N38 -> 0 | O38: ='[2]2.11 Labour (FINAL)'!O38 -> 0 | P38: ='[2]2.11 Labour (FINAL)'!P38 -> 0 | Q38: ='[2]2.11 Labour (FINAL)'!Q38 -> 0
B39: Labour expenditure outsourced to unrelated parties | J39: ='[2]2.11 Labour (FINAL)'!J39 -> 12505770.15 | K39: ='[2]2.11 Labour (FINAL)'!K39 -> 10416704.06 | L39: ='[2]2.11 Labour (FINAL)'!L39 -> 11672441.51 | M39: ='[2]2.11 Labour (FINAL)'!M39 -> 16236212.91 | N39: ='[2]2.11 Labour (FINAL)'!N39 -> 17154842.15 | O39: ='[2]2.11 Labour (FINAL)'!O39 -> 16697656 | P39: ='[2]2.11 Labour (FINAL)'!P39 -> 12376791 | Q39: ='[2]2.11 Labour (FINAL)'!Q39 -> 14986173
B40: Controllable non-labour expenditure | J40: ='[2]2.11 Labour (FINAL)'!J40 -> 21408473.07 | K40: ='[2]2.11 Labour (FINAL)'!K40 -> 23846899.93 | L40: ='[2]2.11 Labour (FINAL)'!L40 -> 19805776.43 | M40: ='[2]2.11 Labour (FINAL)'!M40 -> 18959358.14 | N40: ='[2]2.11 Labour (FINAL)'!N40 -> 16549509.1 | O40: ='[2]2.11 Labour (FINAL)'!O40 -> 18164774 | P40: ='[2]2.11 Labour (FINAL)'!P40 -> 13767643 | Q40: ='[2]2.11 Labour (FINAL)'!Q40 -> 15069319
B41: Uncontrollable non-labour expenditure | J41: ='[2]2.11 Labour (FINAL)'!J41 -> 219935.96 | K41: ='[2]2.11 Labour (FINAL)'!K41 -> 223416.01 | L41: ='[2]2.11 Labour (FINAL)'!L41 -> 225693.04 | M41: ='[2]2.11 Labour (FINAL)'!M41 -> 194779.91 | N41: ='[2]2.11 Labour (FINAL)'!N41 -> 201183.39 | O41: ='[2]2.11 Labour (FINAL)'!O41 -> 0 | P41: ='[2]2.11 Labour (FINAL)'!P41 -> 0 | Q41: ='[2]2.11 Labour (FINAL)'!Q41 -> 0
B42: Total | D42: =SUM(D37:D41) -> 0 | E42: 0 | F42: 0 | G42: 0 | H42: 0 | I42: 0 | J42: 85639222.28 | K42: 92479003.7 | L42: 81210339.06 | M42: 85750997.84 | N42: 89053912.85 | O42: 88442184 | P42: 78820851 | Q42: 64246409
B43: CAPEX
B44: In-house labour expenditure | J44: ='[2]2.11 Labour (FINAL)'!J44 -> 14764048.8 | K44: ='[2]2.11 Labour (FINAL)'!K44 -> 16242738.33 | L44: ='[2]2.11 Labour (FINAL)'!L44 -> 24805394.83 | M44: ='[2]2.11 Labour (FINAL)'!M44 -> 19872741.44 | N44: ='[2]2.11 Labour (FINAL)'!N44 -> 16576637.92 | O44: ='[2]2.11 Labour (FINAL)'!O44 -> 17938795.36 | P44: ='[2]2.11 Labour (FINAL)'!P44 -> 16590843.67 | Q44: ='[2]2.11 Labour (FINAL)'!Q44 -> 27532227.39
B45: Labour expenditure outsourced to related parties | J45: ='[2]2.11 Labour (FINAL)'!J45 -> 0 | K45: ='[2]2.11 Labour (FINAL)'!K45 -> 0 | L45: ='[2]2.11 Labour (FINAL)'!L45 -> 0 | M45: ='[2]2.11 Labour (FINAL)'!M45 -> 0 | N45: ='[2]2.11 Labour (FINAL)'!N45 -> 0 | O45: ='[2]2.11 Labour (FINAL)'!O45 -> 0 | P45: ='[2]2.11 Labour (FINAL)'!P45 -> 0 | Q45: ='[2]2.11 Labour (FINAL)'!Q45 -> 0
B46: Labour expenditure outsourced to unrelated parties | J46: ='[2]2.11 Labour (FINAL)'!J46 -> 28203045.97 | K46: ='[2]2.11 Labour (FINAL)'!K46 -> 24169707.68 | L46: ='[2]2.11 Labour (FINAL)'!L46 -> 14498316.37 | M46: ='[2]2.11 Labour (FINAL)'!M46 -> 23876820.53 | N46: ='[2]2.11 Labour (FINAL)'!N46 -> 14930899.4 | O46: ='[2]2.11 Labour (FINAL)'!O46 -> 38186293.29 | P46: ='[2]2.11 Labour (FINAL)'!P46 -> 10558063.8 | Q46: ='[2]2.11 Labour (FINAL)'!Q46 -> 13257210.4
B47: Controllable non-labour expenditure | J47: ='[2]2.11 Labour (FINAL)'!J47 -> 33737028.69 | K47: ='[2]2.11 Labour (FINAL)'!K47 -> 28382621.59 | L47: ='[2]2.11 Labour (FINAL)'!L47 -> 21245773.07 | M47: ='[2]2.11 Labour (FINAL)'!M47 -> 8108958.188 | N47: ='[2]2.11 Labour (FINAL)'!N47 -> 6371571.397 | O47: ='[2]2.11 Labour (FINAL)'!O47 -> 7240180.86 | P47: ='[2]2.11 Labour (FINAL)'!P47 -> 14330029.05 | Q47: ='[2]2.11 Labour (FINAL)'!Q47 -> 21134083.98
B48: Uncontrollable non-labour expenditure | J48: ='[2]2.11 Labour (FINAL)'!J48 -> 203597 | K48: ='[2]2.11 Labour (FINAL)'!K48 -> 143790 | L48: ='[2]2.11 Labour (FINAL)'!L48 -> 113693 | M48: ='[2]2.11 Labour (FINAL)'!M48 -> 67093 | N48: ='[2]2.11 Labour (FINAL)'!N48 -> 51601 | O48: ='[2]2.11 Labour (FINAL)'!O48 -> 12915 | P48: ='[2]2.11 Labour (FINAL)'!P48 -> 0 | Q48: ='[2]2.11 Labour (FINAL)'!Q48 -> 4415102.252
B49: Total | D49: =SUM(D44:D48) -> 0 | E49: 0 | F49: 0 | G49: 0 | H49: 0 | I49: 0 | J49: 76907720.46 | K49: 68938857.6 | L49: 60663177.26 | M49: 51925613.16 | N49: 37930709.71 | O49: 63378184.51 | P49: 41478936.52 | Q49: 66338624.02

Sheet 2.12 Input tables (hidden)
B1: =INDEX(dms_Worksheet_List,MATCH(dms_Model,dms_Model_List)) -> RECAST HISTORICAL CATEGORY ANALYSIS
B2: =INDEX(dms_TradingNameFull_List,MATCH(dms_TradingName,dms_TradingName_List)) -> Power and Water Corporation
B3: =CONCATENATE("REGULATORY PERIOD FROM ", FRCP_y1, " TO ", FRCP_y5) -> REGULATORY PERIOD FROM 2024-25 TO 2028-29
B4: 2.12 INPUT TABLES
B6: There are SIX sub-tables on this worksheet. Each table has been 'grouped' for easy navigation. See the Instructions sheet on how to group or ungroup data.
B8: 2.12 INPUT TABLES
B9: 2.12.1 - DIRECT MATERIALS EXPENDITURE
D10: EXPENDITURE ($0's)
D11: =dms_y1 -> 2008-09 | E11: =dms_y2 -> 2009-10 | F11: =dms_y3 -> 2010-11 | G11: =dms_y4 -> 2011-12 | H11: =dms_y5 -> 2012-13 | I11: =dms_y6 -> 2013-14 | J11: =dms_y7 -> 2014-15 | K11: =dms_y8 -> 2015-16 | L11: =dms_y9 -> 2016-17 | M11: =dms_y10 -> 2017-18 | N11: =dms_y11 -> 2018-19 | O11: =dms_y12 -> 2019-20 | P11: =dms_y13 -> 2020-21 | Q11: =dms_y14 -> 2021-22
B12: VEGETATION MANAGEMENT | C12: Zone 1
C13: Zone 2
C14: Zone 3
C15: Zone 4
C16: Zone 5
C17: Zone 6
C18: Zone 7
C19: Zone 8
C20: Zone 9
C21: Zone 10
C22: Zone 11
C23: Zone 12
C24: Zone 13
C25: Zone 14
C26: Zone 15
C27: Zone 16
C28: Zone 17
C29: Zone 18
B30: ROUTINE MAINTENANCE | C30: Pole top, overhead line & service line maintenance
C31: Pole inspection and treatment
C32: Overhead asset inspection
C33: Network underground cable maintenance
C34: Distribution substation equipment & property maintenance
C35: Zone substation equipment maintenance
C36: Zone substation property maintenance
C37: Public lighting maintenance
C38: Scada & network control maintenance
C39: Protection systems maintenance
C40: Subtransmission asset maintenance - for dnsps with dual function assets
C41: Other
B42: NON-ROUTINE MAINTENANCE | C42: Pole top, overhead line & service line maintenance
C43: Pole inspection and treatment
C44: Overhead asset inspection
C45: Network underground cable maintenance
C46: Distribution substation equipment & property maintenance
C47: Zone substation equipment maintenance
C48: Zone substation property maintenance
C49: Public lighting maintenance
C50: SCADA & network control maintenance
C51: Protection systems maintenance
C52: Subtransmission asset maintenance - for DNSP with dual function assets
C53: Other
B54: OVERHEADS | C54: Network overheads
C55: Corporate overheads
B56: AUGMENTATION | C56: Subtransmission substations, switching stations, zone substations
C57: Subtransmission lines
C58: HV feeders
C59: Distribution substations
C60: LV feeders
C61: Other assets
B62: CONNECTIONS | C62: Simple and complex customer connections
B63: EMERGENCY RESPONSE | C63: Major storms
C64: Major event days
B65: PUBLIC LIGHTING | C65: All public lighting services
B66: METERING | C66: All metering services
B67: FEE-BASED SERVICES | C67: All fee-based services
B68: QUOTED SERVICES | C68: All quoted services
B69: REPLACEMENT | C69: Poles
C70: Pole top structures
C71: Overhead conductors
C72: Underground cables
C73: Service lines
C74: Transformers
C75: Switchgear
C76: Public lighting
C77: SCADA network control and protection systems
C78: Other
B79: NON-NETWORK EXPENDITURE | C79: IT and communications
C80: Motor vehicles
C81: Buildings and property
C82: Other
B85: 2.12.2 - DIRECT LABOUR EXPENDITURE
D86: EXPENDITURE ($0's)
D87: =dms_y1 -> 2008-09 | E87: =dms_y2 -> 2009-10 | F87: =dms_y3 -> 2010-11 | G87: =dms_y4 -> 2011-12 | H87: =dms_y5 -> 2012-13 | I87: =dms_y6 -> 2013-14 | J87: =dms_y7 -> 2014-15 | K87: =dms_y8 -> 2015-16 | L87: =dms_y9 -> 2016-17 | M87: =dms_y10 -> 2017-18 | N87: =dms_y11 -> 2018-19 | O87: =dms_y12 -> 2019-20 | P87: =dms_y13 -> 2020-21 | Q87: =dms_y14 -> 2021-22
B88: VEGETATION MANAGEMENT | C88: =IF(ISBLANK(C12)," ",C12) -> Zone 1
C89: =IF(ISBLANK(C13)," ",C13) -> Zone 2
C90: Zone 3
C91: Zone 4
C92: Zone 5
C93: Zone 6
C94: Zone 7
C95: Zone 8
C96: Zone 9
C97: Zone 10
C98: Zone 11
C99: Zone 12
C100: Zone 13
C101: Zone 14
C102: Zone 15
C103: Zone 16
C104: Zone 17
C105: Zone 18
B106: ROUTINE MAINTENANCE | C106: Pole top, overhead line & service line maintenance
C107: Pole inspection and treatment
C108: Overhead asset inspection
C109: Network underground cable maintenance
C110: Distribution substation equipment & property maintenance
C111: Zone substation equipment maintenance
C112: Zone substation property maintenance
C113: Public lighting maintenance
C114: Scada & network control maintenance
C115: Protection systems maintenance
C116: Subtransmission asset maintenance - for dnsps with dual function assets
C117: Other
B118: NON-ROUTINE MAINTENANCE | C118: Pole top, overhead line & service line maintenance
C119: Pole inspection and treatment
C120: Overhead asset inspection
C121: Network underground cable maintenance
C122: Distribution substation equipment & property maintenance
C123: Zone substation equipment maintenance
C124: Zone substation property maintenance
C125: Public lighting maintenance
C126: SCADA & network control maintenance
C127: Protection systems maintenance
C128: Subtransmission asset maintenance - for DNSP with dual function assets
C129: Other
B130: OVERHEADS | C130: Network overheads
C131: Corporate overheads
B132: AUGMENTATION | C132: Subtransmission substations, switching stations, zone substations
C133: Subtransmission lines
C134: HV feeders
C135: Distribution substations
C136: LV feeders
C137: Other assets
B138: CONNECTIONS | C138: Simple and complex customer connections
B139: EMERGENCY RESPONSE | C139: Major storms
C140: Major event days
B141: PUBLIC LIGHTING | C141: All public lighting services
B142: METERING | C142: All metering services
B143: FEE-BASED SERVICES | C143: All fee-based services
B144: QUOTED SERVICES | C144: All quoted services
B145: REPLACEMENT | C145: Poles
C146: Pole top structures
C147: Overhead conductors
C148: Underground cables
C149: Service lines
C150: Transformers
C151: Switchgear
C152: Public lighting
C153: SCADA network control and protection systems
C154: Other
B155: NON-NETWORK EXPENDITURE | C155: IT and communications
C156: Motor vehicles
C157: Buildings and property
C158: Other
B161: 2.12.3 - CONTRACT EXPENDITURE
D162: EXPENDITURE ($0's)
D163: =dms_y1 -> 2008-09 | E163: =dms_y2 -> 2009-10 | F163: =dms_y3 -> 2010-11 | G163: =dms_y4 -> 2011-12 | H163: =dms_y5 -> 2012-13 | I163: =dms_y6 -> 2013-14 | J163: =dms_y7 -> 2014-15 | K163: =dms_y8 -> 2015-16 | L163: =dms_y9 -> 2016-17 | M163: =dms_y10 -> 2017-18 | N163: =dms_y11 -> 2018-19 | O163: =dms_y12 -> 2019-20 | P163: =dms_y13 -> 2020-21 | Q163: =dms_y14 -> 2021-22
B164: VEGETATION MANAGEMENT | C164: =IF(ISBLANK(C12)," ",C12) -> Zone 1
C165: Zone 2
C166: Zone 3
C167: Zone 4
C168: Zone 5
C169: Zone 6
C170: Zone 7
C171: Zone 8
C172: Zone 9
C173: Zone 10
C174: Zone 11
C175: Zone 12
C176: Zone 13
C177: Zone 14
C178: Zone 15
C179: Zone 16
C180: Zone 17
C181: Zone 18
B182: ROUTINE MAINTENANCE | C182: Pole top, overhead line & service line maintenance
C183: Pole inspection and treatment
C184: Overhead asset inspection
C185: Network underground cable maintenance
C186: Distribution substation equipment & property maintenance
C187: Zone substation equipment maintenance
C188: Zone substation property maintenance
C189: Public lighting maintenance
C190: Scada & network control maintenance
C191: Protection systems maintenance
C192: Subtransmission asset maintenance - for dnsps with dual function assets
C193: Other
B194: NON-ROUTINE MAINTENANCE | C194: Pole top, overhead line & service line maintenance
C195: Pole inspection and treatment
C196: Overhead asset inspection
C197: Network underground cable maintenance
C198: Distribution substation equipment & property maintenance
C199: Zone substation equipment maintenance
C200: Zone substation property maintenance
C201: Public lighting maintenance
C202: SCADA & network control maintenance
C203: Protection systems maintenance
C204: Subtransmission asset maintenance - for DNSP with dual function assets
C205: Other
B206: OVERHEADS | C206: Network overheads
... 250 more rows

Sheet 2.2 Repex (hidden)
B1: =INDEX(dms_Worksheet_List,MATCH(dms_Model,dms_Model_List)) -> RECAST HISTORICAL CATEGORY ANALYSIS
B2: =INDEX(dms_TradingNameFull_List,MATCH(dms_TradingName,dms_TradingName_List)) -> Power and Water Corporation
B3: =CONCATENATE("REGULATORY PERIOD FROM ", FRCP_y1, " TO ", FRCP_y5) -> REGULATORY PERIOD FROM 2024-25 TO 2028-29
B4: 2.2 REPEX
B6: There are TWO tables on this worksheet. These tables have been 'grouped' (and sub-grouped) for ease of navigation. See the Instructions sheet on how to group or ungroup tables.
B8: 2.2.1 - REPLACEMENT EXPENDITURE, VOLUMES AND ASSET FAILURES BY ASSET CATEGORY
B9: EXPENDITURE
E10: EXPENDITURE ($0's)
B11: ASSET GROUP | C11: ASSET CATEGORY | E11: =dms_y1 -> 2008-09 | F11: =dms_y2 -> 2009-10 | G11: =dms_y3 -> 2010-11 | H11: =dms_y4 -> 2011-12 | I11: =dms_y5 -> 2012-13 | J11: =dms_y6 -> 2013-14 | K11: =dms_y7 -> 2014-15 | L11: =dms_y8 -> 2015-16 | M11: =dms_y9 -> 2016-17 | N11: =dms_y10 -> 2017-18 | O11: =dms_y11 -> 2018-19 | P11: =dms_y12 -> 2019-20 | Q11: =dms_y13 -> 2020-21 | R11: =dms_y14 -> 2021-22
B12: POLES BY: HIGHEST OPERATING VOLTAGE ; MATERIAL TYPE | C12: Staking of a wooden pole
C13: ˂ = 1 kV; Wood
C14: > 1 kV & < = 11 kV; Wood
C15: ˃ 11 kV & < = 22 kV; Wood
C16: > 22 kV & < = 66 kV; Wood
C17: > 66 kV & < = 132 kV; Wood
C18: > 132 kV; Wood
C19: ˂ = 1 kV; Concrete
C20: > 1 kV & < = 11 kV; Concrete
C21: ˃ 11 kV & < = 22 kV; Concrete
C22: > 22 kV & < = 66 kV; Concrete
C23: > 66 kV & < = 132 kV; Concrete
C24: > 132 kV; Concrete
C25: ˂ = 1 kV; Steel
C26: > 1 kV & < = 11 kV; Steel
C27: ˃ 11 kV & < = 22 kV; Steel
C28: > 22 kV & < = 66 kV; Steel
C29: > 66 kV & < = 132 kV; Steel
C30: > 132 kV; Steel
C31: Other
B32: POLE TOP STRUCTURES BY: HIGHEST OPERATING VOLTAGE | C32: ˂ = 1 kV
C33: > 1 kV & < = 11 kV
C34: ˃ 11 kV & < = 22 kV
C35: > 22 kV & < = 66 kV
C36: > 66 kV & < = 132 kV
C37: > 132 kV
C38: Other
B39: STAKING WOODEN POLES BY: HIGHEST OPERATING VOLTAGE | C39: ˂ = 1 Kv | D39: for year wooden pole staked
C40: > 1 kV & < = 11 kV | D40: for year wooden pole staked
C41: ˃ 11 kV & < = 22 kV | D41: for year wooden pole staked
C42: > 22 kV & < = 66 kV | D42: for year wooden pole staked
C43: > 66 kV & < = 132 kV | D43: for year wooden pole staked
C44: > 132 kV | D44: for year wooden pole staked
B45: OVERHEAD CONDUCTORS BY: HIGHEST OPERATING VOLTAGE; NUMBER OF PHASES (AT HV) | C45: ˂ = 1 kV | D45: per km
C46: > 1 kV & < = 11 kV | D46: per km
C47: ˃ 11 kV & < = 22 kV ; SWER | D47: per km
C48: ˃ 11 kV & < = 22 kV ; Single-Phase | D48: per km
C49: ˃ 11 kV & < = 22 kV ; Multiple-Phase | D49: per km
C50: > 22 kV & < = 66 kV | D50: per km
C51: > 66 kV & < = 132 kV | D51: per km
C52: > 132 kV | D52: per km
C53: Other | D53: per km
B54: UNDERGROUND CABLES BY: HIGHEST OPERATING VOLTAGE | C54: ˂ = 1 kV | D54: per km
C55: > 1 kV & < = 11 kV | D55: per km
C56: > 11 kV & < = 22 kV | D56: per km
C57: > 22 kV & < = 33 kV | D57: per km
C58: > 33 kV & < = 66 kV | D58: per km
C59: > 66 kV & < = 132 kV | D59: per km
C60: > 132 kV | D60: per km
C61: Other | D61: per km
B62: SERVICE LINES BY: CONNECTION VOLTAGE; CUSTOMER TYPE; CONNECTION COMPLEXITY | C62: ˂ = 11 kV ; Residential ; Simple Type | D62: per number of spans
C63: ˂ = 11 kV ; Commercial & Industrial ; Simple Type | D63: per number of spans
C64: ˂ = 11 kV ; Residential ; Complex Type | D64: per number of spans
C65: ˂ = 11 kV ; Commercial & Industrial ; Complex Type | D65: per number of spans
C66: ˂ = 11 kV ; Subdivision ; Complex Type | D66: per number of spans
C67: > 11 kV & < = 22 kV ; Commercial & Industrial | D67: per number of spans
C68: > 11 kV & < = 22 kV ; Subdivision | D68: per number of spans
C69: > 22 kV & < = 33 kV ; Commercial & Industrial | D69: per number of spans
C70: > 22 kV & < = 33 kV ; Subdivision | D70: per number of spans
C71: > 33 kV & < = 66 kV ; Commercial & Industrial | D71: per number of spans
C72: > 33 kV & < = 66 kV ; Subdivision | D72: per number of spans
C73: > 66 kV & < = 132 kV ; Commercial & Industrial | D73: per number of spans
C74: > 66 kV & < = 132 kV ; Subdivision | D74: per number of spans
C75: > 132 kV ; Commercial & Industrial | D75: per number of spans
C76: > 132 kV ; Subdivision | D76: per number of spans
C77: Other | D77: per number of spans
B78: TRANSFORMERS BY: MOUNTING TYPE; HIGHEST OPERATING VOLTAGE ; AMPERE RATING; NUMBER OF PHASES (AT LV) | C78: Pole Mounted ; < = 22kV ; < = 60 kVA ; Single Phase
C79: Pole Mounted ; < = 22kV ; > 60 kVA and < = 600 kVA ; Single Phase
C80: Pole Mounted ; < = 22kV ; > 600 kVA ; Single Phase
C81: Pole Mounted ; < = 22kV ; < = 60 kVA ; Multiple Phase
C82: Pole Mounted ; < = 22kV ; > 60 kVA and < = 600 kVA ; Multiple Phase
C83: Pole Mounted ; < = 22kV ; > 600 kVA ; Multiple Phase
C84: Kiosk Mounted ; < = 22kV ; < = 60 kVA ; Single Phase
C85: Kiosk Mounted ; < = 22kV ; > 60 kVA and < = 600 kVA ; Single Phase
C86: Kiosk Mounted ; < = 22kV ; > 600 kVA ; Single Phase
C87: Kiosk Mounted ; < = 22kV ; < = 60 kVA ; Multiple Phase
C88: Kiosk Mounted ; < = 22kV ; > 60 kVA and < = 600 kVA ; Multiple Phase
C89: Kiosk Mounted ; < = 22kV ; > 600 kVA ; Multiple Phase
C90: Ground Outdoor / Indoor Chamber Mounted; ˂ 22 kV ; < = 60 kVA ; Single Phase
C91: Ground Outdoor / Indoor Chamber Mounted; ˂ 22 kV ; > 60 kVA and < = 600 kVA ; Single Phase
C92: Ground Outdoor / Indoor Chamber Mounted; ˂ 22 kV ; > 600 kVA ; Single Phase
C93: Ground Outdoor / Indoor Chamber Mounted; ˂ 22 kV ; < = 60 kVA ; Multiple Phase
C94: Ground Outdoor / Indoor Chamber Mounted; ˂ 22 kV ; > 60 kVA and < = 600 kVA ; Multiple Phase
C95: Ground Outdoor / Indoor Chamber Mounted; ˂ 22 kV ; > 600 kVA ; Multiple Phase
C96: Ground Outdoor / Indoor Chamber Mounted; > = 22 kV & < = 33 kV ; < = 15 MVA
C97: Ground Outdoor / Indoor Chamber Mounted; > = 22 kV & < = 33 kV ; > 15 MVA and < = 40 MVA
C98: Ground Outdoor / Indoor Chamber Mounted; > = 22 kV & < = 33 kV ; > 40 MVA
C99: Ground Outdoor / Indoor Chamber Mounted; > 33 kV & < = 66 kV ; < = 15 MVA
C100: Ground Outdoor / Indoor Chamber Mounted; > 33 kV & < = 66 kV ; > 15 MVA and < = 40 MVA
C101: Ground Outdoor / Indoor Chamber Mounted; > 33 kV & < = 66 kV ; > 40 MVA
C102: Ground Outdoor / Indoor Chamber Mounted; > 66 kV & < = 132 kV ; < = 100 MVA
C103: Ground Outdoor / Indoor Chamber Mounted; > 66 kV & < = 132 kV ; > 100 MVA
C104: Ground Outdoor / Indoor Chamber Mounted; > 132 kV ; < = 100 MVA
C105: Ground Outdoor / Indoor Chamber Mounted; > 132 kV ; > 100 MVA
C106: Other
B107: SWITCHGEAR BY: HIGHEST OPERATING VOLTAGE ; SWITCH FUNCTION | C107: ˂ = 11 kV ; FUSE
C108: ˂ = 11 kV ; Switch
C109: ˂ = 11 kV ; Circuit Breaker
C110: > 11 kV & < = 22 kV ; Switch
C111: > 11 kV & < = 22 kV ; Circuit Breaker
C112: > 22 kV & < = 33 kV ; Switch
C113: > 22 kV & < = 33 kV ; Circuit Breaker
C114: > 33 kV & < = 66 kV ; Switch
C115: > 33 kV & < = 66 kV ; Circuit Breaker
C116: > 66 kV & < = 132 kV ; Switch
C117: > 66 kV & < = 132 kV ; Circuit Breaker
C118: > 132 kV ; Switch
C119: > 132 kV ; Circuit Breaker
C120: Other
B121: PUBLIC LIGHTING BY: ASSET TYPE ; LIGHTING OBLIGATION | C121: Luminaires ; Major Road
C122: Luminaires ; Minor Road
C123: Brackets ; Major Road
C124: Brackets ; Minor Road
C125: Lamps ; Major Road
C126: Lamps ; Minor Road
C127: Poles / Columns ; Major Road
C128: Poles / Columns ; Minor Road
C129: Other
B130: SCADA, NETWORK CONTROL AND PROTECTION SYSTEMS BY: FUNCTION | C130: Field Devices
C131: Local Network Wiring Assets
C132: Communications Network Assets
C133: Master Station Assets
C134: Communications Site Infrastructure
C135: Communications Linear Assets
C136: AFLC
C137: Other
B138: OTHER BY: DNSP DEFINED

Sheet 2.3(b) Augex (hidden)
B1: =INDEX(dms_Worksheet_List,MATCH(dms_Model,dms_Model_List)) -> RECAST HISTORICAL CATEGORY ANALYSIS
B2: =INDEX(dms_TradingNameFull_List,MATCH(dms_TradingName,dms_TradingName_List)) -> Power and Water Corporation
B3: =CONCATENATE("REGULATORY PERIOD FROM ", FRCP_y1, " TO ", FRCP_y5) -> REGULATORY PERIOD FROM 2024-25 TO 2028-29
B4: 2.3 AUGEX PROJECT DATA
B6: There are FOUR tables on this worksheet. These tables have been 'grouped' (and sub-grouped) for easy navigation. See the Instructions sheet on how to group or ungroup tables.
B8: NOTE: DNSP MUST PROVIDE EXPENDITURE INFORMATION ON AN AS INCURRED BASIS.
B9: 2.3.3 - AUGEX DATA - HV/LV FEEDERS AND DISTRIBUTION SUBSTATIONS
B11: COST METRICS
B12: TOTAL DIRECT EXPENDITURE - Project Type | C12: EXPENDITURE ($0's)
C13: =dms_y1 -> 2008-09 | D13: =dms_y2 -> 2009-10 | E13: =dms_y3 -> 2010-11 | F13: =dms_y4 -> 2011-12 | G13: =dms_y5 -> 2012-13 | H13: =dms_y6 -> 2013-14 | I13: =dms_y7 -> 2014-15 | J13: =dms_y8 -> 2015-16 | K13: =dms_y9 -> 2016-17 | L13: =dms_y10 -> 2017-18 | M13: =dms_y11 -> 2018-19 | N13: =dms_y12 -> 2019-20 | O13: =dms_y13 -> 2020-21 | P13: =dms_y14 -> 2021-22
B14: HV Feeder Augmentations - Overhead Lines
B15: HV Feeder Augmentations - Underground Cables
B16: HV Feeder Non-Material Projects
B17: LV Feeder Augmentations - Overhead Lines
B18: LV Feeder Augmentations - Underground Cables
B19: LV Feeder Non-Material Projects
B20: Distribution Substation Augmentations - Pole Mounted
B21: Distribution Substation Augmentations - Ground Mounted
B22: Distribution Substation Augmentations - Indoor
B26: 2.3.4 - AUGEX - TOTAL EXPENDITURE
B27: AUGMENTATION CAPEX (as incurred) | C27: EXPENDITURE ($0's)
C28: =dms_y1 -> 2008-09 | D28: =dms_y2 -> 2009-10 | E28: =dms_y3 -> 2010-11 | F28: =dms_y4 -> 2011-12 | G28: =dms_y5 -> 2012-13 | H28: =dms_y6 -> 2013-14 | I28: =dms_y7 -> 2014-15 | J28: =dms_y8 -> 2015-16 | K28: =dms_y9 -> 2016-17 | L28: =dms_y10 -> 2017-18 | M28: =dms_y11 -> 2018-19 | N28: =dms_y12 -> 2019-20 | O28: =dms_y13 -> 2020-21 | P28: =dms_y14 -> 2021-22
B29: Subtransmission Substations, Switching Stations, Zone Substations
B30: Subtransmission Lines
B31: HV Feeders
B32: HV Feeders - Land Purchases and Easements
B33: Distribution Substations
B34: Distribution Substations - Land Purchases And Easements
B35: LV Feeders
B36: LV Feeders - Land Purchases And Easements
B37: Other Assets

Sheet 2.5 Connections
B1: =INDEX(dms_Worksheet_List,MATCH(dms_Model,dms_Model_List)) -> RECAST HISTORICAL CATEGORY ANALYSIS
B2: =INDEX(dms_TradingNameFull_List,MATCH(dms_TradingName,dms_TradingName_List)) -> Power and Water Corporation
B3: =CONCATENATE("REGULATORY PERIOD FROM ", FRCP_y1, " TO ", FRCP_y5) -> REGULATORY PERIOD FROM 2024-25 TO 2028-29
B4: 2.5 CONNECTIONS
B6: There are THREE tables on this worksheet - each has been 'grouped' (and sub-grouped) for easy navigation. See the Instructions sheet on how to group or ungroup tables.
B8: 2.5.1 - DESCRIPTOR METRICS
E9: VOLUMES AND EXPENDITURE
D10: Units | E10: =dms_y1 -> 2008-09 | F10: =dms_y2 -> 2009-10 | G10: =dms_y3 -> 2010-11 | H10: =dms_y4 -> 2011-12 | I10: =dms_y5 -> 2012-13 | J10: =dms_y6 -> 2013-14 | K10: =dms_y7 -> 2014-15 | L10: =dms_y8 -> 2015-16 | M10: =dms_y9 -> 2016-17 | N10: =dms_y10 -> 2017-18 | O10: =dms_y11 -> 2018-19 | P10: =dms_y12 -> 2019-20 | Q10: =dms_y13 -> 2020-21 | R10: =dms_y14 -> 2021-22
B11: RESIDENTIAL | C11: Underground connections | D11: 0's
C12: Overhead connections | D12: 0's
C13: Distribution substation installed (MVA added) | D13: MVA
C14: Distribution substations installed | D14: 0's
C15: Distribution substation installed (total spend $0's) | D15: total spend $0s
C16: Augmentation HV (net circuit KM added) | D16: KM
C17: Augmentation HV (total spend $0's) | D17: total spend $0s
C18: Augmentation LV (net circuit KM added) | D18: KM
C19: Augmentation LV (total spend $0's) | D19: total spend $0s
C20: Mean days to connect residential customer with LV single phase connection | D20: 0's
C21: Volume of GSL breaches for residential customers | D21: 0's
C22: Volume of customer complaints relating to connection services | D22: 0's
C23: GSL payments | D23: $0s
B24: COMMERCIAL/INDUSTRIAL | C24: Underground connections | D24: 0's
C25: Overhead connections | D25: 0's
C26: Distribution substation installed (MVA added) | D26: MVA
C27: Distribution substations installed (0's) | D27: 0's
C28: Distribution substation installed (total spend ($0's) | D28: total spend $0s
C29: Augmentation HV (net circuit KM added) | D29: KM
C30: Augmentation HV (total spend $0's) | D30: total spend $0s
C31: Augmentation LV (net circuit KM added) | D31: KM
C32: Augmentation LV (total spend $0's) | D32: total spend $0s
B33: SUBDIVISION | C33: Underground connections | D33: 0's
C34: Overhead connections | D34: 0's
C35: Distribution substation installed (MVA added) | D35: MVA
C36: Distribution substations installed | D36: 0's
C37: Distribution substation installed (total spend $0's) | D37: total spend $0s
C38: Augmentation HV (net circuit KM added) | D38: KM
C39: Augmentation HV (total spend $0's) | D39: total spend $0s
C40: Augmentation LV (net circuit KM added) | D40: KM
C41: Augmentation LV (total spend $0's) | D41: total spend $0s
C42: Cost per lot ($) | D42: $0s
B43: EMBEDDED GENERATION | C43: Underground connections | D43: 0's
C44: Overhead connections | D44: 0's
C45: Distribution substation installed (MVA added) | D45: MVA
C46: Distribution substations installed | D46: 0's
C47: Distribution substation installed (total spend $0's) | D47: total spend $0s
C48: Augmentation HV (net circuit KM added) | D48: KM
C49: Augmentation HV (total spend $0's) | D49: total spend $0s
C50: Augmentation LV (net circuit KM added) | D50: KM
C51: Augmentation LV (total spend $0's) | D51: total spend $0s
B55: 2.5.2 - COST METRICS BY CONNECTION CLASSIFICATION
B56: EXPENDITURE - STANDARD CONTROL SERVICES
E57: EXPENDITURE
E58: ($0's, nominal)
E59: =dms_y1 -> 2008-09 | F59: =dms_y2 -> 2009-10 | G59: =dms_y3 -> 2010-11 | H59: =dms_y4 -> 2011-12 | I59: =dms_y5 -> 2012-13 | J59: =dms_y6 -> 2013-14 | K59: =dms_y7 -> 2014-15 | L59: =dms_y8 -> 2015-16 | M59: =dms_y9 -> 2016-17 | N59: =dms_y10 -> 2017-18 | O59: =dms_y11 -> 2018-19 | P59: =dms_y12 -> 2019-20 | Q59: =dms_y13 -> 2020-21 | R59: =dms_y14 -> 2021-22
B60: RESIDENTIAL | C60: Simple connection LV | K60: ='[10]2.5'!J127 -> 882781.8183 | L60: ='[10]2.5'!K127 -> 803279.8701 | M60: ='[10]2.5'!L127 -> 496397.4406 | N60: ='[11]2.5'!D124 -> 77222.67275 | O60: ='[12]2.5'!D124 -> 133593.3939 | P60: ='[6]2.5'!D124 -> 85540.40066 | Q60: ='[7]2.5'!D124 -> 238300.1827 | R60: ='[13]2.5'!D124 -> 382591.9626
C61: Complex connection LV | K61: ='[10]2.5'!J128 -> 159153.6133 | L61: ='[10]2.5'!K128 -> 27471.12667 | M61: ='[10]2.5'!L128 -> 112.44 | N61: ='[11]2.5'!D125 -> 33572.19 | O61: ='[12]2.5'!D125 -> 15124.7 | P61: ='[6]2.5'!D125 -> 128210.71 | Q61: ='[7]2.5'!D125 -> 155150.2 | R61: ='[13]2.5'!D125 -> 68506.19
C62: Complex connection HV | K62: ='[10]2.5'!J129 -> 3217263.05 | L62: ='[10]2.5'!K129 -> 1084484.02 | M62: ='[10]2.5'!L129 -> 203741.13 | N62: ='[11]2.5'!D126 -> 243095.9 | O62: ='[12]2.5'!D126 -> 196046.61 | P62: ='[6]2.5'!D126 -> 247843.31 | Q62: ='[7]2.5'!D126 -> 50933.31667 | R62: ='[13]2.5'!D126 -> 268905.48
B63: COMMERCIAL/INDUSTRIAL | C63: Simple connection LV | K63: ='[10]2.5'!J130 -> 242524.3321 | L63: ='[10]2.5'!K130 -> 378990.9176 | M63: ='[10]2.5'!L130 -> 319837.8082 | N63: ='[11]2.5'!D127 -> 131560.5157 | O63: ='[12]2.5'!D127 -> 104152.2456 | P63: ='[6]2.5'!D127 -> 37938.84567 | Q63: ='[7]2.5'!D127 -> 50548.52368 | R63: ='[13]2.5'!D127 -> 293746.1418
C64: Complex connection HV (customer connected at LV, minor HV works) | K64: ='[10]2.5'!J131 -> 0 | L64: ='[10]2.5'!K131 -> 0 | M64: ='[10]2.5'!L131 -> 0 | N64: ='[11]2.5'!D128 -> 0 | O64: ='[12]2.5'!D128 -> 0 | P64: ='[6]2.5'!D128 -> 0 | Q64: ='[7]2.5'!D128 -> 0 | R64: ='[13]2.5'!D128 -> 0
C65: Complex connection HV (customer connected at LV, upstream asset works) | K65: ='[10]2.5'!J132 -> 0 | L65: ='[10]2.5'!K132 -> 0 | M65: ='[10]2.5'!L132 -> 0 | N65: ='[11]2.5'!D129 -> 0 | O65: ='[12]2.5'!D129 -> 0 | P65: ='[6]2.5'!D129 -> 0 | Q65: ='[7]2.5'!D129 -> 0 | R65: ='[13]2.5'!D129 -> 0
C66: Complex connection HV (customer connected at HV) | K66: ='[10]2.5'!J133 -> 0 | L66: ='[10]2.5'!K133 -> 0 | M66: ='[10]2.5'!L133 -> 0 | N66: ='[11]2.5'!D130 -> 0 | O66: ='[12]2.5'!D130 -> 0 | P66: ='[6]2.5'!D130 -> 0 | Q66: ='[7]2.5'!D130 -> 0 | R66: ='[13]2.5'!D130 -> 0
C67: Complex connection sub-transmission | K67: ='[10]2.5'!J134 -> 0 | L67: ='[10]2.5'!K134 -> 0 | M67: ='[10]2.5'!L134 -> 0 | N67: ='[11]2.5'!D131 -> 0 | O67: ='[12]2.5'!D131 -> 0 | P67: ='[6]2.5'!D131 -> 0 | Q67: ='[7]2.5'!D131 -> 0 | R67: ='[13]2.5'!D131 -> 0
B68: SUBDIVISION | C68: Complex connection LV | K68: ='[10]2.5'!J135 -> 760897.3493 | L68: ='[10]2.5'!K135 -> 663170.8502 | M68: ='[10]2.5'!L135 -> 426307.0497 | N68: ='[11]2.5'!D132 -> 261006.6373 | O68: ='[12]2.5'!D132 -> 169421.2794 | P68: ='[6]2.5'!D132 -> 191340.3699 | Q68: ='[7]2.5'!D132 -> 473583.7416 | R68: ='[13]2.5'!D132 -> 380062.4052
C69: Complex connection HV (no upstream asset works) | K69: ='[10]2.5'!J136 -> 0 | L69: ='[10]2.5'!K136 -> 0 | M69: ='[10]2.5'!L136 -> 0 | N69: ='[11]2.5'!D133 -> 0 | O69: ='[12]2.5'!D133 -> 0 | P69: ='[6]2.5'!D133 -> 0 | Q69: ='[7]2.5'!D133 -> 0 | R69: ='[13]2.5'!D133 -> 0
C70: Complex connection HV (with upstream asset works) | K70: ='[10]2.5'!J137 -> 0 | L70: ='[10]2.5'!K137 -> 0 | M70: ='[10]2.5'!L137 -> 0 | N70: ='[11]2.5'!D134 -> 0 | O70: ='[12]2.5'!D134 -> 0 | P70: ='[6]2.5'!D134 -> 0 | Q70: ='[7]2.5'!D134 -> 0 | R70: ='[13]2.5'!D134 -> 0
B71: EMBEDDED GENERATION | C71: Simple connection LV | K71: ='[10]2.5'!J138 -> 0 | L71: ='[10]2.5'!K138 -> 0 | M71: ='[10]2.5'!L138 -> 0 | N71: ='[11]2.5'!D135 -> 0 | O71: ='[12]2.5'!D135 -> 0 | P71: ='[6]2.5'!D135 -> 0 | Q71: ='[7]2.5'!D135 -> 0 | R71: ='[13]2.5'!D135 -> 0
C72: Complex connection HV (small capacity) | K72: ='[10]2.5'!J139 -> 0 | L72: ='[10]2.5'!K139 -> 0 | M72: ='[10]2.5'!L139 -> 0 | N72: ='[11]2.5'!D136 -> 0 | O72: ='[12]2.5'!D136 -> 0 | P72: ='[6]2.5'!D136 -> 0 | Q72: ='[7]2.5'!D136 -> 0 | R72: ='[13]2.5'!D136 -> 0
C73: Complex connection HV (large capacity) | K73: ='[10]2.5'!J140 -> 0 | L73: ='[10]2.5'!K140 -> 0 | M73: ='[10]2.5'!L140 -> 0 | N73: ='[11]2.5'!D137 -> 0 | O73: ='[12]2.5'!D137 -> 0 | P73: ='[6]2.5'!D137 -> 0 | Q73: ='[7]2.5'!D137 -> 0 | R73: ='[13]2.5'!D137 -> 0
B75: EXPENDITURE - STANDARD CONTROL SERVICES - CAPITAL CONTRIBUTIONS
E76: EXPENDITURE
E77: ($0's, nominal)
E78: =dms_y1 -> 2008-09 | F78: =dms_y2 -> 2009-10 | G78: =dms_y3 -> 2010-11 | H78: =dms_y4 -> 2011-12 | I78: =dms_y5 -> 2012-13 | J78: =dms_y6 -> 2013-14 | K78: =dms_y7 -> 2014-15 | L78: =dms_y8 -> 2015-16 | M78: =dms_y9 -> 2016-17 | N78: =dms_y10 -> 2017-18 | O78: =dms_y11 -> 2018-19 | P78: =dms_y12 -> 2019-20 | Q78: =dms_y13 -> 2020-21 | R78: =dms_y14 -> 2021-22
B79: RESIDENTIAL | C79: Simple connection LV | K79: ='[10]2.5'!J145 -> 7555 | L79: ='[10]2.5'!K145 -> 307 | M79: ='[10]2.5'!L145 -> 0 | N79: ='[11]2.5'!D142 -> 0 | O79: ='[12]2.5'!D142 -> 0 | P79: ='[6]2.5'!D142 -> 0 | Q79: ='[7]2.5'!D142 -> 0 | R79: ='[13]2.5'!D142 -> 769.5492
C80: Complex connection LV | K80: ='[10]2.5'!J146 -> 28884.085 | L80: ='[10]2.5'!K146 -> 111074.2591 | M80: ='[10]2.5'!L146 -> 1542.405428 | N80: ='[11]2.5'!D143 -> 0 | O80: ='[12]2.5'!D143 -> 0 | P80: ='[6]2.5'!D143 -> 0 | Q80: ='[7]2.5'!D143 -> 33086.93 | R80: ='[13]2.5'!D143 -> 0
C81: Complex connection HV | K81: ='[10]2.5'!J147 -> 929943.6623 | L81: ='[10]2.5'!K147 -> 1914096.457 | M81: ='[10]2.5'!L147 -> 398746.9327 | N81: ='[11]2.5'!D144 -> 98842 | O81: ='[12]2.5'!D144 -> 32937.7 | P81: ='[6]2.5'!D144 -> 49998.4 | Q81: ='[7]2.5'!D144 -> 0 | R81: ='[13]2.5'!D144 -> 120319.49
B82: COMMERCIAL/INDUSTRIAL | C82: Simple connection LV | K82: ='[10]2.5'!J148 -> 0 | L82: ='[10]2.5'!K148 -> 55285.23 | M82: ='[10]2.5'!L148 -> 107182.48 | N82: ='[11]2.5'!D145 -> 10807.92 | O82: ='[12]2.5'!D145 -> 35696.42 | P82: ='[6]2.5'!D145 -> 7692.58 | Q82: ='[7]2.5'!D145 -> 236855.9755 | R82: ='[13]2.5'!D145 -> 154680.9
C83: Complex connection HV (customer connected at LV, minor HV works) | K83: ='[10]2.5'!J149 -> 0 | L83: ='[10]2.5'!K149 -> 0 | M83: ='[10]2.5'!L149 -> 0 | N83: ='[11]2.5'!D146 -> 0 | O83: ='[12]2.5'!D146 -> 0 | P83: ='[6]2.5'!D146 -> 0 | Q83: ='[7]2.5'!D146 -> 0 | R83: ='[13]2.5'!D146 -> 0
C84: Complex connection HV (customer connected at LV, upstream asset works) | K84: ='[10]2.5'!J150 -> 0 | L84: ='[10]2.5'!K150 -> 0 | M84: ='[10]2.5'!L150 -> 0 | N84: ='[11]2.5'!D147 -> 0 | O84: ='[12]2.5'!D147 -> 0 | P84: ='[6]2.5'!D147 -> 0 | Q84: ='[7]2.5'!D147 -> 0 | R84: ='[13]2.5'!D147 -> 0
C85: Complex connection HV (customer connected at HV) | K85: ='[10]2.5'!J151 -> 0 | L85: ='[10]2.5'!K151 -> 0 | M85: ='[10]2.5'!L151 -> 0 | N85: ='[11]2.5'!D148 -> 0 | O85: ='[12]2.5'!D148 -> 0 | P85: ='[6]2.5'!D148 -> 0 | Q85: ='[7]2.5'!D148 -> 0 | R85: ='[13]2.5'!D148 -> 0
C86: Complex connection sub-transmission | K86: ='[10]2.5'!J152 -> 0 | L86: ='[10]2.5'!K152 -> 0 | M86: ='[10]2.5'!L152 -> 0 | N86: ='[11]2.5'!D149 -> 0 | O86: ='[12]2.5'!D149 -> 0 | P86: ='[6]2.5'!D149 -> 0 | Q86: ='[7]2.5'!D149 -> 0 | R86: ='[13]2.5'!D149 -> 0
B87: SUBDIVISION | C87: Complex connection LV | K87: ='[10]2.5'!J153 -> 230683.374 | L87: ='[10]2.5'!K153 -> 408787.5755 | M87: ='[10]2.5'!L153 -> 7744.102956 | N87: ='[11]2.5'!D150 -> 498455.4664 | O87: ='[12]2.5'!D150 -> 120774.1406 | P87: ='[6]2.5'!D150 -> 19728.15511 | Q87: ='[7]2.5'!D150 -> 685181.1541 | R87: ='[13]2.5'!D150 -> 150908.4836
C88: Complex connection HV (no upstream asset works) | K88: ='[10]2.5'!J154 -> 0 | L88: ='[10]2.5'!K154 -> 0 | M88: ='[10]2.5'!L154 -> 0 | N88: ='[11]2.5'!D151 -> 0 | O88: ='[12]2.5'!D151 -> 0 | P88: ='[6]2.5'!D151 -> 0 | Q88: ='[7]2.5'!D151 -> 0 | R88: ='[13]2.5'!D151 -> 0
C89: Complex connection HV (with upstream asset works) | K89: ='[10]2.5'!J155 -> 0 | L89: ='[10]2.5'!K155 -> 0 | M89: ='[10]2.5'!L155 -> 0 | N89: ='[11]2.5'!D152 -> 0 | O89: ='[12]2.5'!D152 -> 0 | P89: ='[6]2.5'!D152 -> 0 | Q89: ='[7]2.5'!D152 -> 0 | R89: ='[13]2.5'!D152 -> 0
B90: EMBEDDED GENERATION | C90: Simple connection LV | K90: ='[10]2.5'!J156 -> 0 | L90: ='[10]2.5'!K156 -> 0 | M90: ='[10]2.5'!L156 -> 0 | N90: ='[11]2.5'!D153 -> 0 | O90: ='[12]2.5'!D153 -> 0 | P90: ='[6]2.5'!D153 -> 0 | Q90: ='[7]2.5'!D153 -> 0 | R90: ='[13]2.5'!D153 -> 0
C91: Complex connection HV (small capacity) | K91: ='[10]2.5'!J157 -> 0 | L91: ='[10]2.5'!K157 -> 0 | M91: ='[10]2.5'!L157 -> 0 | N91: ='[11]2.5'!D154 -> 0 | O91: ='[12]2.5'!D154 -> 0 | P91: ='[6]2.5'!D154 -> 0 | Q91: ='[7]2.5'!D154 -> 0 | R91: ='[13]2.5'!D154 -> 0
C92: Complex connection HV (large capacity) | K92: ='[10]2.5'!J158 -> 0 | L92: ='[10]2.5'!K158 -> 0 | M92: ='[10]2.5'!L158 -> 0 | N92: ='[11]2.5'!D155 -> 0 | O92: ='[12]2.5'!D155 -> 0 | P92: ='[6]2.5'!D155 -> 0 | Q92: ='[7]2.5'!D155 -> 0 | R92: ='[13]2.5'!D155 -> 0

Sheet 2.6 Non-network (hidden)
B1: =INDEX(dms_Worksheet_List,MATCH(dms_Model,dms_Model_List)) -> RECAST HISTORICAL CATEGORY ANALYSIS
B2: =INDEX(dms_TradingNameFull_List,MATCH(dms_TradingName,dms_TradingName_List)) -> Power and Water Corporation
B3: =CONCATENATE("REGULATORY PERIOD FROM ", FRCP_y1, " TO ", FRCP_y5) -> REGULATORY PERIOD FROM 2024-25 TO 2028-29
B4: 2.6 NON-NETWORK EXPENDITURE
B6: There are THREE tables on this worksheet - each has been 'grouped' (and sub-grouped) for easy navigation. See the Instructions sheet on how to group or ungroup tables.
B8: 2.6.1 - NON-NETWORK EXPENDITURE
D9: EXPENDITURE ($0's)
B10: SERVICE SUBCATEGORY | C10: ASSET CATEGORY | D10: =dms_y1 -> 2008-09 | E10: =dms_y2 -> 2009-10 | F10: =dms_y3 -> 2010-11 | G10: =dms_y4 -> 2011-12 | H10: =dms_y5 -> 2012-13 | I10: =dms_y6 -> 2013-14 | J10: =dms_y7 -> 2014-15 | K10: =dms_y8 -> 2015-16 | L10: =dms_y9 -> 2016-17 | M10: =dms_y10 -> 2017-18 | N10: =dms_y11 -> 2018-19 | O10: =dms_y12 -> 2019-20 | P10: =dms_y13 -> 2020-21 | Q10: =dms_y14 -> 2021-22
B11: OPEX
B12: IT & COMMUNICATIONS | C12: Total
B13: MOTOR VEHICLES | C13: Car
C14: Light commercial vehicle
C15: Elevated work platform (LCV)
C16: Elevated work platform (HCV)
C17: Heavy commercial vehicle
B18: BUILDINGS AND PROPERTY | C18: Total buildings and property expenditure
B19: OTHER | C19: Other expenditure
B20: OTHER - DNSP nominated
B31: CAPEX
B32: IT & COMMUNICATIONS | C32: Total
B33: MOTOR VEHICLES | C33: Car
C34: Light commercial vehicle
C35: Elevated work platform (LCV)
C36: Elevated work platform (HCV)
C37: Heavy commercial vehicle
B38: BUILDINGS AND PROPERTY | C38: Total buildings and property expenditure
B39: OTHER | C39: Other expenditure
B40: OTHER - DNSP nominated
B56: 2.6.5 - INFORMATION & COMMUNICATIONS TECHNOLOGY - CAPEX
D57: EXPENDITURE ($0's)
D58: =dms_y1 -> 2008-09 | E58: =dms_y2 -> 2009-10 | F58: =dms_y3 -> 2010-11 | G58: =dms_y4 -> 2011-12 | H58: =dms_y5 -> 2012-13 | I58: =dms_y6 -> 2013-14 | J58: =dms_y7 -> 2014-15 | K58: =dms_y8 -> 2015-16 | L58: =dms_y9 -> 2016-17 | M58: =dms_y10 -> 2017-18 | N58: =dms_y11 -> 2018-19 | O58: =dms_y12 -> 2019-20 | P58: =dms_y13 -> 2020-21 | Q58: =dms_y14 -> 2021-22
B59: RECURRENT
B60: ICT Capability Growth
B61: ICT Asset Extensions
B62: ICT Asset Remeditation
B63: ICT Asset Replacement
B70: NON RECURRENT
B71: Maintaining existing functionalities
B72: Complying with Regulatory requirements
B73: New or expanded ICT functionality

Sheet 2.7 Vegetation management (hidden)
B1: =INDEX(dms_Worksheet_List,MATCH(dms_Model,dms_Model_List)) -> RECAST HISTORICAL CATEGORY ANALYSIS
B2: =INDEX(dms_TradingNameFull_List,MATCH(dms_TradingName,dms_TradingName_List)) -> Power and Water Corporation
B3: =CONCATENATE("REGULATORY PERIOD FROM ", FRCP_y1, " TO ", FRCP_y5) -> REGULATORY PERIOD FROM 2024-25 TO 2028-29
B4: 2.7 VEGETATION MANAGEMENT
B6: 2.7.1 - DESCRIPTOR METRICS BY ZONE
E7: EXPENDITURE ($0's)
B8: ZONES | C8: SERVICE SUBCATEGORY | E8: =dms_y1 -> 2008-09 | F8: =dms_y2 -> 2009-10 | G8: =dms_y3 -> 2010-11 | H8: =dms_y4 -> 2011-12 | I8: =dms_y5 -> 2012-13 | J8: =dms_y6 -> 2013-14 | K8: =dms_y7 -> 2014-15 | L8: =dms_y8 -> 2015-16 | M8: =dms_y9 -> 2016-17 | N8: =dms_y10 -> 2017-18 | O8: =dms_y11 -> 2018-19 | P8: =dms_y12 -> 2019-20 | Q8: =dms_y13 -> 2020-21 | R8: =dms_y14 -> 2021-22
B9: Zone 1 | C9: Tree trimming (excluding hazard trees)
C10: Hazard tree cutting
C11: Ground clearance
C12: Vegetation corridor clearance
C13: Inspection
C14: Vegetation audit
C15: Contractor liaison expenditure
C16: Tree replacement program costs
C17: Other vegetation management costs not specified in sheet
B18: Zone 2 | C18: Tree trimming (excluding hazard trees)
C19: Hazard tree cutting
C20: Ground clearance
C21: Vegetation corridor clearance
C22: Inspection
C23: Vegetation audit
C24: Contractor liaison expenditure
C25: Tree replacement program costs
C26: Other vegetation management costs not specified in sheet
B27: Zone 3 | C27: Tree trimming (excluding hazard trees)
C28: Hazard tree cutting
C29: Ground clearance
C30: Vegetation corridor clearance
C31: Inspection
C32: Vegetation audit
C33: Contractor liaison expenditure
C34: Tree replacement program costs
C35: Other vegetation management costs not specified in sheet
B36: Zone 4 | C36: Tree trimming (excluding hazard trees)
C37: Hazard tree cutting
C38: Ground clearance
C39: Vegetation corridor clearance
C40: Inspection
C41: Vegetation audit
C42: Contractor liaison expenditure
C43: Tree replacement program costs
C44: Other vegetation management costs not specified in sheet
B45: Zone 5 | C45: Tree trimming (excluding hazard trees)
C46: Hazard tree cutting
C47: Ground clearance
C48: Vegetation corridor clearance
C49: Inspection
C50: Vegetation audit
C51: Contractor liaison expenditure
C52: Tree replacement program costs
C53: Other vegetation management costs not specified in sheet
B54: Zone 6 | C54: Tree trimming (excluding hazard trees)
C55: Hazard tree cutting
C56: Ground clearance
C57: Vegetation corridor clearance
C58: Inspection
C59: Vegetation audit
C60: Contractor liaison expenditure
C61: Tree replacement program costs
C62: Other vegetation management costs not specified in sheet
B63: Zone 7 | C63: Tree trimming (excluding hazard trees)
C64: Hazard tree cutting
C65: Ground clearance
C66: Vegetation corridor clearance
C67: Inspection
C68: Vegetation audit
C69: Contractor liaison expenditure
C70: Tree replacement program costs
C71: Other vegetation management costs not specified in sheet
B72: Zone 8 | C72: Tree trimming (excluding hazard trees)
C73: Hazard tree cutting
C74: Ground clearance
C75: Vegetation corridor clearance
C76: Inspection
C77: Vegetation audit
C78: Contractor liaison expenditure
C79: Tree replacement program costs
C80: Other vegetation management costs not specified in sheet
B81: Zone 9 | C81: Tree trimming (excluding hazard trees)
C82: Hazard tree cutting
C83: Ground clearance
C84: Vegetation corridor clearance
C85: Inspection
C86: Vegetation audit
C87: Contractor liaison expenditure
C88: Tree replacement program costs
C89: Other vegetation management costs not specified in sheet
B90: Zone 10 | C90: Tree trimming (excluding hazard trees)
C91: Hazard tree cutting
C92: Ground clearance
C93: Vegetation corridor clearance
C94: Inspection
C95: Vegetation audit
C96: Contractor liaison expenditure
C97: Tree replacement program costs
C98: Other vegetation management costs not specified in sheet
B99: Zone 11 | C99: Tree trimming (excluding hazard trees)
C100: Hazard tree cutting
C101: Ground clearance
C102: Vegetation corridor clearance
C103: Inspection
C104: Vegetation audit
C105: Contractor liaison expenditure
C106: Tree replacement program costs
C107: Other vegetation management costs not specified in sheet
B108: Zone 12 | C108: Tree trimming (excluding hazard trees)
C109: Hazard tree cutting
C110: Ground clearance
C111: Vegetation corridor clearance
C112: Inspection
C113: Vegetation audit
C114: Contractor liaison expenditure
C115: Tree replacement program costs
C116: Other vegetation management costs not specified in sheet
B117: Zone 13 | C117: Tree trimming (excluding hazard trees)
C118: Hazard tree cutting
C119: Ground clearance
C120: Vegetation corridor clearance
C121: Inspection
C122: Vegetation audit
C123: Contractor liaison expenditure
C124: Tree replacement program costs
C125: Other vegetation management costs not specified in sheet
B126: Zone 14 | C126: Tree trimming (excluding hazard trees)
C127: Hazard tree cutting
C128: Ground clearance
C129: Vegetation corridor clearance
C130: Inspection
C131: Vegetation audit
C132: Contractor liaison expenditure
C133: Tree replacement program costs
C134: Other vegetation management costs not specified in sheet
B135: Zone 15 | C135: Tree trimming (excluding hazard trees)
C136: Hazard tree cutting
C137: Ground clearance
C138: Vegetation corridor clearance
C139: Inspection
C140: Vegetation audit
C141: Contractor liaison expenditure
C142: Tree replacement program costs
C143: Other vegetation management costs not specified in sheet
B144: Zone 16 | C144: Tree trimming (excluding hazard trees)
C145: Hazard tree cutting
C146: Ground clearance
C147: Vegetation corridor clearance
C148: Inspection
C149: Vegetation audit
C150: Contractor liaison expenditure
C151: Tree replacement program costs
C152: Other vegetation management costs not specified in sheet
B153: Zone 17 | C153: Tree trimming (excluding hazard trees)
C154: Hazard tree cutting
C155: Ground clearance
C156: Vegetation corridor clearance
C157: Inspection
C158: Vegetation audit
C159: Contractor liaison expenditure
C160: Tree replacement program costs
C161: Other vegetation management costs not specified in sheet
B162: Zone 18 | C162: Tree trimming (excluding hazard trees)
C163: Hazard tree cutting
C164: Ground clearance
C165: Vegetation corridor clearance
C166: Inspection
C167: Vegetation audit
C168: Contractor liaison expenditure
C169: Tree replacement program costs
C170: Other vegetation management costs not specified in sheet

Sheet 2.8 Maintenance (hidden)
B1: =INDEX(dms_Worksheet_List,MATCH(dms_Model,dms_Model_List)) -> RECAST HISTORICAL CATEGORY ANALYSIS
B2: =INDEX(dms_TradingNameFull_List,MATCH(dms_TradingName,dms_TradingName_List)) -> Power and Water Corporation
B3: =CONCATENATE("REGULATORY PERIOD FROM ", FRCP_y1, " TO ", FRCP_y5) -> REGULATORY PERIOD FROM 2024-25 TO 2028-29
B4: 2.8 MAINTENANCE
B7: 2.8.2 - COST METRICS FOR ROUTINE AND NON-ROUTINE MAINTENANCE
B8: ROUTINE MAINTENANCE
F9: EXPENDITURE ($0's)
B10: MAINTENANCE ACTIVITY | C10: MAINTENANCE ASSET CATEGORY | D10: ASSET QUANTITY | E10: UNITS | F10: =dms_y1 -> 2008-09 | G10: =dms_y2 -> 2009-10 | H10: =dms_y3 -> 2010-11 | I10: =dms_y4 -> 2011-12 | J10: =dms_y5 -> 2012-13 | K10: =dms_y6 -> 2013-14 | L10: =dms_y7 -> 2014-15 | M10: =dms_y8 -> 2015-16 | N10: =dms_y9 -> 2016-17 | O10: =dms_y10 -> 2017-18 | P10: =dms_y11 -> 2018-19 | Q10: =dms_y12 -> 2019-20 | R10: =dms_y13 -> 2020-21 | S10: =dms_y14 -> 2021-22
B11: Pole top, overhead line & service line maintenance | C11: Pole tops and overhead lines | D11: Number of poles | E11: Number
C12: Service lines | D12: Number of customers | E12: Number
B13: Pole inspection and treatment | C13: All poles | D13: Number of poles | E13: Number
B14: Overhead asset inspection | C14: All overhead assets | D14: Line patrolled (route KM) | E14: KM
B15: Network underground cable maintenance: by voltage | C15: LV - 11 to 22 KV | D15: Length (KM) | E15: KM
C16: 33 KV and above | D16: Length (KM) | E16: KM
B17: Network underground cable maintenance: by location | C17: Cbd | D17: Length (KM) | E17: KM
C18: Non-CBD | D18: Length (KM) | E18: KM
B19: Distribution substation equipment & property maintenance | C19: Distribution substation transformers | D19: Number of installed transformers | E19: Number
C20: Distribution substation switchgear (within-substations and stand-alone switchgear) | D20: Number of switches | E20: Number
C21: Distribution substation - other equipment | D21: Earth mat | E21: Number
C22: Distribution substation - property | D22: Number of distribution substation properties maintained | E22: Number
B23: Zone substation equipment maintenance | C23: Transformers - zone substation | D23: Number | E23: Number
C24: Transformers - distribution | D24: Number of distribution transformers within zone substation | E24: Number
C25: Transformers - HV | D25: Number of HV transformers | E25: Number
C26: Zone substation - other equipment
B27: Zone substation property maintenance | C27: All zone substation properties | D27: Number of zone substation properties maintained | E27: Number
B28: Public lighting maintenance | C28: Minor roads | D28: Number of public lights maintained | E28: Number
C29: Major roads | D29: Number of public lights maintained | E29: Number
B30: SCADA & network control maintenance | C30: SCADA & network control | D30: Number of systems | E30: Number
B31: Protection systems maintenance | C31: Protection systems | D31: Number of systems | E31: Number
B32: Subtransmission asset maintenance | C32: Subtransmission asset maintenance - for DNSPs with dual function assets
B33: Various assets | C33: includes rates, electricity, communications equip, metering | D33: Various | E33: Number
B34: Ground clearance - access tracks | C34: Access tracks | D34: Number | E34: Number
B35: Other
B46: NON-ROUTINE MAINTENANCE
F47: EXPENDITURE ($0's)
B48: MAINTENANCE ACTIVITY | C48: MAINTENANCE ASSET CATEGORY | D48: ASSET QUANTITY | E48: UNITS | F48: =dms_y1 -> 2008-09 | G48: =dms_y2 -> 2009-10 | H48: =dms_y3 -> 2010-11 | I48: =dms_y4 -> 2011-12 | J48: =dms_y5 -> 2012-13 | K48: =dms_y6 -> 2013-14 | L48: =dms_y7 -> 2014-15 | M48: =dms_y8 -> 2015-16 | N48: =dms_y9 -> 2016-17 | O48: =dms_y10 -> 2017-18 | P48: =dms_y11 -> 2018-19 | Q48: =dms_y12 -> 2019-20 | R48: =dms_y13 -> 2020-21 | S48: =dms_y14 -> 2021-22
B49: Pole top, overhead line & service line maintenance | C49: Pole tops and overhead lines | D49: Number of poles | E49: Number
C50: Service lines | D50: Number of customers | E50: Number
B51: Pole inspection and treatment | C51: All poles | D51: Number of poles | E51: Number
B52: Overhead asset inspection | C52: All overhead assets | D52: Line patrolled (route KM) | E52: KM
B53: Network underground cable maintenance: by voltage | C53: LV - 11 to 22 KV | D53: Length (KM) | E53: KM
C54: 33 KV and above | D54: Length (KM) | E54: KM
B55: Network underground cable maintenance: by location | C55: Cbd | D55: Length (KM) | E55: KM
C56: Non-CBD | D56: Length (KM) | E56: KM
B57: Distribution substation equipment & property maintenance | C57: Distribution substation transformers | D57: Number of installed transformers | E57: Number
C58: Distribution substation switchgear (within-substations and stand-alone switchgear) | D58: Number of switches | E58: Number
C59: Distribution substation - other equipment | D59: Earth mat | E59: Number
C60: Distribution substation - property | D60: Number of distribution substation properties maintained | E60: Number
B61: Zone substation equipment maintenance | C61: Transformers - zone substation | D61: Number | E61: Number
C62: Transformers - distribution | D62: Number of distribution transformers within zone substation | E62: Number
C63: Transformers - HV | D63: Number of HV transformers | E63: Number
C64: Zone substation - other equipment | D64: =IF(ISBLANK(D26),"",D26) -> 
B65: Zone substation property maintenance | C65: All zone substation properties | D65: Number of zone substation properties maintained | E65: Number
B66: Public lighting maintenance | C66: Minor roads | D66: Number of public lights maintained | E66: Number
C67: Major roads | D67: Number of public lights maintained | E67: Number
B68: SCADA & network control maintenance | C68: SCADA & network control | D68: Number of systems | E68: Number
B69: Protection systems maintenance | C69: Protection systems | D69: Number of systems | E69: Number
B70: Subtransmission asset maintenance | C70: Subtransmission asset maintenance - for DNSPs with dual function assets | D70: =IF(ISBLANK(D32),"",D32) -> 
B71: Various assets | C71: includes rates, electricity, communications equip, metering | D71: Various | E71: Number
B72: Ground clearance - access tracks | C72: Access tracks | D72: Number | E72: Number
B73: Other | C73: =IF(ISBLANK(C35),"",C35) ->  | D73: =IF(ISBLANK(D35),"",D35) -> 
C74: =IF(ISBLANK(C36),"",C36) -> 

Sheet 2.9 Emergency Response (hidden)
B1: =INDEX(dms_Worksheet_List,MATCH(dms_Model,dms_Model_List)) -> RECAST HISTORICAL CATEGORY ANALYSIS
B2: =INDEX(dms_TradingNameFull_List,MATCH(dms_TradingName,dms_TradingName_List)) -> Power and Water Corporation
B3: =CONCATENATE("REGULATORY PERIOD FROM ", FRCP_y1, " TO ", FRCP_y5) -> REGULATORY PERIOD FROM 2024-25 TO 2028-29
B4: 2.9 EMERGENCY RESPONSE
B6: There is ONE table on this worksheet. It has been 'sub-grouped' for easy navigation. See the Instructions sheet on how to group or ungroup data.
B8: 2.9.1 - EMERGENCY RESPONSE EXPENDITURE (OPEX)
D9: EXPENDITURE ($0's)
D10: =dms_y1 -> 2008-09 | E10: =dms_y2 -> 2009-10 | F10: =dms_y3 -> 2010-11 | G10: =dms_y4 -> 2011-12 | H10: =dms_y5 -> 2012-13 | I10: =dms_y6 -> 2013-14 | J10: =dms_y7 -> 2014-15 | K10: =dms_y8 -> 2015-16 | L10: =dms_y9 -> 2016-17 | M10: =dms_y10 -> 2017-18 | N10: =dms_y11 -> 2018-19 | O10: =dms_y12 -> 2019-20 | P10: =dms_y13 -> 2020-21 | Q10: =dms_y14 -> 2021-22
B11: (A) TOTAL EMERGENCY RESPONSE EXPENDITURE | C11: Total Expenditure
B12: (B) MAJOR EVENTS O&M EXPENDITURE
B55: (C) MAJOR EVENT DAYS O&M EXPENDITURE

Sheet 4.2 Metering (hidden)
B1: =INDEX(dms_Worksheet_List,MATCH(dms_Model,dms_Model_List)) -> RECAST HISTORICAL CATEGORY ANALYSIS
B2: =INDEX(dms_TradingNameFull_List,MATCH(dms_TradingName,dms_TradingName_List)) -> Power and Water Corporation
B3: =CONCATENATE("REGULATORY PERIOD FROM ", FRCP_y1, " TO ", FRCP_y5) -> REGULATORY PERIOD FROM 2024-25 TO 2028-29
B4: 4.2 METERING
B6: There are TWO tables on this worksheet. Each table has been 'grouped' (and 'sub-grouped') for easy navigation. See the Instructions sheet on how to group or ungroup data.
B9: 4.2.2 - COST METRICS
B10: EXPENDITURE
D11: EXPENDITURE ($0's)
B12: SERVICE SUBCATEGORY | C12: METER TYPE | D12: =dms_y1 -> 2008-09 | E12: =dms_y2 -> 2009-10 | F12: =dms_y3 -> 2010-11 | G12: =dms_y4 -> 2011-12 | H12: =dms_y5 -> 2012-13 | I12: =dms_y6 -> 2013-14 | J12: =dms_y7 -> 2014-15 | K12: =dms_y8 -> 2015-16 | L12: =dms_y9 -> 2016-17 | M12: =dms_y10 -> 2017-18 | N12: =dms_y11 -> 2018-19 | O12: =dms_y12 -> 2019-20 | P12: =dms_y13 -> 2020-21 | Q12: =dms_y14 -> 2021-22
B13: Meter purchase | C13: Meter Type 4
C14: Meter Type 5
C15: Meter Type 6
B16: Meter testing | C16: Meter Type 4
C17: Meter Type 5
C18: Meter Type 6
B19: Meter investigation | C19: Meter Type 4
C20: Meter Type 5
C21: Meter Type 6
B22: Scheduled meter reading | C22: Meter Type 4
C23: Meter Type 5
C24: Meter Type 6
B25: Special meter reading | C25: Meter Type 4
C26: Meter Type 5
C27: Meter Type 6
B28: New meter installation | C28: Meter Type 4
C29: Meter Type 5
C30: Meter Type 6
B31: Meter replacement | C31: Meter Type 4
C32: Meter Type 5
C33: Meter Type 6
B34: Meter maintenance | C34: Meter Type 4
C35: Meter Type 5
C36: Meter Type 6
B37: Remote meter reading | C37: Meter Type 4
B38: Remote meter re-configuration | C38: Meter Type 4
B39: Other metering | C39: Meter Type 4
C40: Meter Type 5
C41: Meter Type 6
C42: Meter Type 7
B43: IT infrastructure capex | C43: Meter Type 4
B44: IT infrastructure opex | C44: Meter Type 4
B45: Communications infrastructure capex | C45: Meter Type 4
B46: Communications infrastructure opex | C46: Meter Type 4

Sheet 4.3 Fee-based services (hidden)
B1: =INDEX(dms_Worksheet_List,MATCH(dms_Model,dms_Model_List)) -> RECAST HISTORICAL CATEGORY ANALYSIS
B2: =INDEX(dms_TradingNameFull_List,MATCH(dms_TradingName,dms_TradingName_List)) -> Power and Water Corporation
B3: =CONCATENATE("REGULATORY PERIOD FROM ", FRCP_y1, " TO ", FRCP_y5) -> REGULATORY PERIOD FROM 2024-25 TO 2028-29
B4: 4.3 ANCILLARY SERVICES - FEE BASED SERVICES
B6: There is ONE table on this worksheet. See the Instructions sheet on how to group or ungroup data.
B8: 4.3.1 - COST METRICS FOR FEE-BASED SERVICES
B9: COMMON FEE-BASED SERVICES
C10: EXPENDITURE ($0's)
B11: SERVICE SUBCATEGORY | C11: =dms_y1 -> 2008-09 | D11: =dms_y2 -> 2009-10 | E11: =dms_y3 -> 2010-11 | F11: =dms_y4 -> 2011-12 | G11: =dms_y5 -> 2012-13 | H11: =dms_y6 -> 2013-14 | I11: =dms_y7 -> 2014-15 | J11: =dms_y8 -> 2015-16 | K11: =dms_y9 -> 2016-17 | L11: =dms_y10 -> 2017-18 | M11: =dms_y11 -> 2018-19 | N11: =dms_y12 -> 2019-20 | O11: =dms_y13 -> 2020-21 | P11: =dms_y14 -> 2021-22
B12: Energisation
B13: De-energisation
B14: Re-energisation
B15: MISCELLANEOUS FEE-BASED SERVICES
B16: < Enter description of service >

Sheet 4.4 Quoted services
B1: =INDEX(dms_Worksheet_List,MATCH(dms_Model,dms_Model_List)) -> RECAST HISTORICAL CATEGORY ANALYSIS
B2: =INDEX(dms_TradingNameFull_List,MATCH(dms_TradingName,dms_TradingName_List)) -> Power and Water Corporation
B3: =CONCATENATE("REGULATORY PERIOD FROM ", FRCP_y1, " TO ", FRCP_y5) -> REGULATORY PERIOD FROM 2024-25 TO 2028-29
B4: 4.4 ANCILLARY SERVICES - QUOTED SERVICES
B6: There is ONE table on this worksheet. See the Instructions sheet on how to group or ungroup data.
B8: 4.4.1 - COST METRICS FOR QUOTED SERVICES
B9: SERVICE SUBCATEGORY | C9: EXPENDITURE ($0's)
C10: =dms_y1 -> 2008-09 | D10: =dms_y2 -> 2009-10 | E10: =dms_y3 -> 2010-11 | F10: =dms_y4 -> 2011-12 | G10: =dms_y5 -> 2012-13 | H10: =dms_y6 -> 2013-14 | I10: =dms_y7 -> 2014-15 | J10: =dms_y8 -> 2015-16 | K10: =dms_y9 -> 2016-17 | L10: =dms_y10 -> 2017-18 | M10: =dms_y11 -> 2018-19 | N10: =dms_y12 -> 2019-20 | O10: =dms_y13 -> 2020-21 | P10: =dms_y14 -> 2021-22
B11: ='[14]4.4 Quoted services 2021-22'!B6 -> Design related services | I11: ='[14]4.4 Quoted services 2014-2017'!I6 -> 1528047.792 | J11: ='[14]4.4 Quoted services 2014-2017'!J6 -> 923106.6349 | K11: ='[14]4.4 Quoted services 2014-2017'!K6 -> 1401142.966 | L11: ='[14]4.4 Quoted services 2017-18'!C6 -> 121603.41 | M11: ='[14]4.4 Quoted services 2018-19'!C6 -> 10890.34528 | N11: ='[14]4.4 Quoted services 2019-20'!C6 -> 39846.67 | O11: ='[14]4.4 Quoted services 2020-21'!C6 -> 59098.26 | P11: ='[14]4.4 Quoted services 2021-22'!C6 -> 166424.29
B12: ='[14]4.4 Quoted services 2021-22'!B7 -> Negotiated Connections (and Standard Connections) | I12: ='[14]4.4 Quoted services 2014-2017'!I7 -> 2675735.41 | J12: ='[14]4.4 Quoted services 2014-2017'!J7 -> 3035632.748 | K12: ='[14]4.4 Quoted services 2014-2017'!K7 -> 1866252.592 | L12: ='[14]4.4 Quoted services 2017-18'!C7 -> 1877504.01 | M12: ='[14]4.4 Quoted services 2018-19'!C7 -> 2081732.929 | N12: ='[14]4.4 Quoted services 2019-20'!C7 -> 1149467.67 | O12: ='[14]4.4 Quoted services 2020-21'!C7 -> 2713105.367 | P12: ='[14]4.4 Quoted services 2021-22'!C7 -> 1986512.52
B13: ='[14]4.4 Quoted services 2021-22'!B8 -> Connection applications | I13: ='[14]4.4 Quoted services 2014-2017'!I8 -> 0 | J13: ='[14]4.4 Quoted services 2014-2017'!J8 -> 66105.56017 | K13: ='[14]4.4 Quoted services 2014-2017'!K8 -> 8002.105046 | L13: ='[14]4.4 Quoted services 2017-18'!C8 -> 256573.36 | M13: ='[14]4.4 Quoted services 2018-19'!C8 -> 213005.5141 | N13: ='[14]4.4 Quoted services 2019-20'!C8 -> 17324.96 | O13: ='[14]4.4 Quoted services 2020-21'!C8 -> 178426.43 | P13: ='[14]4.4 Quoted services 2021-22'!C8 -> 341558.1
B14: ='[14]4.4 Quoted services 2021-22'!B9 -> Access permits, oversights and facilitation | I14: ='[14]4.4 Quoted services 2014-2017'!I9 -> 7590.189297 | J14: ='[14]4.4 Quoted services 2014-2017'!J9 -> 1348.853309 | K14: ='[14]4.4 Quoted services 2014-2017'!K9 -> 875.7668613 | L14: ='[14]4.4 Quoted services 2017-18'!C9 -> 949805.63 | M14: ='[14]4.4 Quoted services 2018-19'!C9 -> 165580.4473 | N14: ='[14]4.4 Quoted services 2019-20'!C9 -> 60210.24 | O14: ='[14]4.4 Quoted services 2020-21'!C9 -> 105190.85 | P14: ='[14]4.4 Quoted services 2021-22'!C9 -> 345134.5
B15: ='[14]4.4 Quoted services 2021-22'!B10 -> Notices of arrangement and completion notices | I15: ='[14]4.4 Quoted services 2014-2017'!I10 -> 0 | J15: ='[14]4.4 Quoted services 2014-2017'!J10 -> 0 | K15: ='[14]4.4 Quoted services 2014-2017'!K10 -> 0 | L15: ='[14]4.4 Quoted services 2017-18'!C10 -> 0 | M15: ='[14]4.4 Quoted services 2018-19'!C10 -> 0 | N15: ='[14]4.4 Quoted services 2019-20'!C10 -> 0 | O15: ='[14]4.4 Quoted services 2020-21'!C10 -> 0 | P15: ='[14]4.4 Quoted services 2021-22'!C10 -> 0
B16: ='[14]4.4 Quoted services 2021-22'!B11 -> Network related property services | I16: ='[14]4.4 Quoted services 2014-2017'!I11 -> 0 | J16: ='[14]4.4 Quoted services 2014-2017'!J11 -> 0 | K16: ='[14]4.4 Quoted services 2014-2017'!K11 -> 0 | L16: ='[14]4.4 Quoted services 2017-18'!C11 -> 8283.55 | M16: ='[14]4.4 Quoted services 2018-19'!C11 -> 5098.533585 | N16: ='[14]4.4 Quoted services 2019-20'!C11 -> 9035.06 | O16: ='[14]4.4 Quoted services 2020-21'!C11 -> 833.3 | P16: ='[14]4.4 Quoted services 2021-22'!C11 -> 0
B17: ='[14]4.4 Quoted services 2021-22'!B12 -> Site establishment services | I17: ='[14]4.4 Quoted services 2014-2017'!I12 -> 0 | J17: ='[14]4.4 Quoted services 2014-2017'!J12 -> 0 | K17: ='[14]4.4 Quoted services 2014-2017'!K12 -> 0 | L17: ='[14]4.4 Quoted services 2017-18'!C12 -> 1193.15 | M17: ='[14]4.4 Quoted services 2018-19'!C12 -> 0 | N17: ='[14]4.4 Quoted services 2019-20'!C12 -> 18939.95 | O17: ='[14]4.4 Quoted services 2020-21'!C12 -> 0 | P17: ='[14]4.4 Quoted services 2021-22'!C12 -> 0
B18: ='[14]4.4 Quoted services 2021-22'!B13 -> Network safety services | I18: ='[14]4.4 Quoted services 2014-2017'!I13 -> 92092.41101 | J18: ='[14]4.4 Quoted services 2014-2017'!J13 -> 58598.94575 | K18: ='[14]4.4 Quoted services 2014-2017'!K13 -> 108699.8023 | L18: ='[14]4.4 Quoted services 2017-18'!C13 -> 161191.7 | M18: ='[14]4.4 Quoted services 2018-19'!C13 -> 35396.88934 | N18: ='[14]4.4 Quoted services 2019-20'!C13 -> 0 | O18: ='[14]4.4 Quoted services 2020-21'!C13 -> 2775.4 | P18: ='[14]4.4 Quoted services 2021-22'!C13 -> 11082.92
B19: ='[14]4.4 Quoted services 2021-22'!B14 -> Network tariff change request | I19: ='[14]4.4 Quoted services 2014-2017'!I14 -> 0 | J19: ='[14]4.4 Quoted services 2014-2017'!J14 -> 0 | K19: ='[14]4.4 Quoted services 2014-2017'!K14 -> 0 | L19: ='[14]4.4 Quoted services 2017-18'!C14 -> 137.68 | M19: ='[14]4.4 Quoted services 2018-19'!C14 -> 0 | N19: ='[14]4.4 Quoted services 2019-20'!C14 -> 0 | O19: ='[14]4.4 Quoted services 2020-21'!C14 -> 0 | P19: ='[14]4.4 Quoted services 2021-22'!C14 -> 0
B20: ='[14]4.4 Quoted services 2021-22'!B15 -> Planned interruption - customer request | I20: ='[14]4.4 Quoted services 2014-2017'!I15 -> 0 | J20: ='[14]4.4 Quoted services 2014-2017'!J15 -> 0 | K20: ='[14]4.4 Quoted services 2014-2017'!K15 -> 0 | L20: ='[14]4.4 Quoted services 2017-18'!C15 -> 1861.84 | M20: ='[14]4.4 Quoted services 2018-19'!C15 -> 0 | N20: ='[14]4.4 Quoted services 2019-20'!C15 -> 0 | O20: ='[14]4.4 Quoted services 2020-21'!C15 -> 27036.76 | P20: ='[14]4.4 Quoted services 2021-22'!C15 -> 87644.3
B21: ='[14]4.4 Quoted services 2021-22'!B16 -> Performance of a statutory right (access prevented) | I21: ='[14]4.4 Quoted services 2014-2017'!I16 -> 0 | J21: ='[14]4.4 Quoted services 2014-2017'!J16 -> 0 | K21: ='[14]4.4 Quoted services 2014-2017'!K16 -> 0 | L21: ='[14]4.4 Quoted services 2017-18'!C16 -> 0 | M21: ='[14]4.4 Quoted services 2018-19'!C16 -> 0 | N21: ='[14]4.4 Quoted services 2019-20'!C16 -> 0 | O21: ='[14]4.4 Quoted services 2020-21'!C16 -> 0 | P21: ='[14]4.4 Quoted services 2021-22'!C16 -> 0
B22: ='[14]4.4 Quoted services 2021-22'!B17 -> Provision of network related training to third parties | I22: ='[14]4.4 Quoted services 2014-2017'!I17 -> 0 | J22: ='[14]4.4 Quoted services 2014-2017'!J17 -> 0 | K22: ='[14]4.4 Quoted services 2014-2017'!K17 -> 0 | L22: ='[14]4.4 Quoted services 2017-18'!C17 -> 0 | M22: ='[14]4.4 Quoted services 2018-19'!C17 -> 0 | N22: ='[14]4.4 Quoted services 2019-20'!C17 -> 0 | O22: ='[14]4.4 Quoted services 2020-21'!C17 -> 0 | P22: ='[14]4.4 Quoted services 2021-22'!C17 -> 0
B23: ='[14]4.4 Quoted services 2021-22'!B18 -> Non-standard reporting services | I23: ='[14]4.4 Quoted services 2014-2017'!I18 -> 0 | J23: ='[14]4.4 Quoted services 2014-2017'!J18 -> 0 | K23: ='[14]4.4 Quoted services 2014-2017'!K18 -> 0 | L23: ='[14]4.4 Quoted services 2017-18'!C18 -> 1101.37 | M23: ='[14]4.4 Quoted services 2018-19'!C18 -> 0 | N23: ='[14]4.4 Quoted services 2019-20'!C18 -> 2839.3 | O23: ='[14]4.4 Quoted services 2020-21'!C18 -> 1036.72 | P23: ='[14]4.4 Quoted services 2021-22'!C18 -> 0
B24: ='[14]4.4 Quoted services 2021-22'!B19 -> Services provided for retailer of last resort event | I24: ='[14]4.4 Quoted services 2014-2017'!I19 -> 0 | J24: ='[14]4.4 Quoted services 2014-2017'!J19 -> 0 | K24: ='[14]4.4 Quoted services 2014-2017'!K19 -> 0 | L24: ='[14]4.4 Quoted services 2017-18'!C19 -> 0 | M24: ='[14]4.4 Quoted services 2018-19'!C19 -> 0 | N24: ='[14]4.4 Quoted services 2019-20'!C19 -> 0 | O24: ='[14]4.4 Quoted services 2020-21'!C19 -> 0 | P24: ='[14]4.4 Quoted services 2021-22'!C19 -> 0
B25: ='[14]4.4 Quoted services 2021-22'!B20 -> Rectification of illegal connections service | I25: ='[14]4.4 Quoted services 2014-2017'!I20 -> 0 | J25: ='[14]4.4 Quoted services 2014-2017'!J20 -> 0 | K25: ='[14]4.4 Quoted services 2014-2017'!K20 -> 0 | L25: ='[14]4.4 Quoted services 2017-18'!C20 -> 0 | M25: ='[14]4.4 Quoted services 2018-19'!C20 -> 0 | N25: ='[14]4.4 Quoted services 2019-20'!C20 -> 0 | O25: ='[14]4.4 Quoted services 2020-21'!C20 -> 0 | P25: ='[14]4.4 Quoted services 2021-22'!C20 -> 0
B26: ='[14]4.4 Quoted services 2021-22'!B21 -> Network changes at customer or retailer's request | I26: ='[14]4.4 Quoted services 2014-2017'!I21 -> 1934353.608 | J26: ='[14]4.4 Quoted services 2014-2017'!J21 -> 2943174.006 | K26: ='[14]4.4 Quoted services 2014-2017'!K21 -> 1077599.34 | L26: ='[14]4.4 Quoted services 2017-18'!C21 -> 1428292.71 | M26: ='[14]4.4 Quoted services 2018-19'!C21 -> 1995711.032 | N26: ='[14]4.4 Quoted services 2019-20'!C21 -> 1727983.94 | O26: ='[14]4.4 Quoted services 2020-21'!C21 -> 1929453.702 | P26: ='[14]4.4 Quoted services 2021-22'!C21 -> 3772104.5
B27: ='[14]4.4 Quoted services 2021-22'!B22 -> Annual prepayment meter licensing fee | M27: ='[14]4.4 Quoted services 2018-19'!C22 -> 0 | N27: ='[14]4.4 Quoted services 2019-20'!C22 -> 0 | O27: ='[14]4.4 Quoted services 2020-21'!C22 -> 0 | P27: ='[14]4.4 Quoted services 2021-22'!C22 -> 0

Sheet Amendments
B1: =CONCATENATE("If ",dms_TradingName," resubmits this Regulatory Reporting Statement, please use this worksheet to identify amendments made to data resubmitted to the AER.") -> If Power and Water resubmits this Regulatory Reporting Statement, please use this worksheet to identify amendments made to data resubmitted to the AER.
B2: NSP data amendments
B3: Worksheet | C3: Table/Cell | D3: Reason for amendment

Sheet Formatting Styles (hidden)
B1: THIS WORKSHEET CONTAINS STYLES AND FORMATTING USED IN RIN TEMPLATES
K6: My named range
B28: STYLES IN USE
B29: HEADING ONE | C29: dms_1
B30: HEADING TWO | C30: dms_2
B31: HEADING THREE | C31: dms_3
B32: HEADING FOUR | C32: dms_4
B33: HEADING FIVE | C33: dms_5
B34: 5.111 | C34: dms_NUM
B35: 0.0545 | C35: dms_NUM%
B36: 5.5555 | C36: dms_NUM3d
B37: Text description | C37: dms_Row_Locked
B38: Text description - not locked | C38: dms_Row1
B39: Text description | C39: dms_Row2
B40: Total | C40: dms_T1
B41: Total | C41: dms_T2
B42: EXPENSES | C42: dms_BH
B43: 2019 | C43: dms_BY1
B44: 2019 | C44: dms_BY2
B45: VOLUMES | C45: dms_GH
B46: 2019 | C46: dms_GY1
B47: 2019 | C47: dms_GY2

Sheet AER Sheet Heading (hidden)
B1: =INDEX(dms_Worksheet_List,MATCH(dms_Model,dms_Model_List)) -> RECAST HISTORICAL CATEGORY ANALYSIS
B2: =INDEX(dms_TradingNameFull_List,MATCH(dms_TradingName,dms_TradingName_List)) -> Power and Water Corporation
B3: =CONCATENATE("DATA SPAN ", CRY, " TO ", FRY) -> DATA SPAN 2008-09 TO 2021-22
B4: XX
C11: EXPENDITURE
C12: =CONCATENATE("Forecast ($0's, real ",dms_DollarReal,")") -> Forecast ($0's, real June 2009)
C13: =dms_y1 -> 2008-09 | D13: =dms_y2 -> 2009-10 | E13: =dms_y3 -> 2010-11 | F13: =dms_y4 -> 2011-12 | G13: =dms_y5 -> 2012-13 | H13: =dms_y6 -> 2013-14 | I13: =dms_y7 -> 2014-15
C42: VOLUMES
C43: 0's
C44: =dms_y1 -> 2008-09 | D44: =dms_y2 -> 2009-10 | E44: =dms_y3 -> 2010-11 | F44: =dms_y4 -> 2011-12 | G44: =dms_y5 -> 2012-13 | H44: =dms_y6 -> 2013-14 | I44: =dms_y7 -> 2014-15

Sheet AER CF (hidden)
B1: AER CONDITIONAL FORMATTING
B3: CELLS FLAGED "Y" and greyed out will be greyed out in the worksheets.
B4: CONDITIONAL FORMATTING MAP
F5: =INDEX(dms_CF_3.6.1, MATCH(dms_TradingName,dms_CF_TradingName))="Y" | G5: =INDEX(dms_CF_3.6.5, MATCH(dms_TradingName,dms_CF_TradingName))="Y" | H5: =INDEX(dms_CF_3.6.6.1, MATCH(dms_TradingName,dms_CF_TradingName))="Y" | I5: =INDEX(dms_CF_3.6.6.2, MATCH(dms_TradingName,dms_CF_TradingName))="Y" | J5: =INDEX(dms_CF_3.6.6.3, MATCH(dms_TradingName,dms_CF_TradingName))="Y" | K5: =INDEX(dms_CF_3.6.7.1, MATCH(dms_TradingName,dms_CF_TradingName))="Y" | L5: =INDEX(dms_CF_3.6.7.2, MATCH(dms_TradingName,dms_CF_TradingName))="Y" | M5: =INDEX(dms_CF_3.6.7.3, MATCH(dms_TradingName,dms_CF_TradingName))="Y" | N5: =INDEX(dms_CF_3.6.7.4, MATCH(dms_TradingName,dms_CF_TradingName))="Y" | O5: =INDEX(dms_CF_3.6.8, MATCH(dms_TradingName,dms_CF_TradingName))="Y" | P5: =INDEX(dms_CF_4.1, MATCH(dms_TradingName,dms_CF_TradingName))="Y" | Q5: =INDEX(dms_CF_6.8, MATCH(dms_TradingName,dms_CF_TradingName))="Y" | R5: =INDEX(dms_CF_7.12, MATCH(dms_TradingName,dms_CF_TradingName))="Y" | S5: =INDEX(dms_CF_8.1_A, MATCH(dms_TradingName,dms_CF_TradingName))="Y" | T5: =INDEX(dms_CF_8.1_B, MATCH(dms_TradingName,dms_CF_TradingName))="Y" | U5: =INDEX(dms_CF_8.1_Neg, MATCH(dms_TradingName,dms_CF_TradingName))="Y" -> TRUE | V5: =INDEX(dms_CF_4.4.1_Neg, MATCH(dms_TradingName,dms_CF_TradingName))="Y" | Y5: =INDEX(dms_CF_F10, MATCH(dms_TradingName,dms_CF_TradingName))="Y"
B6: dms_CF_TradingName | C6: JurisdictionList | D6: Sector | E6: Segment | F6: dms_CF_3.6.1 | G6: dms_CF_3.6.5 | H6: dms_CF_3.6.6.1 | I6: dms_CF_3.6.6.2 | J6: dms_CF_3.6.6.3 | K6: dms_CF_3.6.7.1 | L6: dms_CF_3.6.7.2 | M6: dms_CF_3.6.7.3 | N6: dms_CF_3.6.7.4 | O6: dms_CF_3.6.8 | P6: dms_CF_4.1 | Q6: dms_CF_6.8 (set from dms_MAIFI_flag) | R6: dms_CF_7.12 | S6: dms_CF_8.1_A (and 8.4) | T6: dms_CF_8.1_B (and 8.4) | U6: dms_CF_8.1_Neg (and 8.4) | V6: dms_CF_4.4.1 | W6: dms_CF_MAIFI_flag (set from dms_MAIFI_flag) | X6: 9.5 TUOS (set from Jurisdiction) | Y6: dms_CF_F10
B7: Amadeus | C7: NT | D7: Gas | E7: Transmission | F7: - | G7: - | H7: - | I7: - | J7: - | K7: - | L7: - | M7: - | N7: - | O7: - | P7: - | Q7: - | R7: - | S7: - | T7: - | U7: - | V7: - | W7: - | X7: - | Y7: -
B8: APA GasNet | C8: Vic | D8: Gas | E8: Transmission | F8: - | G8: - | H8: - | I8: - | J8: - | K8: - | L8: - | M8: - | N8: - | O8: - | P8: - | Q8: - | R8: - | S8: - | T8: - | U8: - | V8: - | W8: - | X8: - | Y8: -
B9: Ausgrid | C9: NSW | D9: Electricity | E9: Distribution | G9: Y | H9: N | I9: N | J9: N | K9: N | L9: N | M9: N | N9: Y | O9: N | P9: N | Q9: =IFERROR(IF(_xlfn.SINGLE(dms_MAIFI_Flag)="Yes","N","Y"),"Y") -> Y | R9: Y | S9: N | T9: Y | U9: Y | V9: N | W9: =IFERROR(LEFT(_xlfn.SINGLE(dms_MAIFI_Flag)),"N") -> N | X9: =IF('AER CF'!$C7="Vic","Y","N") -> N
B10: Ausgrid (Tx Assets) | C10: NSW | D10: Electricity | E10: Distribution | G10: Y | H10: N | I10: N | J10: N | K10: N | L10: N | M10: N | N10: Y | O10: N | P10: N | Q10: Y | R10: Y | S10: N | T10: Y | U10: Y | V10: N | W10: N | X10: =IF('AER CF'!$C8="Vic","Y","N") -> Y
B11: AusNet (D) | C11: Vic | D11: Electricity | E11: Distribution | G11: N | H11: N | K11: N | L11: N | M11: N | N11: N | O11: N | P11: N | Q11: Y | R11: N | S11: N | T11: N | U11: Y | V11: N | W11: N | X11: =IF('AER CF'!$C9="Vic","Y","N") -> N
B12: AusNet (T) | C12: Vic | D12: Electricity | E12: Transmission | G12: N | K12: N | L12: N | M12: N | N12: N | O12: N | P12: Y | Q12: Y | R12: N | S12: N | T12: N | U12: Y | V12: N | W12: N | X12: =IF('AER CF'!$C10="Vic","Y","N") -> N
B13: Australian Distribution Co. | C13: NSW | D13: Electricity | E13: Distribution | F13: N | G13: N | H13: N | I13: N | K13: N | L13: N | M13: N | N13: N | O13: N | P13: N | Q13: Y | R13: N | S13: N | T13: N | U13: N | V13: N | W13: N | X13: =IF('AER CF'!$C13="Vic","Y","N") -> N
B14: Australian Distribution Co. (Vic) | C14: Vic | D14: Electricity | E14: Distribution | F14: N | G14: N | H14: N | I14: N | K14: N | L14: N | M14: N | N14: N | O14: N | P14: N | Q14: Y | R14: N | S14: N | T14: N | U14: N | V14: N | W14: N | X14: =IF('AER CF'!$C14="Vic","Y","N") -> Y
B15: CitiPower | C15: Vic | D15: Electricity | E15: Distribution | G15: N | H15: N | K15: N | L15: N | M15: N | N15: N | O15: N | P15: N | Q15: Y | R15: N | S15: N | T15: N | U15: Y | V15: N | W15: N | X15: =IF('AER CF'!$C15="Vic","Y","N") -> Y
B16: Directlink | C16: Qld | D16: Electricity | E16: Transmission | G16: N | K16: N | L16: N | M16: N | N16: N | O16: N | P16: - | Q16: Y | R16: N | S16: N | T16: Y | U16: Y | V16: N | W16: N | X16: =IF('AER CF'!$C16="Vic","Y","N") -> N
B17: ElectraNet | C17: SA | D17: Electricity | E17: Transmission | G17: N | K17: N | L17: N | M17: N | N17: N | O17: N | P17: - | Q17: Y | R17: N | S17: N | T17: Y | U17: Y | V17: N | W17: N | X17: =IF('AER CF'!$C17="Vic","Y","N") -> N
B18: Endeavour Energy | C18: NSW | D18: Electricity | E18: Distribution | G18: Y | H18: N | I18: Y | J18: Y | K18: N | L18: N | M18: N | N18: Y | O18: N | P18: N | Q18: Y | R18: Y | S18: N | T18: Y | U18: Y | V18: Y | W18: N | X18: =IF('AER CF'!$C18="Vic","Y","N") -> N
B19: Energex | C19: Qld | D19: Electricity | E19: Distribution | G19: Y | H19: N | K19: N | L19: N | M19: N | N19: N | O19: N | P19: N | Q19: Y | R19: Y | S19: N | T19: Y | U19: Y | V19: Y | W19: N | X19: =IF('AER CF'!$C19="Vic","Y","N") -> N
B20: Ergon Energy | C20: Qld | D20: Electricity | E20: Distribution | G20: Y | H20: N | I20: Y | J20: Y | K20: N | L20: N | M20: N | N20: N | O20: N | P20: N | Q20: Y | R20: Y | S20: N | T20: Y | U20: Y | V20: N | W20: N | X20: =IF('AER CF'!$C20="Vic","Y","N") -> N
B21: Essential Energy | C21: NSW | D21: Electricity | E21: Distribution | G21: Y | H21: N | I21: Y | J21: Y | K21: N | L21: N | M21: N | N21: Y | O21: N | P21: N | Q21: Y | R21: Y | S21: N | T21: Y | U21: Y | V21: N | W21: N | X21: =IF('AER CF'!$C21="Vic","Y","N") -> N
B22: Evoenergy Distribution | C22: ACT | D22: Electricity | E22: Distribution | G22: Y | H22: N | I22: Y | J22: Y | K22: Y | L22: Y | M22: N | N22: Y | O22: N | P22: Y | Q22: Y | R22: Y | S22: N | T22: Y | U22: Y | V22: N | W22: N | X22: =IF('AER CF'!$C22="Vic","Y","N") -> N
B23: Evoenergy Distribution (Tx Assets) | C23: ACT | D23: Electricity | E23: Distribution | G23: Y | H23: N | I23: Y | J23: Y | K23: Y | L23: Y | M23: N | N23: Y | O23: N | P23: Y | Q23: Y | R23: Y | S23: N | T23: Y | U23: Y | V23: N | W23: N | X23: =IF('AER CF'!$C23="Vic","Y","N") -> N
B24: Jemena Electricity | C24: Vic | D24: Electricity | E24: Distribution | G24: N | H24: N | K24: N | L24: N | M24: N | N24: N | O24: N | P24: N | Q24: Y | R24: N | S24: N | T24: N | U24: Y | V24: N | W24: N | X24: =IF('AER CF'!$C25="Vic","Y","N") -> Y
B25: JGN | C25: Vic | D25: Gas | E25: Distribution | F25: - | G25: - | H25: - | I25: - | J25: - | K25: - | L25: - | M25: - | N25: - | O25: - | P25: - | Q25: - | R25: - | S25: - | T25: - | U25: - | V25: - | W25: - | X25: - | Y25: -
B26: Murraylink | C26: SA | D26: Electricity | E26: Transmission | G26: N | K26: N | L26: N | M26: N | N26: N | O26: N | P26: - | Q26: =IFERROR(IF(_xlfn.SINGLE(dms_MAIFI_Flag)="Yes","N","Y"),"Y") -> Y | R26: N | S26: N | T26: Y | U26: Y | V26: N | W26: =IFERROR(LEFT(_xlfn.SINGLE(dms_MAIFI_Flag)),"N") -> N | X26: =IF('AER CF'!$C26="Vic","Y","N") -> N
B27: Power and Water | C27: NT | D27: Electricity | E27: Distribution | G27: N | H27: N | K27: N | L27: Y | M27: N | N27: N | O27: N | P27: Y | Q27: =IFERROR(IF(_xlfn.SINGLE(dms_MAIFI_Flag)="Yes","N","Y"),"Y") -> Y | R27: Y | S27: Y | T27: Y | U27: Y | V27: N | W27: =IFERROR(LEFT(_xlfn.SINGLE(dms_MAIFI_Flag)),"N") -> N | X27: =IF('AER CF'!$C27="Vic","Y","N") -> N
B28: Powercor Australia | C28: Vic | D28: Electricity | E28: Distribution | G28: N | H28: N | K28: N | L28: N | M28: N | N28: N | O28: N | P28: N | Q28: =IFERROR(IF(_xlfn.SINGLE(dms_MAIFI_Flag)="Yes","N","Y"),"Y") -> Y | R28: N | S28: N | T28: N | U28: Y | V28: N | W28: =IFERROR(LEFT(_xlfn.SINGLE(dms_MAIFI_Flag)),"N") -> N | X28: =IF('AER CF'!$C28="Vic","Y","N") -> Y
B29: Powerlink | C29: Qld | D29: Electricity | E29: Transmission | G29: N | K29: N | L29: N | M29: N | N29: N | O29: N | P29: - | Q29: =IFERROR(IF(_xlfn.SINGLE(dms_MAIFI_Flag)="Yes","N","Y"),"Y") -> Y | R29: N | S29: N | T29: Y | U29: Y | V29: N | W29: =IFERROR(LEFT(_xlfn.SINGLE(dms_MAIFI_Flag)),"N") -> N | X29: =IF('AER CF'!$C29="Vic","Y","N") -> N
B30: Roma to Brisbane Pipeline | C30: Qld | D30: Gas | E30: Transmission | F30: - | G30: - | H30: - | I30: - | J30: - | K30: - | L30: - | M30: - | N30: - | O30: - | P30: - | Q30: - | R30: - | S30: - | T30: - | U30: - | V30: - | W30: - | X30: - | Y30: -
B31: SA Power Networks | C31: SA | D31: Electricity | E31: Distribution | G31: Y | H31: N | K31: N | L31: N | M31: N | N31: N | O31: N | P31: N | Q31: =IFERROR(IF(_xlfn.SINGLE(dms_MAIFI_Flag)="Yes","N","Y"),"Y") -> Y | R31: Y | S31: N | T31: Y | U31: N | V31: N | W31: =IFERROR(LEFT(_xlfn.SINGLE(dms_MAIFI_Flag)),"N") -> N | X31: =IF('AER CF'!$C31="Vic","Y","N") -> N
B32: TasNetworks (D) | C32: Tas | D32: Electricity | E32: Distribution | G32: Y | H32: N | K32: N | L32: N | M32: N | N32: N | O32: N | P32: N | Q32: =IFERROR(IF(_xlfn.SINGLE(dms_MAIFI_Flag)="Yes","N","Y"),"Y") -> Y | R32: Y | S32: N | T32: Y | U32: Y | V32: N | W32: =IFERROR(LEFT(_xlfn.SINGLE(dms_MAIFI_Flag)),"N") -> N | X32: =IF('AER CF'!$C32="Vic","Y","N") -> N
B33: TasNetworks (T) | C33: Tas | D33: Electricity | E33: Transmission | G33: N | K33: N | L33: N | M33: N | N33: N | O33: N | P33: - | Q33: =IFERROR(IF(_xlfn.SINGLE(dms_MAIFI_Flag)="Yes","N","Y"),"Y") -> Y | R33: N | S33: N | T33: Y | U33: Y | V33: N | W33: =IFERROR(LEFT(_xlfn.SINGLE(dms_MAIFI_Flag)),"N") -> N | X33: =IF('AER CF'!$C33="Vic","Y","N") -> N
B34: TransGrid | C34: NSW | D34: Electricity | E34: Transmission | G34: N | K34: N | L34: N | M34: N | N34: N | O34: N | P34: - | Q34: =IFERROR(IF(_xlfn.SINGLE(dms_MAIFI_Flag)="Yes","N","Y"),"Y") -> Y | R34: N | S34: N | T34: Y | U34: Y | V34: N | W34: =IFERROR(LEFT(_xlfn.SINGLE(dms_MAIFI_Flag)),"N") -> N | X34: =IF('AER CF'!$C34="Vic","Y","N") -> N
B35: United Energy | C35: Vic | D35: Electricity | E35: Distribution | G35: N | H35: N | K35: N | L35: N | M35: N | N35: N | O35: N | P35: N | Q35: =IFERROR(IF(_xlfn.SINGLE(dms_MAIFI_Flag)="Yes","N","Y"),"Y") -> Y | R35: N | S35: N | T35: N | U35: Y | V35: N | W35: =IFERROR(LEFT(_xlfn.SINGLE(dms_MAIFI_Flag)),"N") -> N | X35: =IF('AER CF'!$C35="Vic","Y","N") -> Y
B38: Confidential
B39: Amended
B41: Worksheet 6.2 STPIS reliability
B42: Formula | F42: Applied to:
B44: =INDEX(dms_CBD_flag,MATCH(dms_TradingName,dms_TradingName_List))="NO" | F44: $D$11,$D$17,$D$23,$D$33,$D$39,$D$45,$D$55,$D$61,$D$67,$D$77,$D$83,$D$89
B45: =INDEX(dms_Urban_flag,MATCH(dms_TradingName,dms_TradingName_List))="NO" | F45: $D$12,$D$18,$D$24,$D$56,$D$62,$D$78,$D$68,$D$84
B46: =INDEX(dms_ShortRural_flag,MATCH(dms_TradingName,dms_TradingName_List))="NO" | F46: $D$13,$D$19,$D$25,$D$57,$D$63,$D$69,$D$79,$D$85
B47: =INDEX(dms_LongRural_flag,MATCH(dms_TradingName,dms_TradingName_List))="NO" | F47: $D$14,$D$20,$D$26,$D$58,$D$64,$D$65,$D$70,$D$71,$D$80,$D$86
B48: =INDEX(dms_FeederType_5_flag,MATCH(dms_TradingName,dms_TradingName_List))="NO" | F48: $D$87,$D$81,$D$71,$D$65,$D$59,$D$49,$D$43,$D$37,$D$21,$D$15
B49: =dms_MAIFI_Flag="No" | F49: $D$55:$D$72
B52: Business & other details
B53: =(INDEX(dms_Model_Span,MATCH(dms_Model,dms_Model_List))>1)
B54: =(INDEX(dms_Model_Span,MATCH(dms_Model,dms_Model_List))=1)
B57: STYLES IN USE
B58: HEADING ONE | C58: dms_1
B59: HEADING TWO | C59: dms_2
B60: HEADING THREE | C60: dms_3
B61: HEADING FOUR | C61: dms_4
B62: HEADING FIVE | C62: dms_5
B63: 5.111 | C63: dms_NUM
B64: 0.0545 | C64: dms_NUM%
B65: 5.5555 | C65: dms_NUM3d
B66: Text description | C66: dms_Row_Locked
B67: Text description | C67: dms_Row1
B68: Text description | C68: dms_Row2
B69: Total | C69: dms_T1
B70: Total | C70: dms_T2
B71: EXPENSES | C71: dms_BH
B72: 2019 | C72: dms_BY1
B73: 2019 | C73: dms_BY2
B74: VOLUMES | C74: dms_GH
B75: 2019 | C75: dms_GY1
B76: 2019 | C76: dms_GY2

Sheet AER NRs (hidden)
B1: AER NAMED RANGES
B3: DROP DOWN SELECTORS USED IN WORKBOOKS
B5: COVER SHEET | C5: dms_DataQuality_List | D5: dms_Confid_status_List
C6: -- select -- | D6: -- select --
C7: Actual | D7: Public
C8: Estimate | D8: Confidential
C9: Consolidated
C12: For all files either AER or business needs to be able to specify the type of submission | D12: For PTRM & RFM templates we must provide a choice in case they change their form of control - otherwise it is drawn from the business specific lookup table above.
C13: dms_SourceList | D13: dms_FormControl_Choices
C14: -- select -- | D14: Revenue cap
C15: After appeal | D15: Revenue yield
C16: Draft decision | D16: Tariff cap
C17: Final decision | D17: Weighted average price cap
C18: PTRM update 1
C19: PTRM update 2
C20: PTRM update 3
C21: PTRM update 4
C22: PTRM update 5
C23: PTRM update 6
C24: PTRM update 7
C25: Reallocated
C26: Recast
C27: Regulatory proposal
C28: Reporting
C29: Revised regulatory proposal
K32: This is used to create an image to insert on 6.3 STPIS sheet - not for dropdown lists. | N32: GAS
B33: CA & RESET RINS DNSP | C33: dms_DNSP_020301_SubstationType | D33: dms_DNSP_020301_ProjectType | E33: dms_DNSP_020301_ProjectTrigger | F33: dms_DNSP_020302_ProjectType | G33: dms_DNSP_020302_ProjectTrigger | H33: dms_STPIS_Exclusion_List | I33: dms_Reason_Interruption | J33: dms_Reason_Interruption_Detailed | K33: Reason for interruption | N33: dms_N0205_AssetType
C34: Subtransmission substation | D34: New substation establishment | E34: Demand growth | F34: New line on new route - single circuit | G34: Demand growth | H34: Weather | I34: Animal | J34: Animal impact | K34: Animal | L34: Animal impact | N34: Cast Iron
C35: Zone substation | D35: Substation upgrade - capacity | E35: Voltage issues | F35: New line on new route - dual circuit | G35: Voltage issues | H35: Equipment failure | I35: Asset failure | J35: Animal nesting/burrowing, etc and other | L35: Animal nesting/burrowing, etc and other | N35: PVC
C36: Switching station | D36: Substation upgrade - voltage | E36: Reactive power issue | F36: New line on new route - other | G36: Reactive power issue | H36: Operational error | I36: Other | J36: Other | L36: Other | N36: Polyamide
C37: Other | D37: Other | E37: Fault level issues | F37: Line rebuild over existing route - single circuit | G37: Fault level issues | H37: Vegetation | I37: Overloads | J37: LV | K37: Asset failure | L37: LV | N37: High density polyethylene (80)
E38: Safety | F38: Line rebuild over existing route - dual circuit | G38: Net market benefit | H38: Animals | I38: Planned | J38: Distribution substation | L38: Distribution substation | N38: High density polyethylene (100)
E39: Environment | F39: Reconductor - Single circuit | G39: Safety | H39: Third party impacts | I39: Network business | J39: HV | L39: HV | N39: High density polyethylene (250)
E40: Other | F40: Reconductor - Dual circuit | G40: Environment | H40: Transmission failure | I40: Third party | J40: Zone substation | L40: Zone substation | N40: High density polyethylene (575)
F41: Reconductor - Other | G41: Other | H41: Load shedding | I41: Unknown | J41: Subtransmission | L41: Subtransmission | N41: Medium density polyethylene
F42: Line upgrade - raising/retensoring | H42: Inter-distributor connection failure | I42: Vegetation | J42: insert description of 'other' | K42: Other | L42: insert description of 'other' | N42: Unprotected steel
F43: Line upgrade - voltage upgrade | H43: Other | I43: Weather | J43: Network error | K43: Overloads | N43: Protected steel
F44: Line upgrade - capacity | I44: 2 - STPIS Exclusion (3.3)(a) | J44: Switching and protection error | K44: Planned | N44: Other
F45: String spare circuit | I45: 3 - STPIS Exclusion (3.3)(a) | J45: Fire | K45: Network business | L45: Network error
F46: Other | I46: 4 - STPIS Exclusion (3.3)(a) | J46: Other | L46: Switching and protection error
I47: 5 - STPIS Exclusion (3.3)(a) | J47: Dig-in | K47: Third party | L47: Fire
I48: 6 - STPIS Exclusion (3.3)(a) | J48: Unauthorised access | L48: Other
I49: 7 - STPIS Exclusion (3.3)(a) | J49: Vehicle impact | L49: Dig-in
J50: Unknown | L50: Unauthorised access
J51: Blow-in/Fall-in - NSP responsibility | L51: Vehicle impact
J52: Grow-in - NSP responsibility | K52: Unknown | L52: Unknown
J53: Blow-in/Fall-in - Other responsible party | K53: Vegetation | L53: Blow-in/Fall-in - NSP responsibility
J54: Grow-in - Other responsible party | L54: Grow-in - NSP responsibility
L55: Blow-in/Fall-in - Other responsible party
L56: Grow-in - Other responsible party
K57: Weather
K58: 2 - STPIS Exclusion (3.3)(a)
K59: 3 - STPIS Exclusion (3.3)(a)
K60: 4 - STPIS Exclusion (3.3)(a)
K61: 5 - STPIS Exclusion (3.3)(a)
K62: 6 - STPIS Exclusion (3.3)(a)
K63: 7 - STPIS Exclusion (3.3)(a)
B66: CA & RESET RINS TNSP | C66: dms_TNSP_0203_SubstationType | D66: dms_TNSP_020301_ProjectType | E66: dms_TNSP_020301_ProjectTrigger | F66: dms_TNSP_020302_ProjectType | G66: dms_TNSP_0203_ProjectTrigger
C67: Terminal station | D67: New substation establishment | E67: Demand growth | F67: New line on new route - single circuit | G67: Demand growth
C68: Switching station | D68: Capacity upgrade | E68: Voltage issues | F68: New line on new route - dual circuit | G68: Voltage issues
C69: Transmission substation | D69: Voltage upgrade | E69: Reactive power issue | F69: New line on new route - other | G69: Reactive power issue
C70: Other | D70: Other | E70: Fault level issues | F70: Line rebuild over existing route - single circuit | G70: Fault level issues
E71: Net market benefit | F71: Line rebuild over existing route - dual circuit | G71: Net market benefit
E72: Safety | F72: Reconductor - Single circuit | G72: Safety
E73: Environment | F73: Reconductor - Dual circuit | G73: Environment
E74: Other | F74: Reconductor - Other | G74: Other
F75: Line upgrade - raising/retensoring
F76: Line upgrade - voltage upgrade
F77: Line upgrade - capacity
F78: String spare circuit
F79: Other
B83: NAMED RANGES USED IN ETL PROCESS
M84: GAS ARR & RESET
B85: CA & RESET RINS DNSP ONLY | C85: dms_020303_01_UOM | D85: dms_020501_01_UOM | E85: dms_020501_02_UOM | F85: dms_020501_03_UOM | G85: dms_020501_04_UOM | H85: dms_020701_01_UOM | I85: dms_020701_02_UOM | J85: dms_020701_01_Rows | K85: dms_040102_01_UOM | L85: dms_040102_04_UOM | M85: dms_S140101_UOM | N85: dms_S140201_UOM | O85: dms_E050201_UOM | P85: dms_E050202_UOM
C86: Circuit line length in km | D86: 0's | E86: 0's | F86: 0's | G86: 0's | H86: km | I86: km | J86: Route line length within zone | K86: 0's | L86: days | M86: number | N86: number per km | O86: per metre per connection | P86: metres per connection
C87: Circuit line length in km | D87: 0's | E87: 0's | F87: 0's | G87: 0's | H87: 0's | I87: 0's | J87: Number of maintenance spans | K87: 0's | L87: 0's | M87: number | N87: number | O87: per service per connection | P87: number per connection
C88: Circuit line length in km | D88: MVA added | E88: MVA added | F88: MVA added | G88: MVA added | H88: km | I88: km | J88: Total length of maintenance spans | K88: 0's | L88: $0s | M88: number | N88: number | O88: number per connection | P88: number per connection
C89: Circuit line length in km | D89: 0's | E89: 0's | F89: 0's | G89: 0's | H89: km | I89: km | J89: Length of vegetation corridors | K89: $0s | L89: 0's | M89: km
C90: Number | D90: total spend $0s | E90: total spend $0s | F90: total spend $0s | G90: total spend $0s | H90: 0's | I90: 0's | J90: Average number of trees per maintenance span
C91: Number | D91: net circuit km added | E91: net circuit km added | F91: net circuit km added | G91: net circuit km added | H91: years | I91: years | J91: Average frequency of cutting cycle
C92: Number | D92: total spend $0s | E92: total spend $0s | F92: total spend $0s | G92: total spend $0s
D93: net circuit km added | E93: net circuit km added | F93: net circuit km added | G93: net circuit km added
D94: total spend $0s | E94: total spend $0s | F94: total spend $0s | G94: total spend $0s
D95: 0's | F95: $0s
D96: 0's
D97: 0's
D98: $0s
B101: CA & RESET RINS TNSP ONLY | C101: dms_020701_01_UOM
C102: km
C103: 0's
C104: km
C105: 0's
C106: km
C107: metres
C108: years
B111: CA & RESET RINS DNSP & TNSP | C111: dms_020603_01_UOM
C112: 0's
C113: 0's
C114: 0's
C115: 0's
C116: (per cent)
B119: EB & RESET RINS DNSP ONLY | C119: dms_030601_01_UOM | D119: dms_030601_02_UOM | E119: dms_030701_01_UOM | F119: dms_030702_01_UOM | G119: dms_030703_01_UOM
C120: minutes/customer | D120: minutes/customer | E120: Customer / km | F120: % | G120: km
C121: minutes/customer | D121: minutes/customer | E121: MWh/customer | F121: Number of spans
C122: interruptions/customer | D122: interruptions/customer | E122: kVA / customer | F122: Number of spans
C123: interruptions/customer | D123: interruptions/customer | F123: Number of spans
F124: Number of spans
F125: Years
F126: Years
F127: Trees
F128: Trees
F129: Defects
F130: Defects
F131: Spans
F132: km
F133: Spans
C135: WHEN INSERTING COVER SHEET INTO A TNSP FILE - APPLY THESE NAMED RANGES
B136: EB & RESET RINS TNSP ONLY | C136: dms_030601_01_UOM | E136: dms_030701_01_UOM | F136: dms_030702_01_UOM
C137: % | E137: Number of spans | F137: km
C138: number | E138: Years | F138: %
C139: number | E139: Trees | F139: km
C140: % | E140: Defects | F140: number
C141: number | E141: Number of spans
C142: number | E142: km
C143: % | E143: km
C144: number | E144: Number of spans
C145: number
C146: %
C147: number
C148: %
C149: number
C150: %
C151: number
B153: EB & RESET RINS DNSP & TNSP | C153: dms_EB_RAB_PIT
C154: Beginning of year
C155: End of year
C156: End of year
C157: End of year
C158: End of year
C159: End of year
B161: ARR DNSP ONLY | C161: dms_030605_UOM | D161: dms_03060703_UOM | E161: dms_E020202_UOM | F161: Spare
C162: number | D162: number | E162: Length of mains replaced
C163: number | D163: number | E163: Number of services replaced
C164: number | D164: number
C165: number | D165: number
C166: number | D166: (per cent)
C167: number
C168: number
C169: number
C170: number
C171: number
C172: number
C173: number
C174: (per cent)
C175: (per cent)
B177: RFM | C177: dms_Beg | D177: dms_Mid | E177: dms_End
C178: Beginning of year | D178: Mid year | E178: End of Year
B180: PTRM | C180: dms_PTRM_RAB_PIT | D180: dms_PTRM_TAB_PIT | E180: DMS_Xfactor
C181: Beginning of year | D181: Beginning of year | E181: x factors
C182: End of year | D182: End of year
C183: End of year | D183: End of year
C184: End of year | D184: End of year
C185: End of year
B188: STPIS & MIC NAMED RANGES
B190: These "row descriptions" are the column headings in the various templates but become row descriptions in the ETL process
B192: Table 6.3 sustained interruptions - row descriptions | C192: dms_060301_CustNo_Affected_Row | D192: dms_060301_Avg_Duration_Sustained_Int_Row | E192: dms_060301_Effect_unplanned_SAIDI_Row | F192: dms_060301_Effect_unplanned_SAIFI_Row
C193: Number of customers affected by the interruption | D193: Average duration of sustained customer interruption | E193: Effect on unplanned SAIDI | F193: Effect on unplanned SAIFI
B196: Table 6.1 telephone answering - row descriptions and start date | C196: dms_060101_Rows | D196: dms_060102_Rows | E196: dms_060101_StartDateTxt
C197: Total number of calls (after removing excluded events) | D197: Number of calls answered within 30 seconds (after excluding excluded events) | E197: =dms_060701_StartDateTxt -> 1-Jul-2008
B200: Table 6.8.1 - row descriptions | C200: dms_060801_01_Rows | D200: dms_060801_02_Rows | E200: dms_060801_03_Rows | F200: dms_060801_04_Rows
C201: Number of interruptions | D201: Duration of interruptions | E201: Total unplanned minutes off supply | F201: Effect on unplanned MAIFI
B204: Table 7.9.4 - market impact component - row descriptions | C204: dms_070904_01_Rows | D204: without exclusions | E204: with exclusions
B207: These headings (Lists) are determined from the INDEX/MATCH function on the NSP selected on the Business & other details sheet
B209: Table 6.7.1 - daily performance data - unplanned - MAIFI -- row descriptions and header named range values | C209: dms_060701_Feeder_Header_Lvl4 | D209: =INDEX(dms_FeederName_1,MATCH(dms_TradingName,dms_TradingName_List)) -> CBD | E209: =INDEX(dms_FeederName_1,MATCH(dms_TradingName,dms_TradingName_List)) -> CBD | F209: =INDEX(dms_FeederName_2,MATCH(dms_TradingName,dms_TradingName_List)) -> Urban | G209: =INDEX(dms_FeederName_2,MATCH(dms_TradingName,dms_TradingName_List)) -> Urban | H209: =INDEX(dms_FeederName_3,MATCH(dms_TradingName,dms_TradingName_List)) -> Short rural | I209: =INDEX(dms_FeederName_3,MATCH(dms_TradingName,dms_TradingName_List)) -> Short rural | J209: =INDEX(dms_FeederName_4,MATCH(dms_TradingName,dms_TradingName_List)) -> Long rural | K209: =INDEX(dms_FeederName_4,MATCH(dms_TradingName,dms_TradingName_List)) -> Long rural | L209: =IF((INDEX(dms_FeederName_5,MATCH(dms_TradingName,dms_TradingName_List))=0),"Network",(INDEX(dms_FeederName_5,MATCH(dms_TradingName,dms_TradingName_List)))) -> Network | M209: =IF((INDEX(dms_FeederName_5,MATCH(dms_TradingName,dms_TradingName_List))=0),"Network",(INDEX(dms_FeederName_5,MATCH(dms_TradingName,dms_TradingName_List)))) -> Network | N209: Network | O209: Network
C211: dms_060701_Rows | D211: All events | E211: After removing excluded events | F211: All events | G211: After removing excluded events | H211: All events | I211: After removing excluded events | J211: All events | K211: After removing excluded events | L211: All events | M211: After removing excluded events | N211: All events | O211: After removing excluded events
D212: the number of column headings changes from 10 to 12 depending on the number of feeder categories for the NSP
C214: dms_0603_FeederList | D214: =INDEX(dms_FeederName_1,MATCH(dms_TradingName,dms_TradingName_List)) -> CBD | E214: =INDEX(dms_FeederName_2,MATCH(dms_TradingName,dms_TradingName_List)) -> Urban | F214: =INDEX(dms_FeederName_3,MATCH(dms_TradingName,dms_TradingName_List)) -> Short rural | G214: =INDEX(dms_FeederName_4,MATCH(dms_TradingName,dms_TradingName_List)) -> Long rural
B217: Use these to add to specific worksheets in existing files | C217: Use these to add to specific worksheets in existing files
B220: ARRs 6.7 STPIS daily performance | C220: dms_060101_Values | D220: dms_060102_Values | E220: dms_060701_Values
C221: dms_LeapYear
B224: ARR's 6.8 STPIS exclusions | C224: dms_060801_Event_Date | D224: dms_060801_OutageID | E224: dms_060801_FeederID | F224: dms_060801_FeederClass | G224: dms_060801_CauseID | H224: dms_060801_01_Values | I224: dms_060801_02_Values | J224: dms_060801_03_Values | K224: dms_060801_Excl_Cat | L224: dms_060801_04_Values
C225: dms_060801_StartCell
B228: CA 6.3 sustained interruptions | C228: dms_060301_Event_Date | D228: dms_060301_Event_Time | E228: dms_060301_AssetID | F228: dms_060301_FeederClass | G228: dms_060301_Reason | H228: dms_060301_DetailedReason | I228: dms_060301_CustNo_Affected_Values | J228: dms_060301_Avg_Duration_Sustained_Int_Values | K228: dms_060301_Effect_unplanned_SAIDI_Values | L228: dms_060301_Effect_unplanned_SAIFI_Values | M228: dms_060301_MED
B232: PTRM input sheet | C232: DMS_50_01_01a | D232: DMS_50_01_01aa | E232: DMS_50_01_01b | F232: DMS_50_01_01bb | G232: DMS_50_01_01c | H232: DMS_50_01_01d | I232: DMS_50_01_01dd

Sheet AER lookups (hidden)
B1: AER LOOKUP TABLES
B3: Template number | C3: 5
Y5: FOR ELECTRICITY BUSINESSES ONLY
Y6: Feeder Types | AC6: TasNetworks (D) | AD6: Feeder Names
Y8: CBD | Z8: Urban | AA8: Short rural | AB8: long rural | AC8: EXTRA
B9: dms_TradingName_List | C9: dms_TradingNameFull_List | D9: dms_ABN_List | E9: dms_JurisdictionList | F9: dms_Sector_List | G9: dms_Segment_List | H9: dms_FormControl_List | I9: dms_RPT_List | J9: dms_RPTMonth_List | K9: dms_CRCPlength_List | L9: dms_FRCPlength_List | M9: dms_PRCPlength_List | N9: dms_663_List | O9: dms_Addr1_List | P9: dms_Addr2_List | Q9: dms_Suburb_List | R9: dms_State_List | S9: dms_PostCode_List | T9: dms_PAddr1_List | U9: dms_PAddr2_List | V9: dms_PSuburb_List | W9: dms_PState_List | X9: dms_PPostCode_List | Y9: dms_CBD_flag | Z9: dms_Urban_flag | AA9: dms_ShortRural_flag | AB9: dms_LongRural_flag | AC9: dms_FeederType_5_flag | AD9: dms_FeederName_1 | AE9: dms_FeederName_2 | AF9: dms_FeederName_3 | AG9: dms_FeederName_4 | AH9: dms_FeederName_5 | AI9: dms_MAIFI_flag_List | AJ9: dms_Public_Lighting_List | AK9: Name
B10: Ausgrid | C10: Ausgrid | D10: 67505337385 | E10: NSW | F10: Electricity | G10: Distribution | H10: Revenue cap | I10: Financial | J10: June | K10: 5 | L10: 5 | M10: 5 | N10: 5 | O10: 570 George St | Q10: SYDNEY | R10: NSW | S10: 2000 | T10: GPO Box 4009 | V10: SYDNEY | W10: NSW | X10: 2001 | Y10: YES | Z10: YES | AA10: YES | AB10: YES | AC10: NO | AD10: CBD | AE10: Urban | AF10: Short rural | AG10: Long rural | AI10: NO | AJ10: YES | AK10: =B10 -> Ausgrid
B11: Ausgrid (Tx Assets) | C11: Ausgrid (Tx Assets) | D11: 67505337385 | E11: NSW | F11: Electricity | G11: Distribution | H11: Revenue cap | I11: Financial | J11: June | K11: 5 | L11: 5 | M11: 5 | N11: 5 | O11: 570 George St | Q11: SYDNEY | R11: NSW | S11: 2000 | T11: GPO Box 4009 | V11: SYDNEY | W11: NSW | X11: 2001 | Y11: YES | Z11: YES | AA11: YES | AB11: YES | AC11: NO | AD11: CBD | AE11: Urban | AF11: Short rural | AG11: Long rural | AI11: NO | AJ11: NO | AK11: Ausgrid (Tx Assets)
B12: Australian Distribution Co. | C12: Australian Distribution Co. | D12: 11222333444 | E12: NSW | F12: Electricity | G12: Distribution | H12: Revenue cap | I12: Financial | J12: June | K12: 5 | L12: 5 | M12: 5 | N12: 2 | O12: 123 Straight Street | Q12: SYDNEY | R12: NSW | S12: 2000 | T12: PO Box 123 | V12: SYDNEY | W12: NSW | X12: 2000 | Y12: YES | Z12: YES | AA12: YES | AB12: YES | AC12: NO | AD12: CBD | AE12: Urban | AF12: Short rural | AG12: Long rural | AI12: NO | AJ12: YES | AK12: Australian Distribution Co.
B13: Australian Transmission Co. | C13: Australian Transmission Co. | D13: 11222333444 | E13: NSW | F13: Electricity | G13: Transmission | H13: Revenue cap | I13: Financial | J13: June | K13: 5 | L13: 5 | M13: 5 | N13: 5 | O13: 123 Straight Street | Q13: SYDNEY | R13: NSW | S13: 2000 | T13: PO Box 123 | V13: SYDNEY | W13: NSW | X13: 2000 | Y13: NO | Z13: NO | AA13: NO | AB13: NO | AC13: NO | AD13: CBD | AE13: Urban | AF13: Short rural | AG13: Long rural | AI13: NO | AJ13: NO | AK13: Australian Transmission Co.
B14: Endeavour Energy | C14: Endeavour Energy | D14: 11247365823 | E14: NSW | F14: Electricity | G14: Distribution | H14: Revenue cap | I14: Financial | J14: June | K14: 5 | L14: 5 | M14: 5 | N14: 5 | O14: 51 Huntingwood Drive | Q14: HUNTINGWOOD | R14: NSW | S14: 2148 | T14: PO Box 811 | V14: SEVEN HILLS | W14: NSW | X14: 1730 | Y14: NO | Z14: YES | AA14: YES | AB14: YES | AC14: NO | AD14: CBD | AE14: Urban | AF14: Short rural | AG14: Long rural | AI14: NO | AJ14: YES | AK14: Endeavour Energy
B15: Essential Energy | C15: Essential Energy | D15: 37428185226 | E15: NSW | F15: Electricity | G15: Distribution | H15: Revenue cap | I15: Financial | J15: June | K15: 5 | L15: 5 | M15: 5 | N15: 5 | O15: 8 Buller Street | Q15: PORT MACQUARIE | R15: NSW | S15: 2444 | T15: PO Box 5730 | V15: PORT MACQUARIE | W15: NSW | X15: 2444 | Y15: NO | Z15: YES | AA15: YES | AB15: YES | AC15: NO | AD15: CBD | AE15: Urban | AF15: Short rural | AG15: Long rural | AI15: NO | AJ15: YES | AK15: Essential Energy
B16: Evoenergy Distribution | C16: Evoenergy Distribution | D16: 76670568688 | E16: ACT | F16: Electricity | G16: Distribution | H16: Revenue cap | I16: Financial | J16: June | K16: 5 | L16: 5 | M16: 5 | N16: 5 | O16: 40 Bunda Street | Q16: CANBERRA | R16: ACT | S16: 2600 | T16: GPO BOX 366 | V16: CANBERRA | W16: ACT | X16: 2601 | Y16: NO | Z16: YES | AA16: YES | AB16: NO | AC16: NO | AD16: CBD | AE16: Urban | AF16: Short rural | AG16: Long rural | AI16: NO | AJ16: NO | AK16: Evoenergy Distribution
B17: Evoenergy Distribution (Tx Assets) | C17: Evoenergy Distribution (Tx Assets) | D17: 76670568688 | E17: ACT | F17: Electricity | G17: Distribution | H17: Revenue cap | I17: Financial | J17: June | K17: 5 | L17: 5 | M17: 5 | N17: 5 | O17: 40 Bunda Street | Q17: CANBERRA | R17: ACT | S17: 2600 | T17: GPO BOX 366 | V17: CANBERRA | W17: ACT | X17: 2601 | Y17: NO | Z17: YES | AA17: YES | AB17: NO | AC17: NO | AD17: CBD | AE17: Urban | AF17: Short rural | AG17: Long rural | AI17: NO | AJ17: NO | AK17: Evoenergy Distribution (Tx Assets)
B18: Power and Water | C18: Power and Water Corporation | D18: 15947352360 | E18: NT | F18: Electricity | G18: Distribution | H18: Revenue cap | I18: Financial | J18: June | K18: 5 | L18: 5 | M18: 5 | N18: x | O18: GPO Box 1921 | Q18: DARWIN | R18: NT | S18: 801 | T18: GPO Box 1921 | V18: DARWIN | W18: NT | X18: 801 | Y18: YES | Z18: YES | AA18: YES | AB18: YES | AC18: NO | AD18: CBD | AE18: Urban | AF18: Short rural | AG18: Long rural | AI18: NO | AJ18: NO | AK18: Power and Water
B19: TasNetworks (D) | C19: TasNetworks (D) | D19: 24167357299 | E19: Tas | F19: Electricity | G19: Distribution | H19: Revenue cap | I19: Financial | J19: June | K19: 5 | L19: 5 | M19: 5 | N19: 5 | O19: 1-7 Maria Street | Q19: LENAH VALLEY | R19: Tas | S19: 7008 | T19: PO Box 606 | V19: MOONAH | W19: Tas | X19: 7009 | Y19: YES | Z19: YES | AA19: YES | AB19: YES | AC19: YES | AD19: Critical Infrastructure | AE19: Urban | AF19: High density commercial | AG19: High density rural | AH19: Low density rural | AI19: NO | AJ19: YES | AK19: TasNetworks (D)
B20: TasNetworks (T) | C20: TasNetworks (T) | D20: 24167357299 | E20: Tas | F20: Electricity | G20: Transmission | H20: Revenue cap | I20: Financial | J20: June | K20: 5 | L20: 5 | M20: 5 | N20: 5 | O20: 1-7 Maria Street | Q20: LENAH VALLEY | R20: Tas | S20: 7008 | T20: PO Box 606 | V20: MOONAH | W20: Tas | X20: 7009 | Y20: NO | Z20: NO | AA20: NO | AB20: NO | AC20: NO | AD20: CBD | AE20: Urban | AF20: Short rural | AG20: Long rural | AI20: NO | AJ20: NO | AK20: TasNetworks (T)
B21: TransGrid | C21: NSW Electricity Networks Operations Pty Ltd trading as TransGrid | D21: 70 250 995 390 | E21: NSW | F21: Electricity | G21: Transmission | H21: Revenue cap | I21: Financial | J21: June | K21: 5 | L21: 5 | M21: 4 | N21: 5 | O21: 180 Thomas Street | Q21: SYDNEY | R21: NSW | S21: 2000 | T21: PO Box A1000 | V21: SYDNEY SOUTH | W21: NSW | X21: 1235 | Y21: NO | Z21: NO | AA21: NO | AB21: NO | AC21: NO | AD21: CBD | AE21: Urban | AF21: Short rural | AG21: Long rural | AI21: NO | AJ21: NO | AK21: TransGrid
B26: The Reg Year Ending (dms_RYE) must be set to the last year of the regulatory period. For forecast data is is usually (FRCP_y5) for actual it is a single year (CRY). For historical actual data the RYE will need to be set manually in the business details sheet by setting the dms_Multiyear_flag to 1 and putting the correct value in 'dms_Specified_FinalYear. See cells C67:C68
B27: dms_Model_List | C27: dms_Model_Name_Format1 | D27: dms_Worksheet_List | E27: dms_Model_Span_List
B28: ARR | C28: Annual Reporting | D28: =IF(dms_MultiYear_ResponseFlag="yes","NEW HISTORICAL ANNUAL REPORTING","ANNUAL REPORTING") -> ANNUAL REPORTING | E28: 1
B29: CA | C29: Category Analysis | D29: =IF(dms_MultiYear_ResponseFlag="yes","NEW HISTORICAL CATEGORY ANALYSIS","RECAST HISTORICAL CATEGORY ANALYSIS") -> RECAST HISTORICAL CATEGORY ANALYSIS | E29: 1
B30: CESS | C30: Capitlal Expenditure | D30: CAPITLAL EXPENDITURE SHARING SCHEMING | E30: 5
B31: CPI | C31: CPI | D31: CPI | E31: 5
B32: EB | C32: Economic Benchmarking | D32: =IF(dms_MultiYear_ResponseFlag="yes","NEW HISTORICAL ECONOMIC BENCHMARKING","ECONOMIC BENCHMARKING") -> ECONOMIC BENCHMARKING | E32: 1
B33: EBSS | C33: Efficiency Benefit Sharing Scheme | D33: EFFICIENCY BENEFIT SHARING SCHEME | E33: 5
B34: Pricing | C34: Pricing Proposal | D34: PRICING PROPOSAL | E34: 5
B35: Profitability | C35: Profitability | D35: PROFITABILITY | E35: 5
B36: PTRM | C36: Post Tax Revenue Model | D36: POST TAX REVENUE MODEL | E36: 5
B37: Reset | C37: Regulatory Reporting (Reset) | D37: REGULATORY REPORTING STATEMENT | E37: 5
B38: RFM | C38: Roll Forward Model | D38: ROLL FORWARD MODEL | E38: 5
B39: WACC | C39: Weighted Average Cost of Capital | D39: WEIGHTED AVERAGE COST OF CAPITAL | E39: 1
B43: Financial | C43: Calendar | E43: PREVIOUS | G43: CURRENT | I43: FORTHCOMING
B44: 1987-88 | C44: 1988 | D44: PRCP_y1 | E44: =INDEX(INDIRECT(dms_RPT),dms_PRCP_start_row) -> 2014-15 | F44: CRCP_y1 | G44: =INDEX(INDIRECT(dms_RPT),dms_CRCP_start_row) -> 2019-20 | H44: =FRCP_y1 -> 2024-25 | I44: =INDEX(INDIRECT(dms_RPT),dms_FRCP_start_row) -> 2024-25
B45: 1988-89 | C45: 1989 | D45: PRCP_y2 | E45: =INDEX(INDIRECT(dms_RPT),dms_PRCP_start_row+1) -> 2015-16 | F45: CRCP_y2 | G45: =INDEX(INDIRECT(dms_RPT),dms_CRCP_start_row+1) -> 2020-21 | H45: FRCP_y2 | I45: =INDEX(INDIRECT(dms_RPT),dms_FRCP_start_row+1) -> 2025-26
B46: 1989-90 | C46: 1990 | D46: PRCP_y3 | E46: =INDEX(INDIRECT(dms_RPT),dms_PRCP_start_row+2) -> 2016-17 | F46: CRCP_y3 | G46: =INDEX(INDIRECT(dms_RPT),dms_CRCP_start_row+2) -> 2021-22 | H46: FRCP_y3 | I46: =INDEX(INDIRECT(dms_RPT),dms_FRCP_start_row+2) -> 2026-27
B47: 1990-91 | C47: 1991 | D47: PRCP_y4 | E47: =INDEX(INDIRECT(dms_RPT),dms_PRCP_start_row+3) -> 2017-18 | F47: CRCP_y4 | G47: =INDEX(INDIRECT(dms_RPT),dms_CRCP_start_row+3) -> 2022-23 | H47: FRCP_y4 | I47: =INDEX(INDIRECT(dms_RPT),dms_FRCP_start_row+3) -> 2027-28
B48: 1991-92 | C48: 1992 | D48: PRCP_y5 | E48: =INDEX(INDIRECT(dms_RPT),dms_PRCP_start_row+4) -> 2018-19 | F48: CRCP_y5 | G48: =INDEX(INDIRECT(dms_RPT),dms_CRCP_start_row+4) -> 2023-24 | H48: FRCP_y5 | I48: =INDEX(INDIRECT(dms_RPT),dms_FRCP_start_row+4) -> 2028-29
B49: 1992-93 | C49: 1993 | D49: PRCP_y6 | E49: =INDEX(INDIRECT(dms_RPT),dms_PRCP_start_row+5) -> 2019-20 | F49: CRCP_y6 | G49: =INDEX(INDIRECT(dms_RPT),dms_CRCP_start_row+5) -> 2024-25 | H49: FRCP_y6 | I49: =INDEX(INDIRECT(dms_RPT),dms_FRCP_start_row+5) -> 2029-30
B50: 1993-94 | C50: 1994 | D50: PRCP_y7 | E50: =INDEX(INDIRECT(dms_RPT),dms_PRCP_start_row+6) -> 2020-21 | F50: CRCP_y7 | G50: =INDEX(INDIRECT(dms_RPT),dms_CRCP_start_row+6) -> 2025-26 | H50: FRCP_y7 | I50: =INDEX(INDIRECT(dms_RPT),dms_FRCP_start_row+6) -> 2030-31
B51: 1994-95 | C51: 1995 | D51: PRCP_y8 | E51: =INDEX(INDIRECT(dms_RPT),dms_PRCP_start_row+7) -> 2021-22 | F51: CRCP_y8 | G51: =INDEX(INDIRECT(dms_RPT),dms_CRCP_start_row+7) -> 2026-27 | H51: FRCP_y8 | I51: =INDEX(INDIRECT(dms_RPT),dms_FRCP_start_row+7) -> 2031-32
B52: 1995-96 | C52: 1996 | D52: PRCP_y9 | E52: =INDEX(INDIRECT(dms_RPT),dms_PRCP_start_row+8) -> 2022-23 | F52: CRCP_y9 | G52: =INDEX(INDIRECT(dms_RPT),dms_CRCP_start_row+8) -> 2027-28 | H52: FRCP_y9 | I52: =INDEX(INDIRECT(dms_RPT),dms_FRCP_start_row+8) -> 2032-33
B53: 1996-97 | C53: 1997 | D53: PRCP_y10 | E53: =INDEX(INDIRECT(dms_RPT),dms_PRCP_start_row+9) -> 2023-24 | F53: CRCP_y10 | G53: =INDEX(INDIRECT(dms_RPT),dms_CRCP_start_row+9) -> 2028-29 | H53: FRCP_y10 | I53: =INDEX(INDIRECT(dms_RPT),dms_FRCP_start_row+9) -> 2033-34
B54: 1997-98 | C54: 1998 | D54: PRCP_y11 | E54: =INDEX(INDIRECT(dms_RPT),dms_PRCP_start_row+10) -> 2024-25 | F54: CRCP_y11 | G54: =INDEX(INDIRECT(dms_RPT),dms_CRCP_start_row+10) -> 2029-30 | H54: FRCP_y11 | I54: =INDEX(INDIRECT(dms_RPT),dms_FRCP_start_row+10) -> 2034-35
B55: 1998-99 | C55: 1999 | D55: PRCP_y12 | E55: =INDEX(INDIRECT(dms_RPT),dms_PRCP_start_row+11) -> 2025-26 | F55: CRCP_y12 | G55: =INDEX(INDIRECT(dms_RPT),dms_CRCP_start_row+11) -> 2030-31 | H55: FRCP_y12 | I55: =INDEX(INDIRECT(dms_RPT),dms_FRCP_start_row+11) -> 2035-36
B56: 1999-00 | C56: 2000 | D56: PRCP_y13 | E56: =INDEX(INDIRECT(dms_RPT),dms_PRCP_start_row+12) -> 2026-27 | F56: CRCP_y13 | G56: =INDEX(INDIRECT(dms_RPT),dms_CRCP_start_row+12) -> 2031-32 | H56: FRCP_y13 | I56: =INDEX(INDIRECT(dms_RPT),dms_FRCP_start_row+12) -> 2036-37
B57: 2000-01 | C57: 2001 | D57: PRCP_y14 | E57: =INDEX(INDIRECT(dms_RPT),dms_PRCP_start_row+13) -> 2027-28 | F57: CRCP_y14 | G57: =INDEX(INDIRECT(dms_RPT),dms_CRCP_start_row+13) -> 2032-33 | H57: FRCP_y14 | I57: =INDEX(INDIRECT(dms_RPT),dms_FRCP_start_row+13) -> 2037-38
B58: 2001-02 | C58: 2002 | D58: PRCP_y15 | E58: =INDEX(INDIRECT(dms_RPT),dms_PRCP_start_row+14) -> 2028-29 | F58: CRCP_y15 | G58: =INDEX(INDIRECT(dms_RPT),dms_CRCP_start_row+14) -> 2033-34 | H58: FRCP_y15 | I58: =INDEX(INDIRECT(dms_RPT),dms_FRCP_start_row+14) -> 2038-39
B59: 2002-03 | C59: 2003 | D59: PRCP_y16 | E59: =INDEX(INDIRECT(dms_RPT),dms_PRCP_start_row+15) -> 2029-30 | F59: CRCP_y16 | G59: =INDEX(INDIRECT(dms_RPT),dms_CRCP_start_row+15) -> 2034-35 | H59: FRCP_y16 | I59: =INDEX(INDIRECT(dms_RPT),dms_FRCP_start_row+15) -> 2039-40
B60: 2003-04 | C60: 2004 | D60: PRCP_y17 | E60: =INDEX(INDIRECT(dms_RPT),dms_PRCP_start_row+16) -> 2030-31 | F60: CRCP_y17 | G60: =INDEX(INDIRECT(dms_RPT),dms_CRCP_start_row+16) -> 2035-36 | H60: FRCP_y17 | I60: =INDEX(INDIRECT(dms_RPT),dms_FRCP_start_row+16) -> 2040-41
B61: 2004-05 | C61: 2005 | D61: PRCP_y18 | E61: =INDEX(INDIRECT(dms_RPT),dms_PRCP_start_row+17) -> 2031-32 | F61: CRCP_y18 | G61: =INDEX(INDIRECT(dms_RPT),dms_CRCP_start_row+17) -> 2036-37 | H61: FRCP_y18 | I61: =INDEX(INDIRECT(dms_RPT),dms_FRCP_start_row+17) -> 2041-42
B62: 2005-06 | C62: 2006 | D62: PRCP_y19 | E62: =INDEX(INDIRECT(dms_RPT),dms_PRCP_start_row+18) -> 2032-33 | F62: CRCP_y19 | G62: =INDEX(INDIRECT(dms_RPT),dms_CRCP_start_row+18) -> 2037-38 | H62: FRCP_y19 | I62: =INDEX(INDIRECT(dms_RPT),dms_FRCP_start_row+18) -> 2042-43
B63: 2006-07 | C63: 2007 | D63: PRCP_y20 | E63: =INDEX(INDIRECT(dms_RPT),dms_PRCP_start_row+19) -> 2033-34 | F63: CRCP_y20 | G63: =INDEX(INDIRECT(dms_RPT),dms_CRCP_start_row+19) -> 2038-39 | H63: FRCP_y20 | I63: =INDEX(INDIRECT(dms_RPT),dms_FRCP_start_row+19) -> 2043-44
B64: 2007-08 | C64: 2008 | D64: PRCP_y21 | E64: =INDEX(INDIRECT(dms_RPT),dms_PRCP_start_row+20) -> 2034-35 | F64: CRCP_y21 | G64: =INDEX(INDIRECT(dms_RPT),dms_CRCP_start_row+20) -> 2039-40 | H64: FRCP_y21 | I64: =INDEX(INDIRECT(dms_RPT),dms_FRCP_start_row+20) -> 2044-45
B65: 2008-09 | C65: 2009 | D65: PRCP_y22 | E65: =INDEX(INDIRECT(dms_RPT),dms_PRCP_start_row+21) -> 2035-36 | F65: CRCP_y22 | G65: =INDEX(INDIRECT(dms_RPT),dms_CRCP_start_row+21) -> 2040-41 | H65: FRCP_y22 | I65: =INDEX(INDIRECT(dms_RPT),dms_FRCP_start_row+21) -> 2045-46
B66: 2009-10 | C66: 2010 | D66: PRCP_y23 | E66: =INDEX(INDIRECT(dms_RPT),dms_PRCP_start_row+22) -> 2036-37 | F66: CRCP_y23 | G66: =INDEX(INDIRECT(dms_RPT),dms_CRCP_start_row+22) -> 2041-42 | H66: FRCP_y23 | I66: =INDEX(INDIRECT(dms_RPT),dms_FRCP_start_row+22) -> 2046-47
B67: 2010-11 | C67: 2011 | D67: PRCP_y24 | E67: =INDEX(INDIRECT(dms_RPT),dms_PRCP_start_row+23) -> 2037-38 | F67: CRCP_y24 | G67: =INDEX(INDIRECT(dms_RPT),dms_CRCP_start_row+23) -> 2042-43 | H67: FRCP_y24 | I67: =INDEX(INDIRECT(dms_RPT),dms_FRCP_start_row+23) -> 2047-48
B68: 2011-12 | C68: 2012 | D68: PRCP_y25 | E68: =INDEX(INDIRECT(dms_RPT),dms_PRCP_start_row+24) -> 2038-39 | F68: CRCP_y25 | G68: =INDEX(INDIRECT(dms_RPT),dms_CRCP_start_row+24) -> 2043-44 | H68: FRCP_y25 | I68: =INDEX(INDIRECT(dms_RPT),dms_FRCP_start_row+24) -> 
B69: 2012-13 | C69: 2013
B70: 2013-14 | C70: 2014
B71: 2014-15 | C71: 2015
B72: 2015-16 | C72: 2016
B73: 2016-17 | C73: 2017
B74: 2017-18 | C74: 2018
B75: 2018-19 | C75: 2019
B76: 2019-20 | C76: 2020
B77: 2020-21 | C77: 2021
B78: 2021-22 | C78: 2022 | E78: CRY - FRY
B79: 2022-23 | C79: 2023 | D79: dms_y1 | E79: =IFERROR(INDEX(INDIRECT(dms_RPT),dms_CRY_start_row),0) -> 2008-09
B80: 2023-24 | C80: 2024 | D80: dms_y2 | E80: =IFERROR(INDEX(INDIRECT(dms_RPT),dms_CRY_start_row+1),0) -> 2009-10
B81: 2024-25 | C81: 2025 | D81: dms_y3 | E81: =IFERROR(INDEX(INDIRECT(dms_RPT),dms_CRY_start_row+2),0) -> 2010-11
B82: 2025-26 | C82: 2026 | D82: dms_y4 | E82: =IFERROR(INDEX(INDIRECT(dms_RPT),dms_CRY_start_row+3),0) -> 2011-12
B83: 2026-27 | C83: 2027 | D83: dms_y5 | E83: =IFERROR(INDEX(INDIRECT(dms_RPT),dms_CRY_start_row+4),0) -> 2012-13
B84: 2027-28 | C84: 2028 | D84: dms_y6 | E84: =IFERROR(INDEX(INDIRECT(dms_RPT),dms_CRY_start_row+5),0) -> 2013-14
B85: 2028-29 | C85: 2029 | D85: dms_y7 | E85: =IFERROR(INDEX(INDIRECT(dms_RPT),dms_CRY_start_row+6),0) -> 2014-15
B86: 2029-30 | C86: 2030 | D86: dms_y8 | E86: =IFERROR(INDEX(INDIRECT(dms_RPT),dms_CRY_start_row+7),0) -> 2015-16
B87: 2030-31 | C87: 2031 | D87: dms_y9 | E87: =IFERROR(INDEX(INDIRECT(dms_RPT),dms_CRY_start_row+8),0) -> 2016-17
B88: 2031-32 | C88: 2032 | D88: dms_y10 | E88: =IFERROR(INDEX(INDIRECT(dms_RPT),dms_CRY_start_row+9),0) -> 2017-18
B89: 2032-33 | C89: 2033 | D89: dms_y11 | E89: =IFERROR(INDEX(INDIRECT(dms_RPT),dms_CRY_start_row+10),0) -> 2018-19
B90: 2033-34 | C90: 2034 | D90: dms_y12 | E90: =IFERROR(INDEX(INDIRECT(dms_RPT),dms_CRY_start_row+11),0) -> 2019-20
B91: 2034-35 | C91: 2035 | D91: dms_y13 | E91: =IFERROR(INDEX(INDIRECT(dms_RPT),dms_CRY_start_row+12),0) -> 2020-21
B92: 2035-36 | C92: 2036 | D92: dms_y14 | E92: =IFERROR(INDEX(INDIRECT(dms_RPT),dms_CRY_start_row+13),0) -> 2021-22
B93: 2036-37 | C93: 2037 | D93: dms_y15 | E93: =IFERROR(INDEX(INDIRECT(dms_RPT),dms_CRY_start_row+14),0) -> 2022-23
B94: 2037-38 | C94: 2038 | D94: dms_y16 | E94: =IFERROR(INDEX(INDIRECT(dms_RPT),dms_CRY_start_row+15),0) -> 2023-24
B95: 2038-39 | C95: 2039 | D95: dms_y17 | E95: =IFERROR(INDEX(INDIRECT(dms_RPT),dms_CRY_start_row+16),0) -> 2024-25
B96: 2039-40 | C96: 2040 | D96: dms_y18 | E96: =IFERROR(INDEX(INDIRECT(dms_RPT),dms_CRY_start_row+17),0) -> 2025-26
B97: 2040-41 | C97: 2041 | D97: dms_y19 | E97: =IFERROR(INDEX(INDIRECT(dms_RPT),dms_CRY_start_row+18),0) -> 2026-27
B98: 2041-42 | C98: 2042 | D98: dms_y20 | E98: =IFERROR(INDEX(INDIRECT(dms_RPT),dms_CRY_start_row+19),0) -> 2027-28
B99: 2042-43 | C99: 2043 | D99: dms_y21 | E99: =IFERROR(INDEX(INDIRECT(dms_RPT),dms_CRY_start_row+20),0) -> 2028-29
B100: 2043-44 | C100: 2044 | D100: dms_y22 | E100: =IFERROR(INDEX(INDIRECT(dms_RPT),dms_CRY_start_row+21),0) -> 2029-30
B101: 2044-45 | C101: 2045 | D101: dms_y23 | E101: =IFERROR(INDEX(INDIRECT(dms_RPT),dms_CRY_start_row+22),0) -> 2030-31
B102: 2045-46 | C102: 2046 | D102: dms_y24 | E102: =IFERROR(INDEX(INDIRECT(dms_RPT),dms_CRY_start_row+23),0) -> 2031-32
B103: 2046-47 | C103: 2047 | D103: dms_y25 | E103: =IFERROR(INDEX(INDIRECT(dms_RPT),dms_CRY_start_row+24),0) -> 2032-33
B104: 2047-48 | C104: 2048 | D104: dms_y26 | E104: =IFERROR(INDEX(INDIRECT(dms_RPT),dms_CRY_start_row+25),0) -> 2033-34

Sheet AER ETL (hidden)
B1: AER ETL INFORMATION
B3: USES NAMED RANGES FLAG | C3: yes | D3: dms_Defined_Names_Used
B5: IF THIS IS AN ABC RIN - make sure the the named range CRY is applied and the named range dms_dollar_nom_UOM is applied
B6: IF THIS IS A RESET RIN - make sure the named ranges CRY and dms_dollar_nom_UOM are NOT present in the workbook
B7: FOR ABC RINS THAT SPAN MULTIPLE YEARS - make sure MultiYear Flag is set and final year entered as required
B9: Full trading name | C9: =INDEX(dms_TradingNameFull_List,MATCH(dms_TradingName,dms_TradingName_List)) -> Power and Water Corporation | E9: dms_TradingNameFull
B10: Trading name | C10: =dms_TradingName -> Power and Water
A11: Selected here | B11: Model / RIN | C11: CA | D11: dms_Model
A12: Read from Business & other details | B12: Source | C12: Regulatory proposal | D12: dms_Source | E12: =IF(dms_Model="Reset", "Make sure you have set Reg Proposal as source","") -> 
B13: Data quality | C13: Consolidated | D13: For DB purposes this is always Consoldiated
B14: Data status | C14: Public | D14: For DB purposes this is always Public
B15: Amendment reason | C15: =dms_Amendment_Text -> . | F15: dms_AmendmentReason
B16: Submission date | C16: =dms_Typed_Submission_Date -> dd/mm/yy | D16: dms_SubmissionDate
A18: Redundant | B18: EBSS - First application of scheme in forthcoming period? | C18: No
A19: Pre-populated from lookup table | B19: Data ingestion data quality | C19: Consolidated | D19: dms_DataQuality | E19: Always Consolidated
B20: Sector | C20: =INDEX(dms_Sector_List,MATCH(dms_TradingName,dms_TradingName_List)) -> Electricity | D20: dms_Sector | E20: =INDEX(dms_Sector_List,MATCH(dms_TradingName,dms_TradingName_List))
B21: Segment | C21: =INDEX(dms_Segment_List,MATCH(dms_TradingName,dms_TradingName_List)) -> Distribution | D21: dms_Segment | E21: =INDEX(dms_Segment_List,MATCH(dms_TradingName,dms_TradingName_List))
B22: Regulatory Year Ending | C22: =IF(dms_MultiYear_Flag=1,LEFT(dms_Specified_FinalYear,2)&RIGHT(dms_Specified_FinalYear,2),dms_RYE_result) -> 2009 | D22: dms_RYE | E22: =IF(dms_MultiYear_Flag=1,LEFT(dms_Specified_FinalYear,2)&RIGHT(dms_Specified_FinalYear,2),dms_RYE_result)
B23: Reporting Period Type | C23: =INDEX(dms_RPT_List,MATCH(dms_TradingName,dms_TradingName_List)) -> Financial | D23: dms_RPT | E23: =INDEX(dms_RPT_List,MATCH(dms_TradingName,dms_TradingName_List))
B24: EB/CA Unit of Measure for Monetary Values | C24: $0s | D24: dms_dollar_nom_UOM | E24: =IF(dms_SingleYearModel="yes","This is set to an historical template (EB, CA or ARR), apply UOM Named Range to cell !","This is not an historical template, make sure UOM Named Range is not applied") -> This is set to an historical template (EB, CA or ARR), apply UOM Named Range to cell ! | J24: =IFERROR(dms_dollar_nom_UOM, "NR not applied") -> NR not applied
B25: Security Classification | C25: Public | D25: dms_Classification | E25: Always Public
B26: Jurisdiction | C26: =INDEX(dms_JurisdictionList,MATCH(dms_TradingName,dms_TradingName_List)) -> NT | D26: dms_Jurisdiction | E26: =INDEX(dms_JurisdictionList,MATCH(dms_TradingName,dms_TradingName_List))
A27: Relevant for PTRM, RFMs and Reset RINS | B27: $ REAL REFERENCES
B28: Does the named range CRY exist in this file? | C28: =IFERROR(CRY,"NO") -> 2008-09
B29: CRY-1 (last full calendar year before CRY) | C29: =IFERROR(IF(dms_RPT="calendar",CRY-1,LEFT(CRY,4)),"CRY not present") -> 2008 | D29: dms_Cal_Year_B4_CRY | E29: '=IF(dms_RPT="financial",VALUE(LEFT(dms_SingleYear_FinalYear_Result,4)),VALUE(LEFT(dms_SingleYear_FinalYear_Result,4)-1))
B30: Dollar $ real month | C30: =INDEX(dms_RPTMonth_List,MATCH(dms_TradingName,dms_TradingName_List)) -> June | D30: dms_RPTMonth | E30: =INDEX(dms_RPTMonth_List,MATCH(dms_TradingName,dms_TradingName_List))
B31: Dollar $ real (the last month before the FRCP_y1) | C31: =IF(dms_Model="RFM",dms_DollarReal_Prev, IF(dms_SingleYearModel="yes",CONCATENATE(dms_RPTMonth)&" "&VALUE((LEFT(dms_CRY_start_year,2)&RIGHT(dms_CRY_start_year,2))),CONCATENATE(dms_RPTMonth)&" "&dms_DollarReal_year)) -> June 2009 | D31: dms_DollarReal | E31: =IF(dms_Model="RFM",dms_DollarReal_Prev, IF(dms_SingleYearModel="yes",CONCATENATE(dms_RPTMonth)&" "&VALUE((LEFT(dms_CRY_start_year,2)&RIGHT(dms_CRY_start_year,2))),CONCATENATE(dms_RPTMonth)&" "&dms_DollarReal_year))
B32: Dollar $ real previous year (PRCP_y5) | C32: =CONCATENATE(dms_RPTMonth)&" "&dms_Previous_DollarReal_year -> June 2019 | D32: dms_DollarReal_Prev | E32: =IF(SUM(dms_SingleYear_Model)>0,CONCATENATE(dms_RPTMonth)&" "&VALUE(((LEFT(CRY,2))&RIGHT(CRY,2))-1),CONCATENATE(dms_RPTMonth)&" "&VALUE(((LEFT(dms_CRCP_FirstYear_Result,2)&RIGHT(dms_CRCP_FirstYear_Result,2))))-1)
B33: PTRM/ RFMs
B34: Form of control | C34: =INDEX(dms_FormControl_List,MATCH(dms_TradingName,dms_TradingName_List)) -> Revenue cap | D34: dms_FormControl | E34: =INDEX(dms_FormControl_List,MATCH(dms_TradingName,dms_TradingName_List))
A35: All potential values for Regulatory Years or RYEs as calculated | B35: This block works out the various RYE's for ALL RIN types and MODELS
B36: dms_start_year | C36: =FRCP_y1 -> 2024-25 | D36: =FRCP_y1 | E36: FRCP_y1 from cover sheet
B37: dms_CRY_start_year | C37: =IFERROR(CRY,CRCP_y4) -> 2008-09 | D37: =IFERROR(CRY,CRCP_y4)
B38: dms_CRY_start_row | C38: =IFERROR(MATCH(dms_CRY_start_year,INDIRECT(dms_RPT),0),0) -> 22 | D38: =IFERROR(MATCH(dms_CRY_start_year,INDIRECT(dms_RPT),0),0)
B39: dms_FRCP_start_row | C39: =MATCH(dms_start_year,INDIRECT(dms_RPT),0) -> 38 | D39: =MATCH(dms_start_year,INDIRECT(dms_RPT),0) | E39: Uses FRCP_y1 as a start reference
B40: dms_CRCP_start_row | C40: =dms_FRCP_start_row-dms_CRCPlength_Num -> 33 | D40: =dms_FRCP_start_row-dms_CRCPlength_Num | E40: Uses the value in dms_CRCPlength_Num
B41: dms_PRCP_start_row | C41: =dms_FRCP_start_row-dms_CRCPlength_Num-dms_PRCPlength_Num -> 28 | D41: =dms_FRCP_start_row-dms_CRCPlength_Num-dms_PRCPlength_Num | E41: Uses the value in dms_CRCPlength_Num and dms_PRCPlength_Num
B42: dms_RYE_start_row | C42: =dms_FRCP_start_row+(dms_FRCPlength_Num-1) -> 42 | D42: =dms_FRCP_start_row+(dms_FRCPlength_Num-1) | E42: Uses the value in dms_FRCPlength_Num-1
B43: FRCP_start_year | C43: =INDEX(INDIRECT(dms_RPT),dms_FRCP_start_row) -> 2024-25 | D43: =INDEX(INDIRECT(dms_RPT),dms_FRCP_start_row) | E43: Converts the FRCP start row to display the year
B44: CRCP_start_year | C44: =INDEX(INDIRECT(dms_RPT),dms_CRCP_start_row) -> 2019-20 | D44: =INDEX(INDIRECT(dms_RPT),dms_CRCP_start_row) | E44: Converts the CRCP start row to display the year
B45: PRCP_start_year | C45: =INDEX(INDIRECT(dms_RPT),dms_PRCP_start_row) -> 2014-15 | D45: =INDEX(INDIRECT(dms_RPT),dms_PRCP_start_row) | E45: Converts the PRCP start row to display the year
B46: FRCP_final_year | C46: =INDEX(INDIRECT(dms_RPT),dms_FRCP_start_row+dms_FRCPlength_Num-1) -> 2028-29 | D46: =INDEX(INDIRECT(dms_RPT),dms_FRCP_start_row+dms_FRCPlength_Num-1) | E46: Finds the FRCP final year
B47: CRCP_final_year | C47: =INDEX(INDIRECT(dms_RPT),dms_CRCP_start_row+dms_CRCPlength_Num-1) -> 2023-24 | D47: =INDEX(INDIRECT(dms_RPT),dms_CRCP_start_row+dms_CRCPlength_Num-1) | E47: Finds the CRCP final year
B48: PRCP_final_year | C48: =INDEX(INDIRECT(dms_RPT),dms_PRCP_start_row+dms_FRCPlength_Num-1) -> 2018-19 | D48: =INDEX(INDIRECT(dms_RPT),dms_PRCP_start_row+dms_FRCPlength_Num-1) | E48: Finds the PRCP final year
B49: dms_Reset_final_year | C49: =INDEX(INDIRECT(dms_RPT),dms_RYE_start_row) -> 2028-29 | D49: =INDEX(INDIRECT(dms_RPT),dms_RYE_start_row) | E49: For Resets and PTRM/RFMs (same as FRCP_final_year)
B50: dms_SpecifiedYear_final_year | C50: =FRY -> 2021-22 | D50: =FRY | E50: FRY from cover sheet
B51: dms_DollarReal_year | C51: =LEFT(CRCP_final_year,2)&RIGHT(CRCP_final_year,2) -> 2024 | D51: =LEFT(CRCP_final_year,2)&RIGHT(CRCP_final_year,2) | E51: Uses the value in CRCP_final_year
B52: dms_Previous_DollarReal_year | C52: =LEFT(PRCP_final_year,2)&RIGHT(PRCP_final_year,2) -> 2019 | D52: =LEFT(PRCP_final_year,2)&RIGHT(PRCP_final_year,2) | E52: Uses the value in PRCP_final_year
B53: dms_CRY_RYE | C53: =IFERROR(LEFT(CRY,2)&RIGHT(CRY,2),0) -> 2009 | D53: =IFERROR(LEFT(CRY,2)&RIGHT(CRY,2),0) | E53: For ABC single year RINS
B54: dms_Reset_RYE | C54: =IF(dms_Model_Span>1,IF(dms_Model="RFM",(LEFT(dms_DollarReal_year,2)&RIGHT(dms_DollarReal_year,2)),(LEFT(dms_Reset_final_year,2)&RIGHT(dms_Reset_final_year,2))),0) -> 0 | D54: =IF(dms_Model_Span>1,IF(dms_Model="RFM",(LEFT(dms_DollarReal_year,2)&RIGHT(dms_DollarReal_year,2)),(LEFT(dms_Reset_final_year,2)&RIGHT(dms_Reset_final_year,2))),0) | E54: If model span > 1 then uses dms_Reset_RYE otherwise it's a multi year ABC and uses dms_Specified_RYE
B55: dms_Specified_RYE | C55: =IF(dms_MultiYear_ResponseFlag="Yes",(LEFT(dms_Specified_FinalYear,2)&RIGHT(dms_Specified_FinalYear,2)),0) -> 0 | D55: =IF(dms_MultiYear_ResponseFlag="Yes",(LEFT(dms_Specified_FinalYear,2)&RIGHT(dms_Specified_FinalYear,2)),0) | E55: If multi year ABC - uses dms_Specified_FinalYear
B56: dms_Model_Span | C56: =INDEX(dms_Model_Span_List,MATCH(dms_Model,dms_Model_List)) -> 1 | D56: =INDEX(dms_Model_Span_List,MATCH(dms_Model,dms_Model_List)) | E56: A result of 5 is used to signify that it is more than 1 year span
B57: dms_RYE_result | C57: =IF(dms_MultiYear_ResponseFlag="yes",dms_Specified_RYE,(IF(dms_Model_Span>1,dms_Reset_RYE,dms_CRY_RYE))) -> 2009 | D57: =IF(dms_MultiYear_ResponseFlag="yes",dms_Specified_RYE,(IF(dms_Model_Span>1,dms_Reset_RYE,dms_CRY_RYE))) | E57: Nested IF - feeds into dms_RYE
B58: dms_Reset_Span | C58: =IF(dms_Reset_RYE>0,CONCATENATE(FRCP_y1," to ",FRCP_final_year),0) -> 0 | D58: =IF(dms_Reset_RYE>0,CONCATENATE(FRCP_y1," to ",FRCP_final_year),0) | E58: Reset span of years as text
B59: dms_SpecifiedYear_Span | C59: =IF(dms_Specified_RYE>0,CONCATENATE(CRY," to ",dms_Specified_FinalYear),0) -> 0 | D59: =IF(dms_Specified_RYE>0,CONCATENATE(CRY," to ",dms_Specified_FinalYear),0) | E59: Multi year ABC span of years as text
B60: dms_Header_Span | C60: =IF(dms_MultiYear_Flag=1,dms_SpecifiedYear_Span,IF(dms_Model_Span>1,dms_y1&" to "&FRCP_final_year,CRY)) -> 2008-09 | D60: =IF(dms_MultiYear_Flag=1,dms_SpecifiedYear_Span,IF(dms_Model_Span>1,dms_Reset_Span,CRY)) | E60: NESTED IF - for Sheet Headers
B61: ABC RINS THAT SPAN MULTIPLE YEARS
B62: This is a multi year ABC RIN? | C62: No
C63: =IF(dms_MultiYear_ResponseFlag="No",0,1) -> 0 | D63: dms_MultiYear_Flag | E63: This is set from the answer provided above
C64: =IF(dms_MultiYear_Flag=1,FRY,"not a Multiple year submission") -> not a Multiple year submission | D64: dms_Specified_FinalYear | E64: The result here is returned to dms_CRCP_FinalYear_Result if response to Q in C73 is "yes" and dms_MultiYear_Flag is set to 1
B65: Start year for 5.2 in Multi year ABC RINS | C65: =IFERROR(IF(dms_MultiYear_Flag=1,FRY,CRY),"not an ABC") -> 2008-09 | D65: dms_0502_Inst_Year | E65: =IF(dms_MultiYear_Flag=1,FRY,CRY) | G65: For single year RINS this is CRY - multi year RINS need to start a the end of the span of years (ie. FRY)
B66: WHAT IS THE RYE?
B67: Reg Period Lengths
B68: PRCP length in years | C68: =INDEX(dms_PRCPlength_List,MATCH(dms_TradingName,dms_TradingName_List)) -> 5 | D68: dms_PRCPlength_Num | E68: =INDEX(dms_PRCPlength_List,MATCH(dms_TradingName,dms_TradingName_List))
B69: CRCP length in years | C69: =INDEX(dms_CRCPlength_List,MATCH(dms_TradingName,dms_TradingName_List)) -> 5 | D69: dms_CRCPlength_Num | E69: =INDEX(dms_CRCPlength_List,MATCH(dms_TradingName,dms_TradingName_List))
B70: FRCP length in years | C70: =INDEX(dms_FRCPlength_List,MATCH(dms_TradingName,dms_TradingName_List)) -> 5 | D70: dms_FRCPlength_Num | E70: =INDEX(dms_FRCPlength_List,MATCH(dms_TradingName,dms_TradingName_List))
B71: Single year RIN?
B72: Single Year ABC RIN ? | C72: =IF(dms_Model="EB",1,0) -> 0 | D72: dms_EB
C73: =IF(dms_Model="CA",1,0) -> 1 | D73: dms_CA | E73: =dms_SingleYear_Model
C74: =IF(dms_Model="ARR",1,0) -> 0 | D74: dms_ARR
B75: Is this a single Year ABC RIN? | C75: =IF(SUM(dms_SingleYear_Model)=1,"yes","no") -> yes | D75: dms_SingleYearModel | E75: =IF(SUM(dms_SingleYear_Model)=1,"yes","no")
B76: Single Year Final Year Result | C76: =IF(AND(dms_SingleYearModel="yes",dms_MultiYear_Flag=0),CRY,0) -> 2008-09 | D76: dms_SingleYear_FinalYear_Result | E76: =IFERROR(IF(SUM(dms_SingleYear_Model)<>0,(INDIRECT(dms_SingleYear_FinalYear_Ref)),"not a single year RIN"),"CRY not present")
B77: Multi year RIN?
B79: Multi Year Reset/Model? | C79: =IF(dms_Model_Span>1,"yes","no") -> no
B80: Final year result for Reset/Model | C80: =IF(dms_Model_Span>1,dms_Reset_final_year,0) -> 0 | D80: dms_MultiYear_FinalYear_Result | E80: dms_CRCP_FinalYear_Result
B82: Multi Year ABC RIN? | C82: =IF(dms_MultiYear_Flag=1,"yes","no") -> no | D82: dms_MultiYear_ABC_RIN
B83: Final year result for ABC multi year | C83: =IF(dms_MultiYear_Flag=1,C50,0) -> 0
B85: EB RINS
B86: Calendar Year for table 3.6 data | C86: =IFERROR(IF(dms_Segment="Transmission",dms_Cal_Year_B4_CRY,CRY),"CRY not present") -> 2008-09 | D86: dms_0306_Year | E86: =IF(dms_Segment="Transmission",dms_Cal_Year_B4_CRY,CRY)
B87: CA RINS
B88: Find how many rows in tables 6.3 sustained interruptions? | E88: dms_060301_MaxRows only returns a valid value when cover sheet is attached to a CA file
C89: =IF(dms_Model<>"CA","not a CA","Is a CA") -> Is a CA | E89: =IF(dms_Model<>"CA","not a CA","Is a CA")
B90: dms_060301_Avg_Duration_Sustained_Int_Values present? | C90: =IFERROR(IF(INDEX(dms_060301_Avg_Duration_Sustained_Int_Values,1,1)<>"","yes","no"),"no") -> no | D90: dms_060301_checkvalue | E90: =IFERROR(IF(INDEX(dms_060301_Avg_Duration_Sustained_Int_Values,1,1)<>"","yes","no"),"no")
C91: =IF(AND(dms_Model="CA",(dms_060301_checkvalue="no")),"error - NR not present","no errors") -> error - NR not present | E91: =IF(AND(dms_Model="CA",(dms_060301_checkvalue="no")),"error - NR not present","no errors")
B92: Table 6.3.1 - last row reference | C92: =IFERROR(IF(dms_Model="CA",LOOKUP(2,1/(dms_060301_Avg_Duration_Sustained_Int_Values<>""),(ROW(dms_060301_Avg_Duration_Sustained_Int_Values))),"not a CA"),"6.3 not present") -> 6.3 not present | D92: dms_060301_LastRow | E92: =IFERROR(IF(dms_Model="CA",LOOKUP(2,1/(dms_060301_Avg_Duration_Sustained_Int_Values<>""),(ROW(dms_060301_Avg_Duration_Sustained_Int_Values))),"not a CA"),"6.3 not present")
B93: Table 6.3.1 - max number rows | C93: =IFERROR(IF(dms_Model="CA",(dms_060301_LastRow-15),"not a CA"),"error") -> error | D93: dms_060301_MaxRows | E93: =IFERROR(IF(dms_Model="CA",(dms_060301_LastRow-15),"not a CA"),"error")
B94: Table 6.6.3 - Public lighting repair - no. business days | C94: =INDEX(dms_663_List,MATCH(dms_TradingName,dms_TradingName_List)) -> x | D94: dms_663 | E94: =INDEX(dms_663_List,MATCH(dms_TradingName,dms_TradingName_List))
B95: ARR or RESET RINS
B96: How many rows in tables 6.1 or 6.7? (leap year?) | C96: insert dms_LeapYear NR if required | E96: 'dms_LeapYear is used to determine dms_060701_Max_Rows BUT it is only found on worksheet 6.1 or 6.7 and the date value in the cell is used to determine whether it is a leap year
B97: Is dms_LeapYear named range present? | C97: =IFERROR(IF(dms_LeapYear,"yes"),"no") -> no
B98: Table 6.7.1 - includes a leap year? | C98: =IFERROR(IF(MONTH(DATE(YEAR(dms_LeapYear),2,29))=2,"is a leap year","not a leap year"), "dms_LeapYear not present") -> dms_LeapYear not present | D98: dms_LeapYear_Result | E98: =IFERROR(IF(MONTH(DATE(YEAR(dms_LeapYear),2,29))=2,"is a leap year","not a leap year"),"dms_LeapYear not present")
B99: MaxRows if Reset and leap year | C99: =IF(dms_LeapYear_Result="is a leap year",1827,1826) -> 1826 | D99: dms_060701_Reset_MaxRows | E99: =IF(dms_LeapYear_Result="is a leap year",1827,1826) | H99: number of days present in Reset RIN table
B100: MaxRows if ARR and leap year | C100: =IF(dms_LeapYear_Result="is a leap year",366,365) -> 365 | D100: dms_060701_ARR_MaxRows | E100: =IF(dms_LeapYear_Result="is a leap year",366,365) | H100: number of days present in ARR RIN table
B101: Table 6.7.1 - Max Rows (leap year/ non leap year) | C101: =IF(dms_Model="ARR",dms_060701_ARR_MaxRows,IF(dms_Model="Reset",dms_060701_Reset_MaxRows,"not a relevant RIN type")) -> not a relevant RIN type | D101: dms_060701_MaxRows | E101: =IF(dms_Model="ARR",dms_060701_ARR_MaxRows,IF(dms_Model="Reset",dms_060701_Reset_MaxRows,"not a relevant RIN type"))
B102: How many columns in 6.7? (4 or 5 feeder categories) | C102: =IF(dms_FifthFeeder_flag_NSP="NO","This NSP has only 4 feeder categories","This NSP has 5 feeder categories") -> This NSP has only 4 feeder categories
B103: Table 6.7.1 - Last column (# of feeder categories > 4) | C103: =IF(dms_FifthFeeder_flag_NSP="NO",10,12) -> 10 | D103: dms_060701_MaxCols | E103: =IF(dms_FifthFeeder_flag_NSP="NO",8,10)
B104: Table 6.7.1 - Number of offset rows | C104: =IF(dms_Model="ARR",15,9) -> 9 | D104: dms_060701_OffsetRows | E104: =IF(dms_Model="ARR",15,9)
B105: Start date for telephone answering in 6.1 or 6.7? | E105: Using 060101 as naming standard not 060701 for start dates
B106: Table 6.1.1 and 6.7.1 - Start Date as Text | C106: =IF(dms_SingleYearModel="yes",(CONCATENATE(IF(LEN(CRY)=4,"1-Jan-","1-Jul-"),LEFT(CRY,4))),(CONCATENATE(IF(LEN(PRCP_y4)=4,"1-Jan-","1-Jul-"),LEFT(PRCP_y4,4)))) -> 1-Jul-2008 | D106: dms_060101_StartDateTxt | E106: =IF(SUM(dms_SingleYear_Model)>1,(CONCATENATE(IF(LEN(CRY)=4,"1-Jan-","1-Jul-"),LEFT(CRY,4))),(CONCATENATE(IF(LEN(CRCP_y4)=4,"1-Jan-","1-Jul-"),LEFT(CRCP_y4,4))))
B107: Table 6.1.1 and 6.7.1 - Start Date as Date Value | C107: =DATEVALUE(dms_060701_StartDateTxt) -> 39630 | D107: dms_060101_StartDateVal | E107: =DATEVALUE(dms_060701_StartDateTxt)
B108: Does the NSP report MAIFI or MAIFIe | C108: NO | D108: dms_MAIFI_Flag
B109: ARRs
B110: How many rows in table 6.8? | C110: insert dms_060801_StartCell NR if required | E110: dms_060801_StartCell is only found on worksheet 6.8 and is used to determine the starting date for the date range
B111: Is dms_060801_StartCell named range present? | C111: yes | D111: Must be present for ARRs | E111: =IFERROR(IF((ROW(dms_060801_StartCell)-1)=1,"yes","yes"),"no")
B112: Table 6.8 - Number of offset rows | C112: 12 | D112: dms_0608_OffsetRows | E112: =IFERROR(IF(dms_Model="ARR",(ROW(dms_060801_StartCell)-1),"not an ARR"),"6.8 error")
B113: Table 6.8 - Last row | C113: 0 | D113: dms_0608_LastRow | E113: =IFERROR(IF(dms_060801_StartCell<>"",IF(dms_Model="ARR",(LOOKUP(2,1/(dms_060801_01_Values<>""),(ROW(dms_060801_01_Values)))),"not an ARR"),0),"0")
B114: Table 6.8 - MaxRows | C114: =IFERROR(IF(dms_Model="ARR",(MAX(0,dms_0608_LastRow-dms_0608_OffsetRows)),"not an ARR"),"0") -> not an ARR | D114: dms_060801_MaxRows | E114: =IFERROR(IF(dms_Model="ARR",(MAX(0,dms_0608_LastRow-dms_0608_OffsetRows)),"not an ARR"),"0")
B115: TNSP RESET RINS
B116: Table 7.9.4 only appears in TNSPs Reset RIN
B117: Table 7.9.4 - first year | C117: =LEFT(PRCP_y3,4) -> 2016 | D117: dms_070904_Start_Year | E117: =LEFT(PRCP_y3,4)
B119: MISC
B120: Distribution Determination Reference | C120: =INDEX(dms_DeterminationRef_List,MATCH(dms_TradingName,dms_TradingName_List)) ->  | D120: dms_DeterminationRef
B121: Public lighting NSP? | C121: =INDEX(dms_Public_Lighting_List,MATCH(dms_TradingName,dms_TradingName_List)) -> NO | D121: dms_Public_Lighting | E121: =INDEX(dms_Public_Lighting_List,MATCH(dms_TradingName,dms_TradingName_List))
B122: CBD Feeder for this business | C122: =INDEX(dms_CBD_flag,MATCH(dms_TradingName,dms_TradingName_List)) -> YES | D122: dms_CBD_flag_NSP
B123: Urban Feeder for this business | C123: =INDEX(dms_Urban_flag,MATCH(dms_TradingName,dms_TradingName_List)) -> YES | D123: dms_Urban_flag_NSP
B124: Short rural Feeder for this business | C124: =INDEX(dms_ShortRural_flag,MATCH(dms_TradingName,dms_TradingName_List)) -> YES | D124: dms_ShortRural_flag_NSP
B125: Long rural Feeder for this business | C125: =INDEX(dms_LongRural_flag,MATCH(dms_TradingName,dms_TradingName_List)) -> YES | D125: dms_LongRural_flag_NSP
B126: Fifth Feeder Category (eg. TasNetworks (D)) | C126: =INDEX(dms_FeederType_5_flag,MATCH(dms_TradingName,dms_TradingName_List)) -> NO | D126: dms_FifthFeeder_flag_NSP | E126: =INDEX(dms_FeederType_5_flag,MATCH(dms_TradingName,dms_TradingName_List))
B128: DISCARD FILES
B129: discard this record? | C129: NO | D129: dms_DISCARD | E129: If record is to be discarded from DB set this flag to YES
B131: SUBSET FILES
B132: Is this Submission File a Subset File | C132: NO | D132: dms_Partial
B135: REGULATORY YEARS FOR MULTI RYE SUBMISSIONS
B136: Multiple RYE flag | C136: NO | D136: dms_Multi_RYE_flag
C137: Manually specify RYE | D137: Named ranges to apply
C138: 2013 | D138: dms_RYE_01
C139: 2014 | D139: dms_RYE_02
C140: 2015 | D140: dms_RYE_03
C141: 2016 | D141: dms_RYE_04
C142: 2017 | D142: dms_RYE_05
C143: 2018 | D143: dms_RYE_06
C144: 2019 | D144: dms_RYE_07
C145: 2020 | D145: dms_RYE_08
C146: 2021 | D146: dms_RYE_09
